Publisher Label,Publisher URI,"Supplier ID","Supplier","Invoice No.","Amount (£)","Purpose","Transaction Number","Payment Date","Organisational Unit","Cost Centre(T)","Internal Category Number"
"Wolverhampton City Council","http://opendatacommunities.org/id/metropolitan-district-council/wolverhampton","710615","Poplars Medical Practice","M2017Q3.15SHIUDRQ","100.00","TPP - Public Health Contracts","190416762","31/01/2018","Contracts","Sexual Health","R5060"
"Wolverhampton City Council","http://opendatacommunities.org/id/metropolitan-district-council/wolverhampton","710615","Poplars Medical Practice","M2017Q315SHIUDFQ","300.00","TPP - Public Health Contracts","190416761","31/01/2018","Contracts","Sexual Health","R5060"
"Wolverhampton City Council","http://opendatacommunities.org/id/metropolitan-district-council/wolverhampton","710615","Poplars Medical Practice","M2017Q315HL312TQ","45.00","TPP - Public Health Contracts","190416769","31/01/2018","Contracts","Healthy Lifestyles","R5060"
"Wolverhampton City Council","http://opendatacommunities.org/id/metropolitan-district-council/wolverhampton","710615","Poplars Medical Practice","M2017Q315HL1IPRQ","14.00","TPP - Public Health Contracts","190416765","31/01/2018","Contracts","Healthy Lifestyles","R5060"
"Wolverhampton City Council","http://opendatacommunities.org/id/metropolitan-district-council/wolverhampton","710615","Poplars Medical Practice","M2017Q315HL304TQ","10.00","TPP - Public Health Contracts","190416768","31/01/2018","Contracts","Healthy Lifestyles","R5060"
"Wolverhampton City Council","http://opendatacommunities.org/id/metropolitan-district-council/wolverhampton","710615","Poplars Medical Practice","M2017Q315HL1IHCQ","1.20","TPP - Public Health Contracts","190416764","31/01/2018","Contracts","Healthy Lifestyles","R5060"
"Wolverhampton City Council","http://opendatacommunities.org/id/metropolitan-district-council/wolverhampton","710615","Poplars Medical Practice","M2017Q315HL304NQ","140.00","TPP - Public Health Contracts","190416767","31/01/2018","Contracts","Healthy Lifestyles","R5060"
"Wolverhampton City Council","http://opendatacommunities.org/id/metropolitan-district-council/wolverhampton","710615","Poplars Medical Practice","M2017Q315SHCHLAQ","264.00","TPP - Public Health Contracts","190416763","31/01/2018","Contracts","Sexual Health","R5060"
"Wolverhampton City Council","http://opendatacommunities.org/id/metropolitan-district-council/wolverhampton","710616","Lea Road Medical Practice","M2017Q315SMSCMRQ","1,070.00","TPP - Public Health Contracts","190416783","31/01/2018","Contracts","Alcohol and Drug","R5060"
"Wolverhampton City Council","http://opendatacommunities.org/id/metropolitan-district-council/wolverhampton","710616","Lea Road Medical Practice","M2017Q315SHCIFIQ","200.00","TPP - Public Health Contracts","190416784","31/01/2018","Contracts","Sexual Health","R5060"
"Wolverhampton City Council","http://opendatacommunities.org/id/metropolitan-district-council/wolverhampton","710616","Lea Road Medical Practice","M2017Q315SHIUFRQ","175.00","TPP - Public Health Contracts","190416785","31/01/2018","Contracts","Sexual Health","R5060"
"Wolverhampton City Council","http://opendatacommunities.org/id/metropolitan-district-council/wolverhampton","710616","Lea Road Medical Practice","M2017Q3.15SHIUDRQ","50.00","TPP - Public Health Contracts","190416786","31/01/2018","Contracts","Sexual Health","R5060"
"Wolverhampton City Council","http://opendatacommunities.org/id/metropolitan-district-council/wolverhampton","710620","ARCO Central LTD","931980857","56.18","Equipment - Purchase","190410179","10/01/2018","Fleet Services","Fleet Management","R4000"
"Wolverhampton City Council","http://opendatacommunities.org/id/metropolitan-district-council/wolverhampton","710620","ARCO Central LTD","931931067","29.94","Equipment - Purchase","190410178","10/01/2018","Fleet Services","Fleet Management","R4000"
"Wolverhampton City Council","http://opendatacommunities.org/id/metropolitan-district-council/wolverhampton","710640","Turner & Townsend Project Management LTD","000575212","16,441.61","Construction and Conversion","130200269","05/01/2018","-","Future Spaces","C1100"
"Wolverhampton City Council","http://opendatacommunities.org/id/metropolitan-district-council/wolverhampton","710640","Turner & Townsend Project Management LTD","000575210","13,462.70","Construction and Conversion","130200267","05/01/2018","-","Future Spaces","C1100"
"Wolverhampton City Council","http://opendatacommunities.org/id/metropolitan-district-council/wolverhampton","710640","Turner & Townsend Project Management LTD","000575211","1,932.23","Construction and Conversion","130200268","05/01/2018","-","Future Spaces","C1100"
"Wolverhampton City Council","http://opendatacommunities.org/id/metropolitan-district-council/wolverhampton","710644","RSA Academy","512904","3,783.33","TPP - Alternative Provision of Education","130200863","03/01/2018","Standards and Vulnerable Pupils","SEN Education OOC","R5037"
"Wolverhampton City Council","http://opendatacommunities.org/id/metropolitan-district-council/wolverhampton","710664","NonStop Recruitment LTD","136065","1,072.88","Agency Staff","130185930","12/01/2018","Child Protection","CIN/CP Social Work Unit - Area 1","R1100"
"Wolverhampton City Council","http://opendatacommunities.org/id/metropolitan-district-council/wolverhampton","710664","NonStop Recruitment LTD","136065","222.12","Agency Staff","130185930","12/01/2018","Child Protection","CIN/CP Social Work Unit - Area 1","R1100"
"Wolverhampton City Council","http://opendatacommunities.org/id/metropolitan-district-council/wolverhampton","710664","NonStop Recruitment LTD","138961","1,125.17","Agency Staff","130185954","10/01/2018","Child Protection","CIN/CP Social Work Unit - Area 1","R1100"
"Wolverhampton City Council","http://opendatacommunities.org/id/metropolitan-district-council/wolverhampton","710664","NonStop Recruitment LTD","138961","-1,125.17","Agency Staff","130185954","10/01/2018","Child Protection","CIN/CP Social Work Unit - Area 1","R1100"
"Wolverhampton City Council","http://opendatacommunities.org/id/metropolitan-district-council/wolverhampton","710664","NonStop Recruitment LTD","138961","1,312.50","Agency Staff","130185954","10/01/2018","Child Protection","CIN/CP Social Work Unit - Area 1","R1100"
"Wolverhampton City Council","http://opendatacommunities.org/id/metropolitan-district-council/wolverhampton","710664","NonStop Recruitment LTD","137871","1,207.50","Agency Staff","130200279","05/01/2018","Child Protection","CIN/CP Social Work Unit - Area 7","R1100"
"Wolverhampton City Council","http://opendatacommunities.org/id/metropolitan-district-council/wolverhampton","710664","NonStop Recruitment LTD","142614","1,295.00","Agency Staff","130200285","05/01/2018","Child Protection","CIN/CP Social Work Unit - Area 5","R1100"
"Wolverhampton City Council","http://opendatacommunities.org/id/metropolitan-district-council/wolverhampton","710664","NonStop Recruitment LTD","137188","1,050.00","Agency Staff","130200275","05/01/2018","Child Protection","CIN/CP Social Work Unit - Area 7","R1100"
"Wolverhampton City Council","http://opendatacommunities.org/id/metropolitan-district-council/wolverhampton","710664","NonStop Recruitment LTD","142918","857.50","Agency Staff","130200292","17/01/2018","Child Protection","CIN/CP Social Work Unit - Area 7","R1100"
"Wolverhampton City Council","http://opendatacommunities.org/id/metropolitan-district-council/wolverhampton","710664","NonStop Recruitment LTD","142735","1,312.50","Agency Staff","130200289","17/01/2018","Child Protection","CIN/CP Social Work Unit - Area 1","R1100"
"Wolverhampton City Council","http://opendatacommunities.org/id/metropolitan-district-council/wolverhampton","710664","NonStop Recruitment LTD","143143","1,196.58","Agency Staff","130200991","31/01/2018","Looked After Children","Adoption and Residence Team & Allowances","R1100"
"Wolverhampton City Council","http://opendatacommunities.org/id/metropolitan-district-council/wolverhampton","710664","NonStop Recruitment LTD","136485","1,050.00","Agency Staff","130200271","05/01/2018","Child Protection","CIN/CP Social Work Unit - Area 7","R1100"
"Wolverhampton City Council","http://opendatacommunities.org/id/metropolitan-district-council/wolverhampton","710664","NonStop Recruitment LTD","137869","101.70","Agency Staff","130200277","05/01/2018","Child Protection","CIN/CP Social Work Unit - Area 7","R1100"
"Wolverhampton City Council","http://opendatacommunities.org/id/metropolitan-district-council/wolverhampton","710664","NonStop Recruitment LTD","137079","1,295.00","Agency Staff","130200274","05/01/2018","Child Protection","CIN/CP Social Work Unit - Area 7","R1100"
"Wolverhampton City Council","http://opendatacommunities.org/id/metropolitan-district-council/wolverhampton","710664","NonStop Recruitment LTD","138617","105.00","Agency Staff","130200281","24/01/2018","Child Protection","CIN/CP Social Work Unit - Area 1","R1100"
"Wolverhampton City Council","http://opendatacommunities.org/id/metropolitan-district-council/wolverhampton","710664","NonStop Recruitment LTD","143193","568.75","Agency Staff","130200997","31/01/2018","Child Protection","CIN/CP Social Work Unit - Area 7","R1100"
"Wolverhampton City Council","http://opendatacommunities.org/id/metropolitan-district-council/wolverhampton","710664","NonStop Recruitment LTD","143142","1,196.58","Agency Staff","130200990","31/01/2018","Looked After Children","Adoption and Residence Team & Allowances","R1100"
"Wolverhampton City Council","http://opendatacommunities.org/id/metropolitan-district-council/wolverhampton","710664","NonStop Recruitment LTD","142990","866.25","Agency Staff","130200295","17/01/2018","Child Protection","CIN/CP Social Work Unit - Area 7","R1100"
"Wolverhampton City Council","http://opendatacommunities.org/id/metropolitan-district-council/wolverhampton","710664","NonStop Recruitment LTD","142734","1,312.50","Agency Staff","130200288","17/01/2018","Child Protection","CIN/CP Social Work Unit - Area 1","R1100"
"Wolverhampton City Council","http://opendatacommunities.org/id/metropolitan-district-council/wolverhampton","710664","NonStop Recruitment LTD","142526","1,295.00","Agency Staff","130198943","03/01/2018","Child Protection","CIN/CP Social Work Unit - Area 2","R1100"
"Wolverhampton City Council","http://opendatacommunities.org/id/metropolitan-district-council/wolverhampton","710664","NonStop Recruitment LTD","139273","1,295.00","Agency Staff","130187935","10/01/2018","Child Protection","CIN/CP Social Work Unit - Area 1","R1100"
"Wolverhampton City Council","http://opendatacommunities.org/id/metropolitan-district-council/wolverhampton","710664","NonStop Recruitment LTD","138894","1,110.17","Agency Staff","130185953","10/01/2018","Child Protection","CIN/CP Social Work Unit - Area 1","R1100"
"Wolverhampton City Council","http://opendatacommunities.org/id/metropolitan-district-council/wolverhampton","710664","NonStop Recruitment LTD","138894","-1,110.17","Agency Staff","130185953","10/01/2018","Child Protection","CIN/CP Social Work Unit - Area 1","R1100"
"Wolverhampton City Council","http://opendatacommunities.org/id/metropolitan-district-council/wolverhampton","710664","NonStop Recruitment LTD","138894","1,312.50","Agency Staff","130185953","10/01/2018","Child Protection","CIN/CP Social Work Unit - Area 1","R1100"
"Wolverhampton City Council","http://opendatacommunities.org/id/metropolitan-district-council/wolverhampton","710664","NonStop Recruitment LTD","136767","1,295.00","Agency Staff","130200273","05/01/2018","Child Protection","CIN/CP Social Work Unit - Area 7","R1100"
"Wolverhampton City Council","http://opendatacommunities.org/id/metropolitan-district-council/wolverhampton","710664","NonStop Recruitment LTD","136554","1,102.50","Agency Staff","130200272","05/01/2018","Child Protection","CIN/CP Social Work Unit - Area 7","R1100"
"Wolverhampton City Council","http://opendatacommunities.org/id/metropolitan-district-council/wolverhampton","710664","NonStop Recruitment LTD","143144","485.10","Agency Staff","130200992","31/01/2018","Looked After Children","Adoption and Residence Team & Allowances","R1100"
"Wolverhampton City Council","http://opendatacommunities.org/id/metropolitan-district-council/wolverhampton","710664","NonStop Recruitment LTD","143216","1,295.00","Agency Staff","130200999","31/01/2018","Child Protection","CIN/CP Social Work Unit - Area 5","R1100"
"Wolverhampton City Council","http://opendatacommunities.org/id/metropolitan-district-council/wolverhampton","710664","NonStop Recruitment LTD","142548","1,312.50","Agency Staff","130200284","17/01/2018","Child Protection","CIN/CP Social Work Unit - Area 1","R1100"
"Wolverhampton City Council","http://opendatacommunities.org/id/metropolitan-district-council/wolverhampton","710664","NonStop Recruitment LTD","138918","54.80","Agency Staff","130200282","17/01/2018","Child Protection","CIN/CP Social Work Unit - Area 1","R1100"
"Wolverhampton City Council","http://opendatacommunities.org/id/metropolitan-district-council/wolverhampton","710664","NonStop Recruitment LTD","139020","1,295.00","Agency Staff","130185956","10/01/2018","Child Protection","CIN/CP Social Work Unit - Area 1","R1100"
"Wolverhampton City Council","http://opendatacommunities.org/id/metropolitan-district-council/wolverhampton","710664","NonStop Recruitment LTD","136220","752.50","Agency Staff","130200270","03/01/2018","Child Protection","CIN/CP Social Work Unit - Area 7","R1100"
"Wolverhampton City Council","http://opendatacommunities.org/id/metropolitan-district-council/wolverhampton","710664","NonStop Recruitment LTD","137414","1,225.00","Agency Staff","130200276","05/01/2018","Child Protection","CIN/CP Social Work Unit - Area 7","R1100"
"Wolverhampton City Council","http://opendatacommunities.org/id/metropolitan-district-council/wolverhampton","710664","NonStop Recruitment LTD","137870","595.00","Agency Staff","130200278","05/01/2018","Child Protection","CIN/CP Social Work Unit - Area 7","R1100"
"Wolverhampton City Council","http://opendatacommunities.org/id/metropolitan-district-council/wolverhampton","710664","NonStop Recruitment LTD","142615","1,295.00","Agency Staff","130200286","05/01/2018","Child Protection","CIN/CP Social Work Unit - Area 5","R1100"
"Wolverhampton City Council","http://opendatacommunities.org/id/metropolitan-district-council/wolverhampton","710664","NonStop Recruitment LTD","140886","1,295.00","Agency Staff","130192991","26/01/2018","Child Protection","CIN/CP Social Work Unit - Area 2","R1100"
"Wolverhampton City Council","http://opendatacommunities.org/id/metropolitan-district-council/wolverhampton","710664","NonStop Recruitment LTD","142975","1,312.50","Agency Staff","130200294","17/01/2018","Child Protection","CIN/CP Social Work Unit - Area 1","R1100"
"Wolverhampton City Council","http://opendatacommunities.org/id/metropolitan-district-council/wolverhampton","710664","NonStop Recruitment LTD","143145","1,196.58","Agency Staff","130200993","31/01/2018","Looked After Children","Adoption and Residence Team & Allowances","R1100"
"Wolverhampton City Council","http://opendatacommunities.org/id/metropolitan-district-council/wolverhampton","710664","NonStop Recruitment LTD","143215","1,295.00","Agency Staff","130200998","31/01/2018","Child Protection","CIN/CP Social Work Unit - Area 5","R1100"
"Wolverhampton City Council","http://opendatacommunities.org/id/metropolitan-district-council/wolverhampton","710664","NonStop Recruitment LTD","140190","63.95","Agency Staff","130200283","03/01/2018","Child Protection","CIN/CP Social Work Unit - Area 5","R1100"
"Wolverhampton City Council","http://opendatacommunities.org/id/metropolitan-district-council/wolverhampton","710664","NonStop Recruitment LTD","142736","1,312.50","Agency Staff","130200290","10/01/2018","Child Protection","CIN/CP Social Work Unit - Area 1","R1100"
"Wolverhampton City Council","http://opendatacommunities.org/id/metropolitan-district-council/wolverhampton","710710","Dinos Building Limited (Adaptations)","14/0999/DFGb","4,505.00","Grants paid out","190415739","26/01/2018","-","Disabled Facilities Grants","C5000"
"Wolverhampton City Council","http://opendatacommunities.org/id/metropolitan-district-council/wolverhampton","710735","ARCHITYPE LIMITED","00006742","1,500.00","Services - Professional Fees","130202846","19/01/2018","Housing","Wholly Owned Company - Operations","R4400"
"Wolverhampton City Council","http://opendatacommunities.org/id/metropolitan-district-council/wolverhampton","710748","TV Licensing","3347539867.","147.00","Equipment - Purchase","190406550","03/01/2018","Housing Revenue Account","Hostels / Outreach","R4000"
"Wolverhampton City Council","http://opendatacommunities.org/id/metropolitan-district-council/wolverhampton","710776","JPL Print & Design Ltd","11736","1,164.00","Printing","130202317","31/01/2018","ICTS","Document Centre - General","R4300"
"Wolverhampton City Council","http://opendatacommunities.org/id/metropolitan-district-council/wolverhampton","710780","Wilson & Scott (Highways) LTD","26220","3,071.39","TPP - Maintenance on Principal Roads","130200574","17/01/2018","Highways Maintenance","Road Markings","R5700"
"Wolverhampton City Council","http://opendatacommunities.org/id/metropolitan-district-council/wolverhampton","710780","Wilson & Scott (Highways) LTD","26210","1,186.79","Construction and Conversion","130200296","10/01/2018","-","Integrated Transport","C1100"
"Wolverhampton City Council","http://opendatacommunities.org/id/metropolitan-district-council/wolverhampton","710780","Wilson & Scott (Highways) LTD","26116","1,973.63","TPP - Maintenance on Principal Roads","130199247","10/01/2018","Highways Maintenance","Road Markings","R5700"
"Wolverhampton City Council","http://opendatacommunities.org/id/metropolitan-district-council/wolverhampton","710780","Wilson & Scott (Highways) LTD","26098","1,832.88","Construction and Conversion","130198808","10/01/2018","-","Integrated Transport","C1100"
"Wolverhampton City Council","http://opendatacommunities.org/id/metropolitan-district-council/wolverhampton","710786","St Judes C of E Primary Academy","TFT Spring 2018 Inst 1","7,922.88","Grant Payments","190415171","26/01/2018","Early Years","Early Years Entitlement Funding for Disadvantaged 2 Year Olds","R4700"
"Wolverhampton City Council","http://opendatacommunities.org/id/metropolitan-district-council/wolverhampton","710795","The Dudley Group NHS Foundation Trust","2000005315","312.00","TPP - Public Health Contracts","130202177","31/01/2018","Contracts","Sexual Health","R5060"
"Wolverhampton City Council","http://opendatacommunities.org/id/metropolitan-district-council/wolverhampton","710795","The Dudley Group NHS Foundation Trust","2000005276","316.00","TPP - Public Health Contracts","130201146","10/01/2018","Contracts","Sexual Health","R5060"
"Wolverhampton City Council","http://opendatacommunities.org/id/metropolitan-district-council/wolverhampton","710795","The Dudley Group NHS Foundation Trust","2000005314","4,826.00","TPP - Public Health Contracts","130202176","31/01/2018","Contracts","Sexual Health","R5060"
"Wolverhampton City Council","http://opendatacommunities.org/id/metropolitan-district-council/wolverhampton","710804","Worcester Health & Care","T025934 October 2017","221.00","TPP - Public Health Contracts","190409189","10/01/2018","Contracts","Sexual Health","R5060"
"Wolverhampton City Council","http://opendatacommunities.org/id/metropolitan-district-council/wolverhampton","710814","Oak Meadow Primary School","Funsters/cross","207.00","TPP - Child Care provided for client","130200733","03/01/2018","Adult Education","Discretionary Fund","R5034"
"Wolverhampton City Council","http://opendatacommunities.org/id/metropolitan-district-council/wolverhampton","710828","Andrew Page","061429801","14.28","Equipment - Purchase","190415642","26/01/2018","Fleet Services","Fleet Management","R4000"
"Wolverhampton City Council","http://opendatacommunities.org/id/metropolitan-district-council/wolverhampton","710828","Andrew Page","061428349","81.99","Equipment - Purchase","190414490","24/01/2018","Fleet Services","Fleet Management","R4000"
"Wolverhampton City Council","http://opendatacommunities.org/id/metropolitan-district-council/wolverhampton","710828","Andrew Page","061427963","38.68","Equipment - Purchase","190410125","10/01/2018","Fleet Services","Fleet Management","R4000"
"Wolverhampton City Council","http://opendatacommunities.org/id/metropolitan-district-council/wolverhampton","710828","Andrew Page","061427963","40.31","Equipment - Purchase","190410125","10/01/2018","Fleet Services","Fleet Management","R4000"
"Wolverhampton City Council","http://opendatacommunities.org/id/metropolitan-district-council/wolverhampton","710828","Andrew Page","061427963","75.47","Equipment - Purchase","190410125","10/01/2018","Fleet Services","Fleet Management","R4000"
"Wolverhampton City Council","http://opendatacommunities.org/id/metropolitan-district-council/wolverhampton","710828","Andrew Page","061430540","31.36","Equipment - Purchase","190410742","12/01/2018","Fleet Services","Fleet Management","R4000"
"Wolverhampton City Council","http://opendatacommunities.org/id/metropolitan-district-council/wolverhampton","710828","Andrew Page","061430943","99.00","Equipment - Purchase","190413565","19/01/2018","Fleet Services","Fleet Management","R4000"
"Wolverhampton City Council","http://opendatacommunities.org/id/metropolitan-district-council/wolverhampton","710828","Andrew Page","061430490","50.00","Equipment - Purchase","190415643","26/01/2018","Fleet Services","Fleet Management","R4000"
"Wolverhampton City Council","http://opendatacommunities.org/id/metropolitan-district-council/wolverhampton","710828","Andrew Page","061432503","34.28","Equipment - Purchase","190414492","24/01/2018","Fleet Services","Fleet Management","R4000"
"Wolverhampton City Council","http://opendatacommunities.org/id/metropolitan-district-council/wolverhampton","710828","Andrew Page","061428258","7.32","Equipment - Purchase","190414487","24/01/2018","Fleet Services","Fleet Management","R4000"
"Wolverhampton City Council","http://opendatacommunities.org/id/metropolitan-district-council/wolverhampton","710828","Andrew Page","016430944","99.00","Equipment - Purchase","190413563","19/01/2018","Fleet Services","Fleet Management","R4000"
"Wolverhampton City Council","http://opendatacommunities.org/id/metropolitan-district-council/wolverhampton","710828","Andrew Page","G062809","-28.51","Equipment - Purchase","190415720","26/01/2018","Fleet Services","Fleet Management","R4000"
"Wolverhampton City Council","http://opendatacommunities.org/id/metropolitan-district-council/wolverhampton","710828","Andrew Page","061428343","156.00","Equipment - Purchase","190414489","24/01/2018","Fleet Services","Fleet Management","R4000"
"Wolverhampton City Council","http://opendatacommunities.org/id/metropolitan-district-council/wolverhampton","710828","Andrew Page","061428343","136.45","Equipment - Purchase","190414489","24/01/2018","Fleet Services","Fleet Management","R4000"
"Wolverhampton City Council","http://opendatacommunities.org/id/metropolitan-district-council/wolverhampton","710828","Andrew Page","061428343","11.10","Equipment - Purchase","190414489","24/01/2018","Fleet Services","Fleet Management","R4000"
"Wolverhampton City Council","http://opendatacommunities.org/id/metropolitan-district-council/wolverhampton","710828","Andrew Page","061428583","64.59","Equipment - Purchase","190414491","24/01/2018","Fleet Services","Fleet Management","R4000"
"Wolverhampton City Council","http://opendatacommunities.org/id/metropolitan-district-council/wolverhampton","710828","Andrew Page","G062803","-7.32","Equipment - Purchase","190413600","19/01/2018","Fleet Services","Fleet Management","R4000"
"Wolverhampton City Council","http://opendatacommunities.org/id/metropolitan-district-council/wolverhampton","710828","Andrew Page","061430946","9.52","Equipment - Purchase","190413566","19/01/2018","Fleet Services","Fleet Management","R4000"
"Wolverhampton City Council","http://opendatacommunities.org/id/metropolitan-district-council/wolverhampton","710828","Andrew Page","061430946","20.84","Equipment - Purchase","190413566","19/01/2018","Fleet Services","Fleet Management","R4000"
"Wolverhampton City Council","http://opendatacommunities.org/id/metropolitan-district-council/wolverhampton","710828","Andrew Page","061430607","33.71","Equipment - Purchase","190413564","19/01/2018","Fleet Services","Fleet Management","R4000"
"Wolverhampton City Council","http://opendatacommunities.org/id/metropolitan-district-council/wolverhampton","710828","Andrew Page","061431097","65.00","Equipment - Purchase","190413567","19/01/2018","Fleet Services","Fleet Management","R4000"
"Wolverhampton City Council","http://opendatacommunities.org/id/metropolitan-district-council/wolverhampton","710828","Andrew Page","061428257","27.20","Equipment - Purchase","190414486","24/01/2018","Fleet Services","Fleet Management","R4000"
"Wolverhampton City Council","http://opendatacommunities.org/id/metropolitan-district-council/wolverhampton","710828","Andrew Page","061428322","7.48","Equipment - Purchase","190414488","24/01/2018","Fleet Services","Fleet Management","R4000"
"Wolverhampton City Council","http://opendatacommunities.org/id/metropolitan-district-council/wolverhampton","710828","Andrew Page","061432708","37.21","Equipment - Purchase","190415644","26/01/2018","Fleet Services","Fleet Management","R4000"
"Wolverhampton City Council","http://opendatacommunities.org/id/metropolitan-district-council/wolverhampton","710828","Andrew Page","061432708","27.80","Equipment - Purchase","190415644","26/01/2018","Fleet Services","Fleet Management","R4000"
"Wolverhampton City Council","http://opendatacommunities.org/id/metropolitan-district-council/wolverhampton","710828","Andrew Page","061432708","20.32","Equipment - Purchase","190415644","26/01/2018","Fleet Services","Fleet Management","R4000"
"Wolverhampton City Council","http://opendatacommunities.org/id/metropolitan-district-council/wolverhampton","710828","Andrew Page","061432708","5.27","Equipment - Purchase","190415644","26/01/2018","Fleet Services","Fleet Management","R4000"
"Wolverhampton City Council","http://opendatacommunities.org/id/metropolitan-district-council/wolverhampton","710873","Little Rascals Childcare LTD","TFT Spring 2018 Inst 1","9,400.56","Grant Payments","190415171","26/01/2018","Early Years","Early Years Entitlement Funding for Disadvantaged 2 Year Olds","R4700"
"Wolverhampton City Council","http://opendatacommunities.org/id/metropolitan-district-council/wolverhampton","710873","Little Rascals Childcare LTD","NEF Spring 2018 INST 1","13,147.80","TPP - Private Nursery Education Funding","190415159","26/01/2018","Early Years","Early Years Universal Entitlement for 3 and 4 Year Olds","R5035"
"Wolverhampton City Council","http://opendatacommunities.org/id/metropolitan-district-council/wolverhampton","710874","Kerry Felton","NEF Spring 2018 INST 1","459.00","TPP - Private Nursery Education Funding","190415159","26/01/2018","Early Years","Early Years Universal Entitlement for 3 and 4 Year Olds","R5035"
"Wolverhampton City Council","http://opendatacommunities.org/id/metropolitan-district-council/wolverhampton","710874","Kerry Felton","TFT Spring 2018 Inst 1","565.92","Grant Payments","190415171","26/01/2018","Early Years","Early Years Entitlement Funding for Disadvantaged 2 Year Olds","R4700"
"Wolverhampton City Council","http://opendatacommunities.org/id/metropolitan-district-council/wolverhampton","710875","St Michaels Pre School","NEF Spring 2018 INST 1","12,771.25","TPP - Private Nursery Education Funding","190415159","26/01/2018","Early Years","Early Years Universal Entitlement for 3 and 4 Year Olds","R5035"
"Wolverhampton City Council","http://opendatacommunities.org/id/metropolitan-district-council/wolverhampton","710875","St Michaels Pre School","TFT Spring 2018 Inst 1","3,584.16","Grant Payments","190415171","26/01/2018","Early Years","Early Years Entitlement Funding for Disadvantaged 2 Year Olds","R4700"
"Wolverhampton City Council","http://opendatacommunities.org/id/metropolitan-district-council/wolverhampton","710878","247 Cars","965","754.40","Client Transport","130203419","26/01/2018","School Planning & Resources","Special - Transport","R3042"
"Wolverhampton City Council","http://opendatacommunities.org/id/metropolitan-district-council/wolverhampton","710878","247 Cars","923","2,089.60","Client Transport","130203616","31/01/2018","School Planning & Resources","Special - Transport","R3042"
"Wolverhampton City Council","http://opendatacommunities.org/id/metropolitan-district-council/wolverhampton","710917","George Eliot Hospital NHS Trust","M0112651 M06 2017/18","278.60","TPP - Public Health Contracts","190412055","17/01/2018","Contracts","Sexual Health","R5060"
"Wolverhampton City Council","http://opendatacommunities.org/id/metropolitan-district-council/wolverhampton","710928","Yoo Recruit LTD","CWC100937","3,615.20","Agency Staff","190407356","05/01/2018","Child Protection","Childrens with Disabilities Team","R1100"
"Wolverhampton City Council","http://opendatacommunities.org/id/metropolitan-district-council/wolverhampton","710928","Yoo Recruit LTD","CWC1009313","4,222.73","Agency Staff","190407362","05/01/2018","Mental Health Assesment & Care Management","Mental Health Assessment & Care Management","R1100"
"Wolverhampton City Council","http://opendatacommunities.org/id/metropolitan-district-council/wolverhampton","710928","Yoo Recruit LTD","CWC1009398","3,088.15","Agency Staff","190407444","05/01/2018","Democratic Services","Councillor Portal","R1100"
"Wolverhampton City Council","http://opendatacommunities.org/id/metropolitan-district-council/wolverhampton","710928","Yoo Recruit LTD","CWC1009392","4,297.39","Agency Staff","190407438","05/01/2018","Adults Assessment & Care Management West","Adult Services � West","R1100"
"Wolverhampton City Council","http://opendatacommunities.org/id/metropolitan-district-council/wolverhampton","710928","Yoo Recruit LTD","CWC100888","3,935.30","Agency Staff","190407455","05/01/2018","Youth Offending","Youth Offending Team","R1100"
"Wolverhampton City Council","http://opendatacommunities.org/id/metropolitan-district-council/wolverhampton","710928","Yoo Recruit LTD","CWC1008877","3,200.89","Agency Staff","190407521","05/01/2018","School Planning & Resources","Special - Transport","R1100"
"Wolverhampton City Council","http://opendatacommunities.org/id/metropolitan-district-council/wolverhampton","710928","Yoo Recruit LTD","CWC10088101","3,437.48","Agency Staff","190407545","05/01/2018","Headstart","Headstart - Learning Technologies Team","R1100"
"Wolverhampton City Council","http://opendatacommunities.org/id/metropolitan-district-council/wolverhampton","710928","Yoo Recruit LTD","CWC1008897","6,061.28","Agency Staff","190407541","05/01/2018","Adults Assessment & Care Management North","Adult Services � North","R1100"
"Wolverhampton City Council","http://opendatacommunities.org/id/metropolitan-district-council/wolverhampton","710928","Yoo Recruit LTD","CWC1008823","704.35","Agency Staff","190407470","05/01/2018","Leisure Services","Aldersley Leisure Village","R1100"
"Wolverhampton City Council","http://opendatacommunities.org/id/metropolitan-district-council/wolverhampton","710928","Yoo Recruit LTD","CWC1008830","3,465.90","Agency Staff","190407476","05/01/2018","Safeguarding","Safeguarding Board - Childrens","R1100"
"Wolverhampton City Council","http://opendatacommunities.org/id/metropolitan-district-council/wolverhampton","710928","Yoo Recruit LTD","CWC1008824","3,347.73","Agency Staff","190407471","05/01/2018","Leisure Services","Bert Williams Leisure Centre","R1100"
"Wolverhampton City Council","http://opendatacommunities.org/id/metropolitan-district-council/wolverhampton","710928","Yoo Recruit LTD","CWC1008565","6,580.21","Agency Staff","190407629","05/01/2018","School Planning & Resources","Special - Transport","R1100"
"Wolverhampton City Council","http://opendatacommunities.org/id/metropolitan-district-council/wolverhampton","710928","Yoo Recruit LTD","CWC1008575","2,908.37","Agency Staff","190407639","05/01/2018","Leisure Services","WV Active Business Support","R1100"
"Wolverhampton City Council","http://opendatacommunities.org/id/metropolitan-district-council/wolverhampton","710928","Yoo Recruit LTD","CWC1008571","4,019.75","Agency Staff","190407635","05/01/2018","Visitor Economy","Civic Halls Non-Direct Event Management Account","R1100"
"Wolverhampton City Council","http://opendatacommunities.org/id/metropolitan-district-council/wolverhampton","710928","Yoo Recruit LTD","CWC1008585","3,290.24","Agency Staff","190407649","05/01/2018","Headstart","Headstart - Learning Technologies Team","R1100"
"Wolverhampton City Council","http://opendatacommunities.org/id/metropolitan-district-council/wolverhampton","710928","Yoo Recruit LTD","CWC1008525","693.00","Agency Staff","190407590","05/01/2018","Audit Services","Audit Services","R1100"
"Wolverhampton City Council","http://opendatacommunities.org/id/metropolitan-district-council/wolverhampton","710928","Yoo Recruit LTD","CWC1008527","542.88","Agency Staff","190407592","05/01/2018","Catering","Education Catering - General Overheads","R1100"
"Wolverhampton City Council","http://opendatacommunities.org/id/metropolitan-district-council/wolverhampton","710928","Yoo Recruit LTD","CWC1008455","507.15","Agency Staff","190407708","05/01/2018","Adult Education","Direct Delivery Team ( L.& D.)","R1100"
"Wolverhampton City Council","http://opendatacommunities.org/id/metropolitan-district-council/wolverhampton","710928","Yoo Recruit LTD","CWC1008439","203.58","Agency Staff","190407692","05/01/2018","Fleet Services","Fleet Management","R1100"
"Wolverhampton City Council","http://opendatacommunities.org/id/metropolitan-district-council/wolverhampton","710928","Yoo Recruit LTD","CWC1008442","661.49","Agency Staff","190407695","05/01/2018","Revenues & Benefits","Revenues","R1100"
"Wolverhampton City Council","http://opendatacommunities.org/id/metropolitan-district-council/wolverhampton","710928","Yoo Recruit LTD","CWC1008459","527.66","Agency Staff","190407712","05/01/2018","Standards and Vulnerable Pupils","Music Grant (Arts Council)","R1100"
"Wolverhampton City Council","http://opendatacommunities.org/id/metropolitan-district-council/wolverhampton","710928","Yoo Recruit LTD","CWC1008419","3,000.86","Agency Staff","190407673","05/01/2018","Leisure Services","Central Baths","R1100"
"Wolverhampton City Council","http://opendatacommunities.org/id/metropolitan-district-council/wolverhampton","710928","Yoo Recruit LTD","CWC1008420","623.55","Agency Staff","190407674","05/01/2018","Safeguarding","MCA General","R1100"
"Wolverhampton City Council","http://opendatacommunities.org/id/metropolitan-district-council/wolverhampton","710928","Yoo Recruit LTD","CWC1010948","211.18","Agency Staff","190407135","03/01/2018","Democratic Services","Register Office","R1100"
"Wolverhampton City Council","http://opendatacommunities.org/id/metropolitan-district-council/wolverhampton","710928","Yoo Recruit LTD","CWC1010967","490.08","Agency Staff","190407153","03/01/2018","Adult Education","Foundation Studies Delivery Area","R1100"
"Wolverhampton City Council","http://opendatacommunities.org/id/metropolitan-district-council/wolverhampton","710928","Yoo Recruit LTD","CWC1010189","4,187.93","Agency Staff","190407296","03/01/2018","Digital Transformation Programme","Digital Transformation Programme","R1100"
"Wolverhampton City Council","http://opendatacommunities.org/id/metropolitan-district-council/wolverhampton","710928","Yoo Recruit LTD","CWC1011081","428.74","Agency Staff","190406698","03/01/2018","Early Intervention","EIP Locality 5 � Whitmore Reans","R1100"
"Wolverhampton City Council","http://opendatacommunities.org/id/metropolitan-district-council/wolverhampton","710928","Yoo Recruit LTD","CWC1011065","432.38","Agency Staff","190406682","03/01/2018","School Planning & Resources","Technical Support","R1100"
"Wolverhampton City Council","http://opendatacommunities.org/id/metropolitan-district-council/wolverhampton","710928","Yoo Recruit LTD","CWC1011056","507.15","Agency Staff","190406674","03/01/2018","Adult Education","Direct Delivery Team ( L.& D.)","R1100"
"Wolverhampton City Council","http://opendatacommunities.org/id/metropolitan-district-council/wolverhampton","710928","Yoo Recruit LTD","CWC1011014","851.13","Agency Staff","190406634","03/01/2018","Strategic Organisation Development","Global Budgets","R1100"
"Wolverhampton City Council","http://opendatacommunities.org/id/metropolitan-district-council/wolverhampton","710928","Yoo Recruit LTD","CWC1011033","346.78","Agency Staff","190406652","03/01/2018","Democratic Services","Mayoral Expenses","R1100"
"Wolverhampton City Council","http://opendatacommunities.org/id/metropolitan-district-council/wolverhampton","710928","Yoo Recruit LTD","CWC1011059","829.74","Agency Staff","190406677","03/01/2018","Standards and Vulnerable Pupils","Music Support Team","R1100"
"Wolverhampton City Council","http://opendatacommunities.org/id/metropolitan-district-council/wolverhampton","710928","Yoo Recruit LTD","CWC1011010","1,023.05","Agency Staff","190406630","03/01/2018","Learning Disability Provider","Ernest Bold Court","R1100"
"Wolverhampton City Council","http://opendatacommunities.org/id/metropolitan-district-council/wolverhampton","710928","Yoo Recruit LTD","CWC1010953","2,309.37","Agency Staff","190407139","03/01/2018","Strategic Director Place","Strategic Director Place","R1100"
"Wolverhampton City Council","http://opendatacommunities.org/id/metropolitan-district-council/wolverhampton","710928","Yoo Recruit LTD","CWC1010976","764.41","Agency Staff","190407161","03/01/2018","School Planning & Resources","Technical Support","R1100"
"Wolverhampton City Council","http://opendatacommunities.org/id/metropolitan-district-council/wolverhampton","710928","Yoo Recruit LTD","CWC1010986","2,328.83","Agency Staff","190407171","03/01/2018","Leisure Services","WV Active Business Support","R1100"
"Wolverhampton City Council","http://opendatacommunities.org/id/metropolitan-district-council/wolverhampton","710928","Yoo Recruit LTD","CWC1010987","2,444.40","Agency Staff","190407172","03/01/2018","Human Resources","HR Investigations","R1100"
"Wolverhampton City Council","http://opendatacommunities.org/id/metropolitan-district-council/wolverhampton","710928","Yoo Recruit LTD","CWC1010990","2,781.16","Agency Staff","190407175","03/01/2018","Child Protection","CIN/CP Social Work Unit - Area 1","R1100"
"Wolverhampton City Council","http://opendatacommunities.org/id/metropolitan-district-council/wolverhampton","710928","Yoo Recruit LTD","CWC1010960","3,026.11","Agency Staff","190407146","03/01/2018","Public Protection","EHTS Staffing","R1100"
"Wolverhampton City Council","http://opendatacommunities.org/id/metropolitan-district-council/wolverhampton","710928","Yoo Recruit LTD","CWC1010914","533.04","Agency Staff","190407101","03/01/2018","Emergency Duty Team","Emergency Duty Team","R1100"
"Wolverhampton City Council","http://opendatacommunities.org/id/metropolitan-district-council/wolverhampton","710928","Yoo Recruit LTD","CWC1010919","6,616.75","Agency Staff","190407106","03/01/2018","Independent Living Service","Independent Living Service","R1100"
"Wolverhampton City Council","http://opendatacommunities.org/id/metropolitan-district-council/wolverhampton","710928","Yoo Recruit LTD","CWC1010942","1,039.80","Agency Staff","190407129","03/01/2018","Corporate Business Support","Corporate Programmes","R1100"
"Wolverhampton City Council","http://opendatacommunities.org/id/metropolitan-district-council/wolverhampton","710928","Yoo Recruit LTD","CWC1010154","2,969.19","Agency Staff","190407263","03/01/2018","Strategic Director Place","Strategic Director Place","R1100"
"Wolverhampton City Council","http://opendatacommunities.org/id/metropolitan-district-council/wolverhampton","710928","Yoo Recruit LTD","CWC1010163","2,121.93","Agency Staff","190407271","03/01/2018","Adult Education","Admin & Support","R1100"
"Wolverhampton City Council","http://opendatacommunities.org/id/metropolitan-district-council/wolverhampton","710928","Yoo Recruit LTD","CWC1010190","126.10","Agency Staff","190407297","03/01/2018","Specialist Support","Vulnerable Young Persons Team","R1100"
"Wolverhampton City Council","http://opendatacommunities.org/id/metropolitan-district-council/wolverhampton","710928","Yoo Recruit LTD","CWC1010181","1,170.96","Agency Staff","190407288","03/01/2018","Governance Services","Business Support - Governance","R1100"
"Wolverhampton City Council","http://opendatacommunities.org/id/metropolitan-district-council/wolverhampton","710928","Yoo Recruit LTD","CWC1010115","8,084.33","Agency Staff","190407224","03/01/2018","Mental Health Assesment & Care Management","Mental Health Assessment & Care Management","R1100"
"Wolverhampton City Council","http://opendatacommunities.org/id/metropolitan-district-council/wolverhampton","710928","Yoo Recruit LTD","I0773","4,427.50","External Professional Fees","130204248","31/01/2018","-","Black Country Growth Deal � Cultural Programme","C6002"
"Wolverhampton City Council","http://opendatacommunities.org/id/metropolitan-district-council/wolverhampton","710928","Yoo Recruit LTD","CWC1011975","777.48","Agency Staff","190413329","19/01/2018","Child Protection","CIN/CP Social Work Unit - Area 1","R1100"
"Wolverhampton City Council","http://opendatacommunities.org/id/metropolitan-district-council/wolverhampton","710928","Yoo Recruit LTD","CWC1011942","278.52","Agency Staff","190413300","19/01/2018","Democratic Services","Register Office","R1100"
"Wolverhampton City Council","http://opendatacommunities.org/id/metropolitan-district-council/wolverhampton","710928","Yoo Recruit LTD","CWC1011933","367.58","Agency Staff","190413305","19/01/2018","Cleaning","Other Cleaning","R1100"
"Wolverhampton City Council","http://opendatacommunities.org/id/metropolitan-district-council/wolverhampton","710928","Yoo Recruit LTD","CWC1011924","379.80","Agency Staff","190413308","19/01/2018","Business Continuity & Emergency Planning","Business Continuity & Emergency Planning","R1100"
"Wolverhampton City Council","http://opendatacommunities.org/id/metropolitan-district-council/wolverhampton","710928","Yoo Recruit LTD","CWC1011934","461.02","Agency Staff","190413312","19/01/2018","ICTS","Customer Services","R1100"
"Wolverhampton City Council","http://opendatacommunities.org/id/metropolitan-district-council/wolverhampton","710928","Yoo Recruit LTD","CWC1011969","2,028.45","Agency Staff","190413351","19/01/2018","Director of Governance","Director of Governance","R1100"
"Wolverhampton City Council","http://opendatacommunities.org/id/metropolitan-district-council/wolverhampton","710928","Yoo Recruit LTD","CWC1011981","1,639.89","Agency Staff","190413346","19/01/2018","Strategic Director People","Head of Strategic Commissioning � People","R1100"
"Wolverhampton City Council","http://opendatacommunities.org/id/metropolitan-district-council/wolverhampton","710928","Yoo Recruit LTD","CWC1011917","1,696.80","Agency Staff","190413348","19/01/2018","Adults Assessment & Care Management North","Assessment Team (North)","R1100"
"Wolverhampton City Council","http://opendatacommunities.org/id/metropolitan-district-council/wolverhampton","710928","Yoo Recruit LTD","CWC1011980","975.57","Agency Staff","190413341","19/01/2018","Adults Assessment & Care Management West","Adult Services � West","R1100"
"Wolverhampton City Council","http://opendatacommunities.org/id/metropolitan-district-council/wolverhampton","710928","Yoo Recruit LTD","CWC1011961","1,247.95","Agency Staff","190413344","19/01/2018","School Planning & Resources","Special - Transport","R1100"
"Wolverhampton City Council","http://opendatacommunities.org/id/metropolitan-district-council/wolverhampton","710928","Yoo Recruit LTD","CWC1011920","2,895.93","Agency Staff","190413360","19/01/2018","Leisure Services","Bert Williams Leisure Centre","R1100"
"Wolverhampton City Council","http://opendatacommunities.org/id/metropolitan-district-council/wolverhampton","710928","Yoo Recruit LTD","CWC1011960","631.66","Agency Staff","190413321","19/01/2018","School Planning & Resources","Pupil & Student Support","R1100"
"Wolverhampton City Council","http://opendatacommunities.org/id/metropolitan-district-council/wolverhampton","710928","Yoo Recruit LTD","CWC1011966","529.20","Agency Staff","190413317","19/01/2018","Safeguarding","Head of Service Quality and Safeguarding","R1100"
"Wolverhampton City Council","http://opendatacommunities.org/id/metropolitan-district-council/wolverhampton","710928","Yoo Recruit LTD","CWC101198","2,804.50","Agency Staff","190413359","19/01/2018","Child Protection","Childrens with Disabilities Team","R1100"
"Wolverhampton City Council","http://opendatacommunities.org/id/metropolitan-district-council/wolverhampton","710928","Yoo Recruit LTD","CWC1011989","574.80","Agency Staff","190413319","19/01/2018","Headstart","Headstart Phase 3","R1100"
"Wolverhampton City Council","http://opendatacommunities.org/id/metropolitan-district-council/wolverhampton","710928","Yoo Recruit LTD","CWC1011944","806.56","Agency Staff","190413333","19/01/2018","Strategic Finance","Strategic Finance","R1100"
"Wolverhampton City Council","http://opendatacommunities.org/id/metropolitan-district-council/wolverhampton","710928","Yoo Recruit LTD","CWC1011947","203.58","Agency Staff","190413295","19/01/2018","Visitor Economy","Bantock - Tea Rooms","R1100"
"Wolverhampton City Council","http://opendatacommunities.org/id/metropolitan-district-council/wolverhampton","710928","Yoo Recruit LTD","CWC1011967","100.88","Agency Staff","190413287","19/01/2018","Safeguarding","Safeguarding & Quality Administration","R1100"
"Wolverhampton City Council","http://opendatacommunities.org/id/metropolitan-district-council/wolverhampton","710928","Yoo Recruit LTD","CWC1011925","90.48","Agency Staff","190413286","19/01/2018","Catering","Education Catering - General Overheads","R1100"
"Wolverhampton City Council","http://opendatacommunities.org/id/metropolitan-district-council/wolverhampton","710928","Yoo Recruit LTD","CWC101191","762.96","Agency Staff","190413327","19/01/2018","Service Director Children & Young People","Service Director Children & Young People","R1100"
"Wolverhampton City Council","http://opendatacommunities.org/id/metropolitan-district-council/wolverhampton","710928","Yoo Recruit LTD","CWC1011938","5,035.32","Agency Staff","190413367","19/01/2018","Managing Director","Managing Director","R1100"
"Wolverhampton City Council","http://opendatacommunities.org/id/metropolitan-district-council/wolverhampton","710928","Yoo Recruit LTD","CWC1011929","8,098.31","Agency Staff","190413371","19/01/2018","Customer Services","City Direct","R1100"
"Wolverhampton City Council","http://opendatacommunities.org/id/metropolitan-district-council/wolverhampton","710928","Yoo Recruit LTD","CWC100939","94.80","Agency Staff","190407358","05/01/2018","Learning Disability Provider","Support Plus","R1100"
"Wolverhampton City Council","http://opendatacommunities.org/id/metropolitan-district-council/wolverhampton","710928","Yoo Recruit LTD","CWC1009330","340.04","Agency Staff","190407378","05/01/2018","Catering","Other Catering - General Overheads","R1100"
"Wolverhampton City Council","http://opendatacommunities.org/id/metropolitan-district-council/wolverhampton","710928","Yoo Recruit LTD","CWC1009380","949.94","Agency Staff","190407426","05/01/2018","Governance Services","Business Support - Governance","R1100"
"Wolverhampton City Council","http://opendatacommunities.org/id/metropolitan-district-council/wolverhampton","710928","Yoo Recruit LTD","CWC1009385","8,092.60","Agency Staff","190407431","05/01/2018","Child Protection","CIN/CP Social Work Unit - Area 7","R1100"
"Wolverhampton City Council","http://opendatacommunities.org/id/metropolitan-district-council/wolverhampton","710928","Yoo Recruit LTD","CWC1009332","9,569.42","Agency Staff","190407380","05/01/2018","Customer Services","City Direct","R1100"
"Wolverhampton City Council","http://opendatacommunities.org/id/metropolitan-district-council/wolverhampton","710928","Yoo Recruit LTD","CWC1009351","1,565.20","Agency Staff","190407398","05/01/2018","Legal Services","Legal Services","R1100"
"Wolverhampton City Council","http://opendatacommunities.org/id/metropolitan-district-council/wolverhampton","710928","Yoo Recruit LTD","CWC1009335","169.65","Agency Staff","190407383","05/01/2018","Cleaning","Schools Cleaning","R1100"
"Wolverhampton City Council","http://opendatacommunities.org/id/metropolitan-district-council/wolverhampton","710928","Yoo Recruit LTD","CWC1009354","282.75","Agency Staff","190407401","05/01/2018","Visitor Economy","Bantock - Tea Rooms","R1100"
"Wolverhampton City Council","http://opendatacommunities.org/id/metropolitan-district-council/wolverhampton","710928","Yoo Recruit LTD","CWC1009343","442.52","Agency Staff","190407390","05/01/2018","Environmental Maintenance","Parks - Ranger Service","R1100"
"Wolverhampton City Council","http://opendatacommunities.org/id/metropolitan-district-council/wolverhampton","710928","Yoo Recruit LTD","CWC1009345","857.68","Agency Staff","190407392","05/01/2018","Parking Services","Parking Enforcement","R1100"
"Wolverhampton City Council","http://opendatacommunities.org/id/metropolitan-district-council/wolverhampton","710928","Yoo Recruit LTD","CWC1009368","1,328.43","Agency Staff","190407415","05/01/2018","Standards and Vulnerable Pupils","Music Support Team","R1100"
"Wolverhampton City Council","http://opendatacommunities.org/id/metropolitan-district-council/wolverhampton","710928","Yoo Recruit LTD","CWC1009362","338.10","Agency Staff","190407409","05/01/2018","Adult Education","Direct Delivery Team ( L.& D.)","R1100"
"Wolverhampton City Council","http://opendatacommunities.org/id/metropolitan-district-council/wolverhampton","710928","Yoo Recruit LTD","CWC1009363","360.30","Agency Staff","190407410","05/01/2018","Adult Education","Creative Studies Delivery Area","R1100"
"Wolverhampton City Council","http://opendatacommunities.org/id/metropolitan-district-council/wolverhampton","710928","Yoo Recruit LTD","CWC1009366","1,537.43","Agency Staff","190407413","05/01/2018","Adult Education","Language Studies Delivery Area","R1100"
"Wolverhampton City Council","http://opendatacommunities.org/id/metropolitan-district-council/wolverhampton","710928","Yoo Recruit LTD","CWC1009317","2,137.78","Agency Staff","190407366","05/01/2018","Adults Assessment & Care Management North","Assessment Team (North)","R1100"
"Wolverhampton City Council","http://opendatacommunities.org/id/metropolitan-district-council/wolverhampton","710928","Yoo Recruit LTD","CWC1009319","1,092.13","Agency Staff","190407368","05/01/2018","Leisure Services","Aldersley Leisure Village","R1100"
"Wolverhampton City Council","http://opendatacommunities.org/id/metropolitan-district-council/wolverhampton","710928","Yoo Recruit LTD","CWC1009314","291.63","Agency Staff","190407363","05/01/2018","Strategic Organisation Development","Blakenhall Community & Healthy Living Centre","R1100"
"Wolverhampton City Council","http://opendatacommunities.org/id/metropolitan-district-council/wolverhampton","710928","Yoo Recruit LTD","CWC100931","2,521.38","Agency Staff","190407350","05/01/2018","Looked After Children","Fostering Team & Allowances","R1100"
"Wolverhampton City Council","http://opendatacommunities.org/id/metropolitan-district-council/wolverhampton","710928","Yoo Recruit LTD","CWC1009315","995.88","Agency Staff","190407364","05/01/2018","Strategic Organisation Development","Global Budgets","R1100"
"Wolverhampton City Council","http://opendatacommunities.org/id/metropolitan-district-council/wolverhampton","710928","Yoo Recruit LTD","CWC1009397","6,698.33","Agency Staff","190407443","05/01/2018","Digital Transformation Programme","Digital Transformation Programme (Recharge to Capital)","R1100"
"Wolverhampton City Council","http://opendatacommunities.org/id/metropolitan-district-council/wolverhampton","710928","Yoo Recruit LTD","CWC1009338","1,463.35","Agency Staff","190407386","05/01/2018","ICTS","Strategic ICTS","R1100"
"Wolverhampton City Council","http://opendatacommunities.org/id/metropolitan-district-council/wolverhampton","710928","Yoo Recruit LTD","CWC1009323","128.83","Agency Staff","190407371","05/01/2018","Health Protection & NHS Facing","Expenditure","R1100"
"Wolverhampton City Council","http://opendatacommunities.org/id/metropolitan-district-council/wolverhampton","710928","Yoo Recruit LTD","CWC1008816","13,346.20","Agency Staff","190407463","05/01/2018","Emergency Duty Team","Emergency Duty Team","R1100"
"Wolverhampton City Council","http://opendatacommunities.org/id/metropolitan-district-council/wolverhampton","710928","Yoo Recruit LTD","CWC1008867","445.94","Agency Staff","190407512","05/01/2018","Adult Education","Creative Studies Delivery Area","R1100"
"Wolverhampton City Council","http://opendatacommunities.org/id/metropolitan-district-council/wolverhampton","710928","Yoo Recruit LTD","CWC1008861","929.96","Agency Staff","190407506","05/01/2018","Housing","Housing Regeneration - Strategy & Development","R1100"
"Wolverhampton City Council","http://opendatacommunities.org/id/metropolitan-district-council/wolverhampton","710928","Yoo Recruit LTD","CWC1008885","124.53","Agency Staff","190407529","05/01/2018","Visitor Economy","Curatorial - Cultural Learning","R1100"
"Wolverhampton City Council","http://opendatacommunities.org/id/metropolitan-district-council/wolverhampton","710928","Yoo Recruit LTD","CWC1008870","865.87","Agency Staff","190407515","05/01/2018","Adult Education","Language Studies Delivery Area","R1100"
"Wolverhampton City Council","http://opendatacommunities.org/id/metropolitan-district-council/wolverhampton","710928","Yoo Recruit LTD","CWC1008871","482.65","Agency Staff","190407516","05/01/2018","Adult Education","Learner Services","R1100"
"Wolverhampton City Council","http://opendatacommunities.org/id/metropolitan-district-council/wolverhampton","710928","Yoo Recruit LTD","CWC1008882","724.46","Agency Staff","190407526","05/01/2018","Safeguarding","Safeguarding & Quality Administration","R1100"
"Wolverhampton City Council","http://opendatacommunities.org/id/metropolitan-district-council/wolverhampton","710928","Yoo Recruit LTD","CWC10088106","2,568.46","Agency Staff","190407549","05/01/2018","Housing","General Housing Administration","R1100"
"Wolverhampton City Council","http://opendatacommunities.org/id/metropolitan-district-council/wolverhampton","710928","Yoo Recruit LTD","CWC1008891","16,816.57","Agency Staff","190407535","05/01/2018","Child Protection","CIN/CP Social Work Unit - Area 7","R1100"
"Wolverhampton City Council","http://opendatacommunities.org/id/metropolitan-district-council/wolverhampton","710928","Yoo Recruit LTD","CWC100882","72,690.84","Agency Staff","190407449","05/01/2018","Looked After Children","Fostering Team & Allowances","R1100"
"Wolverhampton City Council","http://opendatacommunities.org/id/metropolitan-district-council/wolverhampton","710928","Yoo Recruit LTD","CWC1008827","1,173.99","Agency Staff","190407473","05/01/2018","Safeguarding","Safeguarding and Quality - Adults","R1100"
"Wolverhampton City Council","http://opendatacommunities.org/id/metropolitan-district-council/wolverhampton","710928","Yoo Recruit LTD","CWC1008841","169.65","Agency Staff","190407487","05/01/2018","Cleaning","Other Cleaning","R1100"
"Wolverhampton City Council","http://opendatacommunities.org/id/metropolitan-district-council/wolverhampton","710928","Yoo Recruit LTD","CWC1008831","726.00","Agency Staff","190407477","05/01/2018","Audit Services","Audit Services","R1100"
"Wolverhampton City Council","http://opendatacommunities.org/id/metropolitan-district-council/wolverhampton","710928","Yoo Recruit LTD","CWC1008829","403.52","Agency Staff","190407475","05/01/2018","Safeguarding","Safeguarding Children","R1100"
"Wolverhampton City Council","http://opendatacommunities.org/id/metropolitan-district-council/wolverhampton","710928","Yoo Recruit LTD","CWC1008852","2,419.35","Agency Staff","190407497","05/01/2018","Strategic Finance","Strategic Finance","R1100"
"Wolverhampton City Council","http://opendatacommunities.org/id/metropolitan-district-council/wolverhampton","710928","Yoo Recruit LTD","CWC1008851","468.42","Agency Staff","190407496","05/01/2018","Revenues & Benefits","Revenues","R1100"
"Wolverhampton City Council","http://opendatacommunities.org/id/metropolitan-district-council/wolverhampton","710928","Yoo Recruit LTD","CWC1008849","1,016.68","Agency Staff","190407494","05/01/2018","Fleet Services","Passenger Transport - General","R1100"
"Wolverhampton City Council","http://opendatacommunities.org/id/metropolitan-district-council/wolverhampton","710928","Yoo Recruit LTD","CWC1008818","138.76","Agency Staff","190407465","05/01/2018","Strategic Organisation Development","Blakenhall Community & Healthy Living Centre","R1100"
"Wolverhampton City Council","http://opendatacommunities.org/id/metropolitan-district-council/wolverhampton","710928","Yoo Recruit LTD","CWC1008552","327.99","Agency Staff","190407616","05/01/2018","Visitor Economy","Bantock - Tea Rooms","R1100"
"Wolverhampton City Council","http://opendatacommunities.org/id/metropolitan-district-council/wolverhampton","710928","Yoo Recruit LTD","CWC1008560","1,726.67","Agency Staff","190407624","05/01/2018","Standards and Vulnerable Pupils","Music Support Team","R1100"
"Wolverhampton City Council","http://opendatacommunities.org/id/metropolitan-district-council/wolverhampton","710928","Yoo Recruit LTD","CWC1008567","141.38","Agency Staff","190407631","05/01/2018","Schools","Westacre Infant School","R1100"
"Wolverhampton City Council","http://opendatacommunities.org/id/metropolitan-district-council/wolverhampton","710928","Yoo Recruit LTD","CWC1008578","1,214.71","Agency Staff","190407642","05/01/2018","Child Protection","CIN/CP Social Work Unit - Area 7","R1100"
"Wolverhampton City Council","http://opendatacommunities.org/id/metropolitan-district-council/wolverhampton","710928","Yoo Recruit LTD","CWC1008577","12,810.75","Agency Staff","190407641","05/01/2018","Child Protection","CIN/CP Social Work Unit - Area 1","R1100"
"Wolverhampton City Council","http://opendatacommunities.org/id/metropolitan-district-council/wolverhampton","710928","Yoo Recruit LTD","CWC1008541","358.80","Agency Staff","190407605","05/01/2018","Environmental Maintenance","Parks - Ranger Service","R1100"
"Wolverhampton City Council","http://opendatacommunities.org/id/metropolitan-district-council/wolverhampton","710928","Yoo Recruit LTD","CWC1008516","1,080.53","Agency Staff","190407582","05/01/2018","Leisure Services","Aldersley Leisure Village","R1100"
"Wolverhampton City Council","http://opendatacommunities.org/id/metropolitan-district-council/wolverhampton","710928","Yoo Recruit LTD","CWC1008510","1,058.60","Agency Staff","190407576","05/01/2018","Learning Disability Provider","Ernest Bold Court","R1100"
"Wolverhampton City Council","http://opendatacommunities.org/id/metropolitan-district-council/wolverhampton","710928","Yoo Recruit LTD","CWC100857","2,025.94","Agency Staff","190407573","05/01/2018","Child Protection","Childrens with Disabilities Team","R1100"
"Wolverhampton City Council","http://opendatacommunities.org/id/metropolitan-district-council/wolverhampton","710928","Yoo Recruit LTD","CWC1008547","1,595.87","Agency Staff","190407611","05/01/2018","Human Resources","HR Advice","R1100"
"Wolverhampton City Council","http://opendatacommunities.org/id/metropolitan-district-council/wolverhampton","710928","Yoo Recruit LTD","CWC1008416","461.21","Agency Staff","190407670","05/01/2018","Leisure Services","WV Active Catering","R1100"
"Wolverhampton City Council","http://opendatacommunities.org/id/metropolitan-district-council/wolverhampton","710928","Yoo Recruit LTD","CWC1008415","2,254.10","Agency Staff","190407669","05/01/2018","Independent Living Service","Independent Living Service","R1100"
"Wolverhampton City Council","http://opendatacommunities.org/id/metropolitan-district-council/wolverhampton","710928","Yoo Recruit LTD","CWC1008424","491.99","Agency Staff","190407678","05/01/2018","Catering","Education Catering - General Overheads","R1100"
"Wolverhampton City Council","http://opendatacommunities.org/id/metropolitan-district-council/wolverhampton","710928","Yoo Recruit LTD","CWC1008411","1,382.50","Agency Staff","190407665","05/01/2018","Learning Disability Provider","Duke Street Bungalows","R1100"
"Wolverhampton City Council","http://opendatacommunities.org/id/metropolitan-district-council/wolverhampton","710928","Yoo Recruit LTD","CWC100847","911.68","Agency Staff","190407661","05/01/2018","Independent Living Service","Adaptations Team","R1100"
"Wolverhampton City Council","http://opendatacommunities.org/id/metropolitan-district-council/wolverhampton","710928","Yoo Recruit LTD","CWC1008428","11,826.67","Agency Staff","190407682","05/01/2018","Customer Services","City Direct","R1100"
"Wolverhampton City Council","http://opendatacommunities.org/id/metropolitan-district-council/wolverhampton","710928","Yoo Recruit LTD","CWC1008430","1,104.88","Agency Staff","190407684","05/01/2018","Cleaning","External Cleaning","R1100"
"Wolverhampton City Council","http://opendatacommunities.org/id/metropolitan-district-council/wolverhampton","710928","Yoo Recruit LTD","CWC1008436","2,739.28","Agency Staff","190407689","05/01/2018","Managing Director","Managing Director","R1100"
"Wolverhampton City Council","http://opendatacommunities.org/id/metropolitan-district-council/wolverhampton","710928","Yoo Recruit LTD","CWC1008458","1,500.42","Agency Staff","190407711","05/01/2018","Standards and Vulnerable Pupils","Music Support Team","R1100"
"Wolverhampton City Council","http://opendatacommunities.org/id/metropolitan-district-council/wolverhampton","710928","Yoo Recruit LTD","CWC1008446","466.00","Agency Staff","190407699","05/01/2018","Democratic Services","Local Government Elections","R1100"
"Wolverhampton City Council","http://opendatacommunities.org/id/metropolitan-district-council/wolverhampton","710928","Yoo Recruit LTD","CWC1008447","1,834.92","Agency Staff","190407700","05/01/2018","Legal Services","Legal Services","R1100"
"Wolverhampton City Council","http://opendatacommunities.org/id/metropolitan-district-council/wolverhampton","710928","Yoo Recruit LTD","CWC1008460","808.64","Agency Staff","190407713","05/01/2018","Human Resources","Schools HR Consultants","R1100"
"Wolverhampton City Council","http://opendatacommunities.org/id/metropolitan-district-council/wolverhampton","710928","Yoo Recruit LTD","CWC1008463","339.30","Agency Staff","190407716","05/01/2018","School Planning & Resources","Special - Transport","R1100"
"Wolverhampton City Council","http://opendatacommunities.org/id/metropolitan-district-council/wolverhampton","710928","Yoo Recruit LTD","CWC1008472","471.00","Agency Staff","190407725","05/01/2018","Governance Services","Business Support - Governance","R1100"
"Wolverhampton City Council","http://opendatacommunities.org/id/metropolitan-district-council/wolverhampton","710928","Yoo Recruit LTD","CWC1008476","472.88","Agency Staff","190407729","05/01/2018","Early Intervention","EIP Locality 5 � Whitmore Reans","R1100"
"Wolverhampton City Council","http://opendatacommunities.org/id/metropolitan-district-council/wolverhampton","710928","Yoo Recruit LTD","CWC1008477","126.10","Agency Staff","190407730","05/01/2018","Specialist Support","Vulnerable Young Persons Team","R1100"
"Wolverhampton City Council","http://opendatacommunities.org/id/metropolitan-district-council/wolverhampton","710928","Yoo Recruit LTD","CWC100844","1,260.00","Agency Staff","190407658","05/01/2018","Looked After Children","LAC Education Team (LACE)","R1100"
"Wolverhampton City Council","http://opendatacommunities.org/id/metropolitan-district-council/wolverhampton","710928","Yoo Recruit LTD","CWC1010949","468.42","Agency Staff","190407136","03/01/2018","Revenues & Benefits","Revenues","R1100"
"Wolverhampton City Council","http://opendatacommunities.org/id/metropolitan-district-council/wolverhampton","710928","Yoo Recruit LTD","CWC1010950","1,613.12","Agency Staff","190407137","03/01/2018","Strategic Finance","Strategic Finance","R1100"
"Wolverhampton City Council","http://opendatacommunities.org/id/metropolitan-district-council/wolverhampton","710928","Yoo Recruit LTD","CWC1010957","451.24","Agency Staff","190407143","03/01/2018","Housing","Private Sector Housing","R1100"
"Wolverhampton City Council","http://opendatacommunities.org/id/metropolitan-district-council/wolverhampton","710928","Yoo Recruit LTD","CWC1010956","1,447.07","Agency Staff","190407142","03/01/2018","Housing","General Housing Administration","R1100"
"Wolverhampton City Council","http://opendatacommunities.org/id/metropolitan-district-council/wolverhampton","710928","Yoo Recruit LTD","CWC1010978","593.50","Agency Staff","190407163","03/01/2018","Public Protection","Regulatory Services - Works in Default","R1100"
"Wolverhampton City Council","http://opendatacommunities.org/id/metropolitan-district-council/wolverhampton","710928","Yoo Recruit LTD","CWC1010993","567.46","Agency Staff","190407178","03/01/2018","Early Intervention","EIP Locality 5 � Whitmore Reans","R1100"
"Wolverhampton City Council","http://opendatacommunities.org/id/metropolitan-district-council/wolverhampton","710928","Yoo Recruit LTD","CWC1010992","2,618.31","Agency Staff","190407177","03/01/2018","Child Protection","MASH","R1100"
"Wolverhampton City Council","http://opendatacommunities.org/id/metropolitan-district-council/wolverhampton","710928","Yoo Recruit LTD","CWC1010985","943.92","Agency Staff","190407170","03/01/2018","Governance Services","Business Support - Governance","R1100"
"Wolverhampton City Council","http://opendatacommunities.org/id/metropolitan-district-council/wolverhampton","710928","Yoo Recruit LTD","CWC1010988","1,254.57","Agency Staff","190407173","03/01/2018","The Hub","Payroll/HR","R1100"
"Wolverhampton City Council","http://opendatacommunities.org/id/metropolitan-district-council/wolverhampton","710928","Yoo Recruit LTD","CWC1010910","1,132.57","Agency Staff","190407097","03/01/2018","Adults Assessment & Care Management North","Learning Disabilities Assessment and Care Management","R1100"
"Wolverhampton City Council","http://opendatacommunities.org/id/metropolitan-district-council/wolverhampton","710928","Yoo Recruit LTD","CWC1010911","94.80","Agency Staff","190407098","03/01/2018","Learning Disability Provider","Support Plus","R1100"
"Wolverhampton City Council","http://opendatacommunities.org/id/metropolitan-district-council/wolverhampton","710928","Yoo Recruit LTD","CWC101091","17,086.42","Agency Staff","190407088","03/01/2018","Service Director Children & Young People","Service Director Children & Young People","R1100"
"Wolverhampton City Council","http://opendatacommunities.org/id/metropolitan-district-council/wolverhampton","710928","Yoo Recruit LTD","CWC101097","3,672.02","Agency Staff","190407094","03/01/2018","Youth Offending","Youth Offending Team","R1100"
"Wolverhampton City Council","http://opendatacommunities.org/id/metropolitan-district-council/wolverhampton","710928","Yoo Recruit LTD","CWC1010928","465.26","Agency Staff","190407115","03/01/2018","Business Continuity & Emergency Planning","Business Continuity & Emergency Planning","R1100"
"Wolverhampton City Council","http://opendatacommunities.org/id/metropolitan-district-council/wolverhampton","710928","Yoo Recruit LTD","CWC1010123","3,198.20","Agency Staff","190407232","03/01/2018","Leisure Services","Bert Williams Leisure Centre","R1100"
"Wolverhampton City Council","http://opendatacommunities.org/id/metropolitan-district-council/wolverhampton","710928","Yoo Recruit LTD","CWC1010134","10,617.92","Agency Staff","190407243","03/01/2018","Customer Services","City Direct","R1100"
"Wolverhampton City Council","http://opendatacommunities.org/id/metropolitan-district-council/wolverhampton","710928","Yoo Recruit LTD","CWC1010130","407.16","Agency Staff","190407239","03/01/2018","Catering","Education Catering - General Overheads","R1100"
"Wolverhampton City Council","http://opendatacommunities.org/id/metropolitan-district-council/wolverhampton","710928","Yoo Recruit LTD","CWC1010131","1,495.75","Agency Staff","190407240","03/01/2018","Catering","Primary Schools Catering","R1100"
"Wolverhampton City Council","http://opendatacommunities.org/id/metropolitan-district-council/wolverhampton","710928","Yoo Recruit LTD","CWC1010140","1,463.35","Agency Staff","190407249","03/01/2018","ICTS","Strategic ICTS","R1100"
"Wolverhampton City Council","http://opendatacommunities.org/id/metropolitan-district-council/wolverhampton","710928","Yoo Recruit LTD","CWC1010144","415.88","Agency Staff","190407253","03/01/2018","Environmental Maintenance","Ground Maintenance Overheads","R1100"
"Wolverhampton City Council","http://opendatacommunities.org/id/metropolitan-district-council/wolverhampton","710928","Yoo Recruit LTD","CWC1010152","100.34","Agency Staff","190407261","03/01/2018","Democratic Services","Electoral Registration","R1100"
"Wolverhampton City Council","http://opendatacommunities.org/id/metropolitan-district-council/wolverhampton","710928","Yoo Recruit LTD","CWC1010160","3,895.00","Agency Staff","190407268","03/01/2018","City Development","City Development  - Core Team","R1100"
"Wolverhampton City Council","http://opendatacommunities.org/id/metropolitan-district-council/wolverhampton","710928","Yoo Recruit LTD","CWC1010176","451.80","Agency Staff","190407283","03/01/2018","Public Protection","Regulatory Services - Works in Default","R1100"
"Wolverhampton City Council","http://opendatacommunities.org/id/metropolitan-district-council/wolverhampton","710928","Yoo Recruit LTD","CWC1010169","902.99","Agency Staff","190407277","03/01/2018","Standards and Vulnerable Pupils","Music Support Team","R1100"
"Wolverhampton City Council","http://opendatacommunities.org/id/metropolitan-district-council/wolverhampton","710928","Yoo Recruit LTD","CWC1010171","723.52","Agency Staff","190407279","03/01/2018","Human Resources","Schools HR Consultants","R1100"
"Wolverhampton City Council","http://opendatacommunities.org/id/metropolitan-district-council/wolverhampton","710928","Yoo Recruit LTD","CWC1010184","1,500.29","Agency Staff","190407291","03/01/2018","The Hub","Payroll/HR","R1100"
"Wolverhampton City Council","http://opendatacommunities.org/id/metropolitan-district-council/wolverhampton","710928","Yoo Recruit LTD","CWC1010193","248.03","Agency Staff","190407300","03/01/2018","Adults Assessment & Care Management West","Adult Services � West","R1100"
"Wolverhampton City Council","http://opendatacommunities.org/id/metropolitan-district-council/wolverhampton","710928","Yoo Recruit LTD","CWC1010126","630.30","Agency Staff","190407235","03/01/2018","Safeguarding","MCA General","R1100"
"Wolverhampton City Council","http://opendatacommunities.org/id/metropolitan-district-council/wolverhampton","710928","Yoo Recruit LTD","CWC101015","733.30","Agency Staff","190407214","03/01/2018","Looked After Children","LAC Transitions Team","R1100"
"Wolverhampton City Council","http://opendatacommunities.org/id/metropolitan-district-council/wolverhampton","710928","Yoo Recruit LTD","CWC101101","343.33","Agency Staff","190406621","03/01/2018","Looked After Children","Adoption and Residence Team & Allowances","R1100"
"Wolverhampton City Council","http://opendatacommunities.org/id/metropolitan-district-council/wolverhampton","710928","Yoo Recruit LTD","CWC1011032","101.79","Agency Staff","190406651","03/01/2018","Cleaning","Other Cleaning","R1100"
"Wolverhampton City Council","http://opendatacommunities.org/id/metropolitan-district-council/wolverhampton","710928","Yoo Recruit LTD","CWC101102","246.44","Agency Staff","190406622","03/01/2018","Looked After Children","Head of Service - LAC","R1100"
"Wolverhampton City Council","http://opendatacommunities.org/id/metropolitan-district-council/wolverhampton","710928","Yoo Recruit LTD","CWC1011084","11,838.13","Agency Staff","190406701","03/01/2018","Service Director Adults","Service Director � Adults","R1100"
"Wolverhampton City Council","http://opendatacommunities.org/id/metropolitan-district-council/wolverhampton","710928","Yoo Recruit LTD","CWC1011025","650.34","Agency Staff","190406644","03/01/2018","Catering","Primary Schools Catering","R1100"
"Wolverhampton City Council","http://opendatacommunities.org/id/metropolitan-district-council/wolverhampton","710928","Yoo Recruit LTD","CWC1011043","653.07","Agency Staff","190406662","03/01/2018","Democratic Services","Register Office","R1100"
"Wolverhampton City Council","http://opendatacommunities.org/id/metropolitan-district-council/wolverhampton","710928","Yoo Recruit LTD","CWC1011088","962.76","Agency Staff","190406705","03/01/2018","Leisure Services","WV Active Catering - Central","R1100"
"Wolverhampton City Council","http://opendatacommunities.org/id/metropolitan-district-council/wolverhampton","710928","Yoo Recruit LTD","CWC1011077","1,606.05","Agency Staff","190406694","03/01/2018","Child Protection","CIN/CP Social Work Unit - Area 2","R1100"
"Wolverhampton City Council","http://opendatacommunities.org/id/metropolitan-district-council/wolverhampton","710928","Yoo Recruit LTD","CWC101104","598.50","Agency Staff","190406624","03/01/2018","Looked After Children","LAC Education Team (LACE)","R1100"
"Wolverhampton City Council","http://opendatacommunities.org/id/metropolitan-district-council/wolverhampton","710928","Yoo Recruit LTD","CWC1011040","384.54","Agency Staff","190406659","03/01/2018","Fleet Services","Fleet Management","R1100"
"Wolverhampton City Council","http://opendatacommunities.org/id/metropolitan-district-council/wolverhampton","710928","Yoo Recruit LTD","CWC1011041","1,070.53","Agency Staff","190406660","03/01/2018","Fleet Services","Passenger Transport - General","R1100"
"Wolverhampton City Council","http://opendatacommunities.org/id/metropolitan-district-council/wolverhampton","710928","Yoo Recruit LTD","CWC1011028","8,418.11","Agency Staff","190406647","03/01/2018","Customer Services","City Direct","R1100"
"Wolverhampton City Council","http://opendatacommunities.org/id/metropolitan-district-council/wolverhampton","710928","Yoo Recruit LTD","CWC1011038","252.90","Agency Staff","190406657","03/01/2018","Environmental Maintenance","Ground Maintenance Overheads","R1100"
"Wolverhampton City Council","http://opendatacommunities.org/id/metropolitan-district-council/wolverhampton","710928","Yoo Recruit LTD","CWC1011016","2,563.54","Agency Staff","190406636","03/01/2018","Adults Assessment & Care Management North","Assessment Team (North)","R1100"
"Wolverhampton City Council","http://opendatacommunities.org/id/metropolitan-district-council/wolverhampton","710928","Yoo Recruit LTD","CWC1011015","3,233.75","Agency Staff","190406635","03/01/2018","Independent Living Service","Independent Living Service","R1100"
"Wolverhampton City Council","http://opendatacommunities.org/id/metropolitan-district-council/wolverhampton","710928","Yoo Recruit LTD","CWC1011076","1,307.58","Agency Staff","190406693","03/01/2018","Child Protection","CIN/CP Social Work Unit - Area 1","R1100"
"Wolverhampton City Council","http://opendatacommunities.org/id/metropolitan-district-council/wolverhampton","710928","Yoo Recruit LTD","CWC1011053","262.68","Agency Staff","190406671","03/01/2018","Licensing","Licensing - Private Hire Vehicles","R1100"
"Wolverhampton City Council","http://opendatacommunities.org/id/metropolitan-district-council/wolverhampton","710928","Yoo Recruit LTD","CWC1009334","613.86","Agency Staff","190407382","05/01/2018","Cleaning","External Cleaning","R1100"
"Wolverhampton City Council","http://opendatacommunities.org/id/metropolitan-district-council/wolverhampton","710928","Yoo Recruit LTD","CWC1009331","200.69","Agency Staff","190407379","05/01/2018","Catering","Meals on Wheels","R1100"
"Wolverhampton City Council","http://opendatacommunities.org/id/metropolitan-district-council/wolverhampton","710928","Yoo Recruit LTD","CWC1009387","4,151.48","Agency Staff","190407433","05/01/2018","Digital Transformation Programme","Digital Transformation Programme","R1100"
"Wolverhampton City Council","http://opendatacommunities.org/id/metropolitan-district-council/wolverhampton","710928","Yoo Recruit LTD","CWC1009344","720.93","Agency Staff","190407391","05/01/2018","Fleet Services","Passenger Transport - General","R1100"
"Wolverhampton City Council","http://opendatacommunities.org/id/metropolitan-district-council/wolverhampton","710928","Yoo Recruit LTD","CWC1009352","3,299.10","Agency Staff","190407399","05/01/2018","Strategic Director Place","Strategic Director Place","R1100"
"Wolverhampton City Council","http://opendatacommunities.org/id/metropolitan-district-council/wolverhampton","710928","Yoo Recruit LTD","CWC1009321","3,220.03","Agency Staff","190407370","05/01/2018","Leisure Services","Central Baths","R1100"
"Wolverhampton City Council","http://opendatacommunities.org/id/metropolitan-district-council/wolverhampton","710928","Yoo Recruit LTD","CWC1009320","3,578.61","Agency Staff","190407369","05/01/2018","Leisure Services","Bert Williams Leisure Centre","R1100"
"Wolverhampton City Council","http://opendatacommunities.org/id/metropolitan-district-council/wolverhampton","710928","Yoo Recruit LTD","CWC100933","630.00","Agency Staff","190407352","05/01/2018","Looked After Children","LAC Education Team (LACE)","R1100"
"Wolverhampton City Council","http://opendatacommunities.org/id/metropolitan-district-council/wolverhampton","710928","Yoo Recruit LTD","CWC1008864","5,888.87","Agency Staff","190407509","05/01/2018","Adult Education","Admin & Support","R1100"
"Wolverhampton City Council","http://opendatacommunities.org/id/metropolitan-district-council/wolverhampton","710928","Yoo Recruit LTD","CWC1008863","3,007.35","Agency Staff","190407508","05/01/2018","Public Protection","EHTS Staffing","R1100"
"Wolverhampton City Council","http://opendatacommunities.org/id/metropolitan-district-council/wolverhampton","710928","Yoo Recruit LTD","CWC10088100","689.08","Agency Staff","190407544","05/01/2018","Adults Assessment & Care Management SLC","Supporting Life Choices","R1100"
"Wolverhampton City Council","http://opendatacommunities.org/id/metropolitan-district-council/wolverhampton","710928","Yoo Recruit LTD","CWC1008896","539.84","Agency Staff","190407540","05/01/2018","Headstart","Headstart Phase 3","R1100"
"Wolverhampton City Council","http://opendatacommunities.org/id/metropolitan-district-council/wolverhampton","710928","Yoo Recruit LTD","CWC1008893","4,327.82","Agency Staff","190407537","05/01/2018","Digital Transformation Programme","Digital Transformation Programme","R1100"
"Wolverhampton City Council","http://opendatacommunities.org/id/metropolitan-district-council/wolverhampton","710928","Yoo Recruit LTD","CWC1008890","7,058.46","Agency Staff","190407534","05/01/2018","Child Protection","CIN/CP Social Work Unit - Area 5","R1100"
"Wolverhampton City Council","http://opendatacommunities.org/id/metropolitan-district-council/wolverhampton","710928","Yoo Recruit LTD","CWC1008894","662.03","Agency Staff","190407538","05/01/2018","Early Intervention","EIP Locality 5 � Whitmore Reans","R1100"
"Wolverhampton City Council","http://opendatacommunities.org/id/metropolitan-district-council/wolverhampton","710928","Yoo Recruit LTD","CWC1008862","3,943.04","Agency Staff","190407507","05/01/2018","City Development","City Development  - Core Team","R1100"
"Wolverhampton City Council","http://opendatacommunities.org/id/metropolitan-district-council/wolverhampton","710928","Yoo Recruit LTD","CWC1008561","533.20","Agency Staff","190407625","05/01/2018","Standards and Vulnerable Pupils","Music Grant (Arts Council)","R1100"
"Wolverhampton City Council","http://opendatacommunities.org/id/metropolitan-district-council/wolverhampton","710928","Yoo Recruit LTD","CWC1008586","559.21","Agency Staff","190407650","05/01/2018","Leisure Services","WV Active Catering - Central","R1100"
"Wolverhampton City Council","http://opendatacommunities.org/id/metropolitan-district-council/wolverhampton","710928","Yoo Recruit LTD","CWC1008453","3,630.11","Agency Staff","190407706","05/01/2018","Adult Education","Admin & Support","R1100"
"Wolverhampton City Council","http://opendatacommunities.org/id/metropolitan-district-council/wolverhampton","710928","Yoo Recruit LTD","CWC1008464","518.86","Agency Staff","190407717","05/01/2018","School Planning & Resources","Technical Support","R1100"
"Wolverhampton City Council","http://opendatacommunities.org/id/metropolitan-district-council/wolverhampton","710928","Yoo Recruit LTD","CWC1008469","3,505.70","Agency Staff","190407722","05/01/2018","Visitor Economy","Civic Halls Non-Direct Event Management Account","R1100"
"Wolverhampton City Council","http://opendatacommunities.org/id/metropolitan-district-council/wolverhampton","710928","Yoo Recruit LTD","CWC1008470","3,479.10","Agency Staff","190407723","05/01/2018","Director of Governance","Director of Governance","R1100"
"Wolverhampton City Council","http://opendatacommunities.org/id/metropolitan-district-council/wolverhampton","710928","Yoo Recruit LTD","CWC1008418","4,086.40","Agency Staff","190407672","05/01/2018","Leisure Services","Bert Williams Leisure Centre","R1100"
"Wolverhampton City Council","http://opendatacommunities.org/id/metropolitan-district-council/wolverhampton","710928","Yoo Recruit LTD","CWC1010143","1,039.80","Agency Staff","190407252","03/01/2018","Corporate Business Support","Corporate Programmes","R1100"
"Wolverhampton City Council","http://opendatacommunities.org/id/metropolitan-district-council/wolverhampton","710928","Yoo Recruit LTD","CWC1010139","491.79","Agency Staff","190407248","03/01/2018","Democratic Services","Mayoral Expenses","R1100"
"Wolverhampton City Council","http://opendatacommunities.org/id/metropolitan-district-council/wolverhampton","710928","Yoo Recruit LTD","CWC1010156","520.26","Agency Staff","190407265","03/01/2018","Visitor Economy","Bantock - Tea Rooms","R1100"
"Wolverhampton City Council","http://opendatacommunities.org/id/metropolitan-district-council/wolverhampton","710928","Yoo Recruit LTD","CWC1010175","432.38","Agency Staff","190407282","03/01/2018","School Planning & Resources","Technical Support","R1100"
"Wolverhampton City Council","http://opendatacommunities.org/id/metropolitan-district-council/wolverhampton","710928","Yoo Recruit LTD","CWC101018","1,172.60","Agency Staff","190407217","03/01/2018","Child Protection","Childrens with Disabilities Team","R1100"
"Wolverhampton City Council","http://opendatacommunities.org/id/metropolitan-district-council/wolverhampton","710928","Yoo Recruit LTD","CWC1010113","1,023.05","Agency Staff","190407222","03/01/2018","Learning Disability Provider","Ernest Bold Court","R1100"
"Wolverhampton City Council","http://opendatacommunities.org/id/metropolitan-district-council/wolverhampton","710928","Yoo Recruit LTD","CWC1010954","2,390.52","Agency Staff","190407140","03/01/2018","Service Director City Economy","Service Director City Economy","R1100"
"Wolverhampton City Council","http://opendatacommunities.org/id/metropolitan-district-council/wolverhampton","710928","Yoo Recruit LTD","CWC1010968","830.50","Agency Staff","190407154","03/01/2018","Adult Education","Language Studies Delivery Area","R1100"
"Wolverhampton City Council","http://opendatacommunities.org/id/metropolitan-district-council/wolverhampton","710928","Yoo Recruit LTD","CWC1010975","2,002.63","Agency Staff","190407160","03/01/2018","School Planning & Resources","Special - Transport","R1100"
"Wolverhampton City Council","http://opendatacommunities.org/id/metropolitan-district-council/wolverhampton","710928","Yoo Recruit LTD","CWC1010979","372.00","Agency Staff","190407164","03/01/2018","The Hub","Quality and Improvement","R1100"
"Wolverhampton City Council","http://opendatacommunities.org/id/metropolitan-district-council/wolverhampton","710928","Yoo Recruit LTD","CWC1010983","2,162.31","Agency Staff","190407168","03/01/2018","Director of Governance","Director of Governance","R1100"
"Wolverhampton City Council","http://opendatacommunities.org/id/metropolitan-district-council/wolverhampton","710928","Yoo Recruit LTD","CWC1010991","4,085.91","Agency Staff","190407176","03/01/2018","Child Protection","CIN/CP Social Work Unit - Area 7","R1100"
"Wolverhampton City Council","http://opendatacommunities.org/id/metropolitan-district-council/wolverhampton","710928","Yoo Recruit LTD","CWC1010996","3,061.75","Agency Staff","190407181","03/01/2018","Adults Assessment & Care Management West","Adult Services � West","R1100"
"Wolverhampton City Council","http://opendatacommunities.org/id/metropolitan-district-council/wolverhampton","710928","Yoo Recruit LTD","CWC101092","4,865.59","Agency Staff","190407089","03/01/2018","Looked After Children","Fostering Team & Allowances","R1100"
"Wolverhampton City Council","http://opendatacommunities.org/id/metropolitan-district-council/wolverhampton","710928","Yoo Recruit LTD","CWC1010917","799.02","Agency Staff","190407104","03/01/2018","Strategic Organisation Development","Global Budgets","R1100"
"Wolverhampton City Council","http://opendatacommunities.org/id/metropolitan-district-council/wolverhampton","710928","Yoo Recruit LTD","CWC1010924","2,461.63","Agency Staff","190407111","03/01/2018","Leisure Services","Central Baths","R1100"
"Wolverhampton City Council","http://opendatacommunities.org/id/metropolitan-district-council/wolverhampton","710928","Yoo Recruit LTD","CWC1010938","428.74","Agency Staff","190407125","03/01/2018","Democratic Services","Mayoral Expenses","R1100"
"Wolverhampton City Council","http://opendatacommunities.org/id/metropolitan-district-council/wolverhampton","710928","Yoo Recruit LTD","CWC1010945","346.84","Agency Staff","190407132","03/01/2018","Environmental Maintenance","Parks - Ranger Service","R1100"
"Wolverhampton City Council","http://opendatacommunities.org/id/metropolitan-district-council/wolverhampton","710928","Yoo Recruit LTD","CWC1011066","84.83","Agency Staff","190406683","03/01/2018","Schools","Westacre Infant School","R1100"
"Wolverhampton City Council","http://opendatacommunities.org/id/metropolitan-district-council/wolverhampton","710928","Yoo Recruit LTD","CWC1011057","533.79","Agency Staff","190406675","03/01/2018","Adult Education","Creative Studies Delivery Area","R1100"
"Wolverhampton City Council","http://opendatacommunities.org/id/metropolitan-district-council/wolverhampton","710928","Yoo Recruit LTD","CWC1011049","203.58","Agency Staff","190406667","03/01/2018","Visitor Economy","Bantock - Tea Rooms","R1100"
"Wolverhampton City Council","http://opendatacommunities.org/id/metropolitan-district-council/wolverhampton","710928","Yoo Recruit LTD","CWC1011078","128.70","Agency Staff","190406695","03/01/2018","Child Protection","CIN/CP Social Work Unit - Area 7","R1100"
"Wolverhampton City Council","http://opendatacommunities.org/id/metropolitan-district-council/wolverhampton","710928","Yoo Recruit LTD","CWC1011071","8,251.56","Agency Staff","190406688","03/01/2018","Visitor Economy","Civic Halls Non-Direct Event Management Account","R1100"
"Wolverhampton City Council","http://opendatacommunities.org/id/metropolitan-district-council/wolverhampton","710928","Yoo Recruit LTD","CWC1011036","2,980.55","Agency Staff","190406655","03/01/2018","ICTS","Application Management","R1100"
"Wolverhampton City Council","http://opendatacommunities.org/id/metropolitan-district-council/wolverhampton","710928","Yoo Recruit LTD","CWC1011073","2,818.81","Agency Staff","190406690","03/01/2018","Leisure Services","WV Active Business Support","R1100"
"Wolverhampton City Council","http://opendatacommunities.org/id/metropolitan-district-council/wolverhampton","710928","Yoo Recruit LTD","CWC1011971","461.38","Agency Staff","190413313","19/01/2018","Democratic Services","Management Trainee Programme","R1100"
"Wolverhampton City Council","http://opendatacommunities.org/id/metropolitan-district-council/wolverhampton","710928","Yoo Recruit LTD","CWC1011922","324.00","Agency Staff","190413303","19/01/2018","Safeguarding","MCA General","R1100"
"Wolverhampton City Council","http://opendatacommunities.org/id/metropolitan-district-council/wolverhampton","710928","Yoo Recruit LTD","CWC1011970","792.98","Agency Staff","190413330","19/01/2018","Governance Services","Business Support - Governance","R1100"
"Wolverhampton City Council","http://opendatacommunities.org/id/metropolitan-district-council/wolverhampton","710928","Yoo Recruit LTD","CWC1011939","239.20","Agency Staff","190413298","19/01/2018","Environmental Maintenance","Parks - Ranger Service","R1100"
"Wolverhampton City Council","http://opendatacommunities.org/id/metropolitan-district-council/wolverhampton","710928","Yoo Recruit LTD","CWC1011984","368.96","Agency Staff","190413306","19/01/2018","Leisure Services","WV Active Catering - Central","R1100"
"Wolverhampton City Council","http://opendatacommunities.org/id/metropolitan-district-council/wolverhampton","710928","Yoo Recruit LTD","CWC1011952","381.23","Agency Staff","190413309","19/01/2018","Adult Education","Caretakers","R1100"
"Wolverhampton City Council","http://opendatacommunities.org/id/metropolitan-district-council/wolverhampton","710928","Yoo Recruit LTD","CWC1011988","1,810.00","Agency Staff","190413349","19/01/2018","Adult Education","SMT - Senior Management Team","R1100"
"Wolverhampton City Council","http://opendatacommunities.org/id/metropolitan-district-council/wolverhampton","710928","Yoo Recruit LTD","CWC1011948","999.36","Agency Staff","190413342","19/01/2018","Housing","Housing Regeneration - Strategy & Development","R1100"
"Wolverhampton City Council","http://opendatacommunities.org/id/metropolitan-district-council/wolverhampton","710928","Yoo Recruit LTD","CWC1011946","896.45","Agency Staff","190413338","19/01/2018","Service Director City Economy","Service Director City Economy","R1100"
"Wolverhampton City Council","http://opendatacommunities.org/id/metropolitan-district-council/wolverhampton","710928","Yoo Recruit LTD","CWC1011912","1,066.08","Agency Staff","190413343","19/01/2018","Emergency Duty Team","Emergency Duty Team","R1100"
"Wolverhampton City Council","http://opendatacommunities.org/id/metropolitan-district-council/wolverhampton","710928","Yoo Recruit LTD","CWC1011919","889.31","Agency Staff","190413337","19/01/2018","Leisure Services","Aldersley Leisure Village","R1100"
"Wolverhampton City Council","http://opendatacommunities.org/id/metropolitan-district-council/wolverhampton","710928","Yoo Recruit LTD","CWC1011921","2,049.53","Agency Staff","190413352","19/01/2018","Leisure Services","Central Baths","R1100"
"Wolverhampton City Council","http://opendatacommunities.org/id/metropolitan-district-council/wolverhampton","710928","Yoo Recruit LTD","CWC1011976","3,717.47","Agency Staff","190413362","19/01/2018","Child Protection","CIN/CP Social Work Unit - Area 7","R1100"
"Wolverhampton City Council","http://opendatacommunities.org/id/metropolitan-district-council/wolverhampton","710928","Yoo Recruit LTD","CWC1011963","576.83","Agency Staff","190413320","19/01/2018","Corporate Asset Management","Energy Management","R1100"
"Wolverhampton City Council","http://opendatacommunities.org/id/metropolitan-district-council/wolverhampton","710928","Yoo Recruit LTD","CWC1011968","4,211.21","Agency Staff","190413363","19/01/2018","Visitor Economy","Civic Halls Non-Direct Event Management Account","R1100"
"Wolverhampton City Council","http://opendatacommunities.org/id/metropolitan-district-council/wolverhampton","710928","Yoo Recruit LTD","CWC101196","486.23","Agency Staff","190413315","19/01/2018","Looked After Children","LAC Transitions Team","R1100"
"Wolverhampton City Council","http://opendatacommunities.org/id/metropolitan-district-council/wolverhampton","710928","Yoo Recruit LTD","CWC1011935","2,384.44","Agency Staff","190413356","19/01/2018","ICTS","Application Management","R1100"
"Wolverhampton City Council","http://opendatacommunities.org/id/metropolitan-district-council/wolverhampton","710928","Yoo Recruit LTD","CWC1011964","746.15","Agency Staff","190413326","19/01/2018","Public Protection","Regulatory Services - Works in Default","R1100"
"Wolverhampton City Council","http://opendatacommunities.org/id/metropolitan-district-council/wolverhampton","710928","Yoo Recruit LTD","CWC1011928","120.41","Agency Staff","190413290","19/01/2018","Catering","Meals on Wheels","R1100"
"Wolverhampton City Council","http://opendatacommunities.org/id/metropolitan-district-council/wolverhampton","710928","Yoo Recruit LTD","CWC1011945","5,703.82","Agency Staff","190413368","19/01/2018","Legal Services","Legal Services","R1100"
"Wolverhampton City Council","http://opendatacommunities.org/id/metropolitan-district-council/wolverhampton","710928","Yoo Recruit LTD","CWC1011913","6,629.58","Agency Staff","190413370","19/01/2018","Mental Health Assesment & Care Management","Mental Health Assessment & Care Management","R1100"
"Wolverhampton City Council","http://opendatacommunities.org/id/metropolitan-district-council/wolverhampton","710928","Yoo Recruit LTD","CWC1009382","1,033.20","Agency Staff","190407428","05/01/2018","Human Resources","HR Investigations","R1100"
"Wolverhampton City Council","http://opendatacommunities.org/id/metropolitan-district-council/wolverhampton","710928","Yoo Recruit LTD","CWC1009377","1,518.15","Agency Staff","190407423","05/01/2018","Corporate Asset Management","Strategic Asset Management Team","R1100"
"Wolverhampton City Council","http://opendatacommunities.org/id/metropolitan-district-council/wolverhampton","710928","Yoo Recruit LTD","CWC1009389","126.10","Agency Staff","190407435","05/01/2018","Specialist Support","Vulnerable Young Persons Team","R1100"
"Wolverhampton City Council","http://opendatacommunities.org/id/metropolitan-district-council/wolverhampton","710928","Yoo Recruit LTD","CWC1009353","2,390.52","Agency Staff","190407400","05/01/2018","Service Director City Economy","Service Director City Economy","R1100"
"Wolverhampton City Council","http://opendatacommunities.org/id/metropolitan-district-council/wolverhampton","710928","Yoo Recruit LTD","CWC1009348","1,089.45","Agency Staff","190407395","05/01/2018","Human Resources","HR Advice","R1100"
"Wolverhampton City Council","http://opendatacommunities.org/id/metropolitan-district-council/wolverhampton","710928","Yoo Recruit LTD","CWC1009356","451.24","Agency Staff","190407403","05/01/2018","Housing","Private Sector Housing","R1100"
"Wolverhampton City Council","http://opendatacommunities.org/id/metropolitan-district-council/wolverhampton","710928","Yoo Recruit LTD","CWC1009367","494.28","Agency Staff","190407414","05/01/2018","Adult Education","Learner Services","R1100"
"Wolverhampton City Council","http://opendatacommunities.org/id/metropolitan-district-council/wolverhampton","710928","Yoo Recruit LTD","CWC1009371","1,336.87","Agency Staff","190407418","05/01/2018","School Planning & Resources","Pupil & Student Support","R1100"
"Wolverhampton City Council","http://opendatacommunities.org/id/metropolitan-district-council/wolverhampton","710928","Yoo Recruit LTD","CWC1009361","403.85","Agency Staff","190407408","05/01/2018","Adult Education","Caretakers","R1100"
"Wolverhampton City Council","http://opendatacommunities.org/id/metropolitan-district-council/wolverhampton","710928","Yoo Recruit LTD","CWC1009359","131.34","Agency Staff","190407406","05/01/2018","Licensing","Licensing - Private Hire Vehicles","R1100"
"Wolverhampton City Council","http://opendatacommunities.org/id/metropolitan-district-council/wolverhampton","710928","Yoo Recruit LTD","CWC1009316","9,749.40","Agency Staff","190407365","05/01/2018","Independent Living Service","Independent Living Service","R1100"
"Wolverhampton City Council","http://opendatacommunities.org/id/metropolitan-district-council/wolverhampton","710928","Yoo Recruit LTD","CWC1009318","1,291.37","Agency Staff","190407367","05/01/2018","Leisure Services","WV Active Catering","R1100"
"Wolverhampton City Council","http://opendatacommunities.org/id/metropolitan-district-council/wolverhampton","710928","Yoo Recruit LTD","CWC1009325","466.57","Agency Staff","190407373","05/01/2018","Safeguarding","Safeguarding Children","R1100"
"Wolverhampton City Council","http://opendatacommunities.org/id/metropolitan-district-council/wolverhampton","710928","Yoo Recruit LTD","CWC1008844","471.24","Agency Staff","190407490","05/01/2018","Corporate Business Support","Corporate Programmes","R1100"
"Wolverhampton City Council","http://opendatacommunities.org/id/metropolitan-district-council/wolverhampton","710928","Yoo Recruit LTD","CWC100885","354.38","Agency Staff","190407452","05/01/2018","Specialist Support","Upper Pendeford Farm Short Breaks Centre","R1100"
"Wolverhampton City Council","http://opendatacommunities.org/id/metropolitan-district-council/wolverhampton","710928","Yoo Recruit LTD","CWC1008810","1,362.48","Agency Staff","190407457","05/01/2018","Child Protection","Childrens with Disabilities Team","R1100"
"Wolverhampton City Council","http://opendatacommunities.org/id/metropolitan-district-council/wolverhampton","710928","Yoo Recruit LTD","CWC1008815","1,106.00","Agency Staff","190407462","05/01/2018","Learning Disability Provider","Ernest Bold Court","R1100"
"Wolverhampton City Council","http://opendatacommunities.org/id/metropolitan-district-council/wolverhampton","710928","Yoo Recruit LTD","CWC1008814","955.90","Agency Staff","190407461","05/01/2018","Learning Disability Provider","Duke Street Bungalows","R1100"
"Wolverhampton City Council","http://opendatacommunities.org/id/metropolitan-district-council/wolverhampton","710928","Yoo Recruit LTD","CWC1008843","1,463.35","Agency Staff","190407489","05/01/2018","ICTS","Strategic ICTS","R1100"
"Wolverhampton City Council","http://opendatacommunities.org/id/metropolitan-district-council/wolverhampton","710928","Yoo Recruit LTD","CWC1008859","260.13","Agency Staff","190407504","05/01/2018","Visitor Economy","Bantock - Tea Rooms","R1100"
"Wolverhampton City Council","http://opendatacommunities.org/id/metropolitan-district-council/wolverhampton","710928","Yoo Recruit LTD","CWC1008866","338.10","Agency Staff","190407511","05/01/2018","Adult Education","Direct Delivery Team ( L.& D.)","R1100"
"Wolverhampton City Council","http://opendatacommunities.org/id/metropolitan-district-council/wolverhampton","710928","Yoo Recruit LTD","CWC1008880","1,612.13","Agency Staff","190407524","05/01/2018","Public Protection","Regulatory Services - Works in Default","R1100"
"Wolverhampton City Council","http://opendatacommunities.org/id/metropolitan-district-council/wolverhampton","710928","Yoo Recruit LTD","CWC1008872","1,841.16","Agency Staff","190407517","05/01/2018","Standards and Vulnerable Pupils","Music Support Team","R1100"
"Wolverhampton City Council","http://opendatacommunities.org/id/metropolitan-district-council/wolverhampton","710928","Yoo Recruit LTD","CWC1008884","12,302.99","Agency Staff","190407528","05/01/2018","Visitor Economy","Civic Halls Non-Direct Event Management Account","R1100"
"Wolverhampton City Council","http://opendatacommunities.org/id/metropolitan-district-council/wolverhampton","710928","Yoo Recruit LTD","CWC1008892","12,852.27","Agency Staff","190407536","05/01/2018","Child Protection","MASH","R1100"
"Wolverhampton City Council","http://opendatacommunities.org/id/metropolitan-district-council/wolverhampton","710928","Yoo Recruit LTD","CWC1008886","914.35","Agency Staff","190407530","05/01/2018","Governance Services","Business Support - Governance","R1100"
"Wolverhampton City Council","http://opendatacommunities.org/id/metropolitan-district-council/wolverhampton","710928","Yoo Recruit LTD","CWC10088102","755.22","Agency Staff","190407546","05/01/2018","Leisure Services","WV Active Catering - Central","R1100"
"Wolverhampton City Council","http://opendatacommunities.org/id/metropolitan-district-council/wolverhampton","710928","Yoo Recruit LTD","CWC1008828","848.32","Agency Staff","190407474","05/01/2018","Safeguarding","MCA General","R1100"
"Wolverhampton City Council","http://opendatacommunities.org/id/metropolitan-district-council/wolverhampton","710928","Yoo Recruit LTD","CWC1008822","1,164.54","Agency Staff","190407469","05/01/2018","Leisure Services","WV Active Catering","R1100"
"Wolverhampton City Council","http://opendatacommunities.org/id/metropolitan-district-council/wolverhampton","710928","Yoo Recruit LTD","CWC1008850","971.64","Agency Staff","190407495","05/01/2018","Parking Services","Parking Enforcement","R1100"
"Wolverhampton City Council","http://opendatacommunities.org/id/metropolitan-district-council/wolverhampton","710928","Yoo Recruit LTD","CWC1008853","2,536.67","Agency Staff","190407498","05/01/2018","Human Resources","HR Advice","R1100"
"Wolverhampton City Council","http://opendatacommunities.org/id/metropolitan-district-council/wolverhampton","710928","Yoo Recruit LTD","CWC1008817","2,625.89","Agency Staff","190407464","05/01/2018","Mental Health Assesment & Care Management","Mental Health Assessment & Care Management","R1100"
"Wolverhampton City Council","http://opendatacommunities.org/id/metropolitan-district-council/wolverhampton","710928","Yoo Recruit LTD","CWC1008821","28,471.45","Agency Staff","190407468","05/01/2018","Adults Assessment & Care Management North","Assessment Team (North)","R1100"
"Wolverhampton City Council","http://opendatacommunities.org/id/metropolitan-district-council/wolverhampton","710928","Yoo Recruit LTD","CWC1008820","63.45","Agency Staff","190407467","05/01/2018","Independent Living Service","Independent Living Service","R1100"
"Wolverhampton City Council","http://opendatacommunities.org/id/metropolitan-district-council/wolverhampton","710928","Yoo Recruit LTD","CWC1008855","93.20","Agency Staff","190407500","05/01/2018","Democratic Services","Local Government Elections","R1100"
"Wolverhampton City Council","http://opendatacommunities.org/id/metropolitan-district-council/wolverhampton","710928","Yoo Recruit LTD","CWC1008549","46.60","Agency Staff","190407613","05/01/2018","Democratic Services","Local Government Elections","R1100"
"Wolverhampton City Council","http://opendatacommunities.org/id/metropolitan-district-council/wolverhampton","710928","Yoo Recruit LTD","CWC1008568","2,162.83","Agency Staff","190407632","05/01/2018","Public Protection","Regulatory Services - Works in Default","R1100"
"Wolverhampton City Council","http://opendatacommunities.org/id/metropolitan-district-council/wolverhampton","710928","Yoo Recruit LTD","CWC1008564","-4,050.60","Agency Staff","190407628","05/01/2018","School Planning & Resources","Primary - Transport","R1100"
"Wolverhampton City Council","http://opendatacommunities.org/id/metropolitan-district-council/wolverhampton","710928","Yoo Recruit LTD","CWC1008573","124.53","Agency Staff","190407637","05/01/2018","Visitor Economy","Curatorial - Cultural Learning","R1100"
"Wolverhampton City Council","http://opendatacommunities.org/id/metropolitan-district-council/wolverhampton","710928","Yoo Recruit LTD","CWC1008574","1,688.62","Agency Staff","190407638","05/01/2018","Governance Services","Business Support - Governance","R1100"
"Wolverhampton City Council","http://opendatacommunities.org/id/metropolitan-district-council/wolverhampton","710928","Yoo Recruit LTD","CWC1008570","724.46","Agency Staff","190407634","05/01/2018","Safeguarding","Safeguarding & Quality Administration","R1100"
"Wolverhampton City Council","http://opendatacommunities.org/id/metropolitan-district-council/wolverhampton","710928","Yoo Recruit LTD","CWC1008576","1,780.93","Agency Staff","190407640","05/01/2018","The Hub","Payroll/HR","R1100"
"Wolverhampton City Council","http://opendatacommunities.org/id/metropolitan-district-council/wolverhampton","710928","Yoo Recruit LTD","CWC1008580","476.03","Agency Staff","190407644","05/01/2018","Early Intervention","EIP Locality 5 � Whitmore Reans","R1100"
"Wolverhampton City Council","http://opendatacommunities.org/id/metropolitan-district-council/wolverhampton","710928","Yoo Recruit LTD","CWC1008583","2,589.40","Agency Staff","190407647","05/01/2018","Service Director Adults","Service Director � Adults","R1100"
"Wolverhampton City Council","http://opendatacommunities.org/id/metropolitan-district-council/wolverhampton","710928","Yoo Recruit LTD","CWC1008524","14,974.64","Agency Staff","190407589","05/01/2018","Safeguarding","Safeguarding Board - Childrens","R1100"
"Wolverhampton City Council","http://opendatacommunities.org/id/metropolitan-district-council/wolverhampton","710928","Yoo Recruit LTD","CWC100852","118.13","Agency Staff","190407568","05/01/2018","Specialist Support","Upper Pendeford Farm Short Breaks Centre","R1100"
"Wolverhampton City Council","http://opendatacommunities.org/id/metropolitan-district-council/wolverhampton","710928","Yoo Recruit LTD","CWC100854","1,132.65","Agency Staff","190407570","05/01/2018","Looked After Children","LAC Transitions Team","R1100"
"Wolverhampton City Council","http://opendatacommunities.org/id/metropolitan-district-council/wolverhampton","710928","Yoo Recruit LTD","CWC100856","726.88","Agency Staff","190407572","05/01/2018","Independent Living Service","Adaptations Team","R1100"
"Wolverhampton City Council","http://opendatacommunities.org/id/metropolitan-district-council/wolverhampton","710928","Yoo Recruit LTD","CWC1008536","1,062.40","Agency Staff","190407601","05/01/2018","Democratic Services","Mayoral Expenses","R1100"
"Wolverhampton City Council","http://opendatacommunities.org/id/metropolitan-district-council/wolverhampton","710928","Yoo Recruit LTD","CWC1008545","468.42","Agency Staff","190407609","05/01/2018","Revenues & Benefits","Revenues","R1100"
"Wolverhampton City Council","http://opendatacommunities.org/id/metropolitan-district-council/wolverhampton","710928","Yoo Recruit LTD","CWC1008546","2,419.35","Agency Staff","190407610","05/01/2018","Strategic Finance","Strategic Finance","R1100"
"Wolverhampton City Council","http://opendatacommunities.org/id/metropolitan-district-council/wolverhampton","710928","Yoo Recruit LTD","CWC1008538","1,636.91","Agency Staff","190407603","05/01/2018","Corporate Business Support","Corporate Programmes","R1100"
"Wolverhampton City Council","http://opendatacommunities.org/id/metropolitan-district-council/wolverhampton","710928","Yoo Recruit LTD","CWC1008556","1,727.39","Agency Staff","190407620","05/01/2018","Adult Education","Admin & Support","R1100"
"Wolverhampton City Council","http://opendatacommunities.org/id/metropolitan-district-council/wolverhampton","710928","Yoo Recruit LTD","CWC1008557","1,966.94","Agency Staff","190407621","05/01/2018","Adult Education","Caretakers","R1100"
"Wolverhampton City Council","http://opendatacommunities.org/id/metropolitan-district-council/wolverhampton","710928","Yoo Recruit LTD","CWC1008530","120.41","Agency Staff","190407595","05/01/2018","Catering","Meals on Wheels","R1100"
"Wolverhampton City Council","http://opendatacommunities.org/id/metropolitan-district-council/wolverhampton","710928","Yoo Recruit LTD","CWC1008413","473.23","Agency Staff","190407667","05/01/2018","Strategic Organisation Development","Blakenhall Community & Healthy Living Centre","R1100"
"Wolverhampton City Council","http://opendatacommunities.org/id/metropolitan-district-council/wolverhampton","710928","Yoo Recruit LTD","CWC1008535","169.65","Agency Staff","190407600","05/01/2018","Cleaning","Other Cleaning","R1100"
"Wolverhampton City Council","http://opendatacommunities.org/id/metropolitan-district-council/wolverhampton","710928","Yoo Recruit LTD","CWC1008429","1,247.28","Agency Staff","190407683","05/01/2018","Cleaning","Cleaning of Buildings - General","R1100"
"Wolverhampton City Council","http://opendatacommunities.org/id/metropolitan-district-council/wolverhampton","710928","Yoo Recruit LTD","CWC1008432","328.00","Agency Staff","190407686","05/01/2018","Cleaning","Other Cleaning","R1100"
"Wolverhampton City Council","http://opendatacommunities.org/id/metropolitan-district-council/wolverhampton","710928","Yoo Recruit LTD","CWC1008434","1,184.24","Agency Staff","190407688","05/01/2018","Corporate Business Support","Corporate Programmes","R1100"
"Wolverhampton City Council","http://opendatacommunities.org/id/metropolitan-district-council/wolverhampton","710928","Yoo Recruit LTD","CWC1008438","442.52","Agency Staff","190407691","05/01/2018","Environmental Maintenance","Parks - Ranger Service","R1100"
"Wolverhampton City Council","http://opendatacommunities.org/id/metropolitan-district-council/wolverhampton","710928","Yoo Recruit LTD","CWC1008441","1,005.72","Agency Staff","190407694","05/01/2018","Parking Services","Parking Enforcement","R1100"
"Wolverhampton City Council","http://opendatacommunities.org/id/metropolitan-district-council/wolverhampton","710928","Yoo Recruit LTD","CWC1008465","282.76","Agency Staff","190407718","05/01/2018","Schools","Westacre Infant School","R1100"
"Wolverhampton City Council","http://opendatacommunities.org/id/metropolitan-district-council/wolverhampton","710928","Yoo Recruit LTD","CWC1008461","818.66","Agency Staff","190407714","05/01/2018","School Planning & Resources","Pupil & Student Support","R1100"
"Wolverhampton City Council","http://opendatacommunities.org/id/metropolitan-district-council/wolverhampton","710928","Yoo Recruit LTD","CWC1008478","1,093.26","Agency Staff","190407731","05/01/2018","Strategic Director People","Head of Strategic Commissioning � People","R1100"
"Wolverhampton City Council","http://opendatacommunities.org/id/metropolitan-district-council/wolverhampton","710928","Yoo Recruit LTD","CWC1008482","2,784.05","Agency Staff","190407734","05/01/2018","Housing","General Housing Administration","R1100"
"Wolverhampton City Council","http://opendatacommunities.org/id/metropolitan-district-council/wolverhampton","710928","Yoo Recruit LTD","CWC100841","8,352.82","Agency Staff","190407655","05/01/2018","Service Director Children & Young People","Service Director Children & Young People","R1100"
"Wolverhampton City Council","http://opendatacommunities.org/id/metropolitan-district-council/wolverhampton","710928","Yoo Recruit LTD","CWC100845","1,539.70","Agency Staff","190407659","05/01/2018","Looked After Children","LAC Transitions Team","R1100"
"Wolverhampton City Council","http://opendatacommunities.org/id/metropolitan-district-council/wolverhampton","710928","Yoo Recruit LTD","CWC1010955","356.27","Agency Staff","190407141","03/01/2018","Visitor Economy","Bantock - Tea Rooms","R1100"
"Wolverhampton City Council","http://opendatacommunities.org/id/metropolitan-district-council/wolverhampton","710928","Yoo Recruit LTD","CWC1010962","1,254.76","Agency Staff","190407148","03/01/2018","Adult Education","Admin & Support","R1100"
"Wolverhampton City Council","http://opendatacommunities.org/id/metropolitan-district-council/wolverhampton","710928","Yoo Recruit LTD","CWC1010980","1,518.15","Agency Staff","190407165","03/01/2018","Corporate Asset Management","Strategic Asset Management Team","R1100"
"Wolverhampton City Council","http://opendatacommunities.org/id/metropolitan-district-council/wolverhampton","710928","Yoo Recruit LTD","CWC1010961","262.68","Agency Staff","190407147","03/01/2018","Licensing","Licensing - Private Hire Vehicles","R1100"
"Wolverhampton City Council","http://opendatacommunities.org/id/metropolitan-district-council/wolverhampton","710928","Yoo Recruit LTD","CWC1010998","3,232.92","Agency Staff","190407183","03/01/2018","Adults Assessment & Care Management SLC","Supporting Life Choices","R1100"
"Wolverhampton City Council","http://opendatacommunities.org/id/metropolitan-district-council/wolverhampton","710928","Yoo Recruit LTD","CWC101096","648.30","Agency Staff","190407093","03/01/2018","Looked After Children","LAC Transitions Team","R1100"
"Wolverhampton City Council","http://opendatacommunities.org/id/metropolitan-district-council/wolverhampton","710928","Yoo Recruit LTD","CWC101094","1,478.64","Agency Staff","190407091","03/01/2018","Looked After Children","Head of Service - LAC","R1100"
"Wolverhampton City Council","http://opendatacommunities.org/id/metropolitan-district-council/wolverhampton","710928","Yoo Recruit LTD","CWC1010926","466.57","Agency Staff","190407113","03/01/2018","Safeguarding","Safeguarding Children","R1100"
"Wolverhampton City Council","http://opendatacommunities.org/id/metropolitan-district-council/wolverhampton","710928","Yoo Recruit LTD","CWC1010921","634.16","Agency Staff","190407108","03/01/2018","Leisure Services","WV Active Catering","R1100"
"Wolverhampton City Council","http://opendatacommunities.org/id/metropolitan-district-council/wolverhampton","710928","Yoo Recruit LTD","CWC1010918","222.30","Agency Staff","190407105","03/01/2018","Strategic Organisation Development","Adult Lending Library","R1100"
"Wolverhampton City Council","http://opendatacommunities.org/id/metropolitan-district-council/wolverhampton","710928","Yoo Recruit LTD","CWC1010927","3,676.87","Agency Staff","190407114","03/01/2018","Safeguarding","Safeguarding Board - Childrens","R1100"
"Wolverhampton City Council","http://opendatacommunities.org/id/metropolitan-district-council/wolverhampton","710928","Yoo Recruit LTD","CWC1010135","1,459.49","Agency Staff","190407244","03/01/2018","Cleaning","Cleaning of Buildings - General","R1100"
"Wolverhampton City Council","http://opendatacommunities.org/id/metropolitan-district-council/wolverhampton","710928","Yoo Recruit LTD","CWC1010138","169.65","Agency Staff","190407247","03/01/2018","Cleaning","Other Cleaning","R1100"
"Wolverhampton City Council","http://opendatacommunities.org/id/metropolitan-district-council/wolverhampton","710928","Yoo Recruit LTD","CWC1010149","389.30","Agency Staff","190407258","03/01/2018","Revenues & Benefits","Revenues","R1100"
"Wolverhampton City Council","http://opendatacommunities.org/id/metropolitan-district-council/wolverhampton","710928","Yoo Recruit LTD","CWC1010148","887.82","Agency Staff","190407257","03/01/2018","Democratic Services","Register Office","R1100"
"Wolverhampton City Council","http://opendatacommunities.org/id/metropolitan-district-council/wolverhampton","710928","Yoo Recruit LTD","CWC1010147","1,008.02","Agency Staff","190407256","03/01/2018","Parking Services","Parking Enforcement","R1100"
"Wolverhampton City Council","http://opendatacommunities.org/id/metropolitan-district-council/wolverhampton","710928","Yoo Recruit LTD","CWC1010159","1,221.44","Agency Staff","190407267","03/01/2018","Housing","Housing Regeneration - Strategy & Development","R1100"
"Wolverhampton City Council","http://opendatacommunities.org/id/metropolitan-district-council/wolverhampton","710928","Yoo Recruit LTD","CWC1010150","1,613.12","Agency Staff","190407259","03/01/2018","Strategic Finance","Strategic Finance","R1100"
"Wolverhampton City Council","http://opendatacommunities.org/id/metropolitan-district-council/wolverhampton","710928","Yoo Recruit LTD","CWC1010151","453.60","Agency Staff","190407260","03/01/2018","Human Resources","HR Advice","R1100"
"Wolverhampton City Council","http://opendatacommunities.org/id/metropolitan-district-council/wolverhampton","710928","Yoo Recruit LTD","CWC1010167","985.16","Agency Staff","190407275","03/01/2018","Adult Education","Language Studies Delivery Area","R1100"
"Wolverhampton City Council","http://opendatacommunities.org/id/metropolitan-district-council/wolverhampton","710928","Yoo Recruit LTD","CWC1010170","458.76","Agency Staff","190407278","03/01/2018","Standards and Vulnerable Pupils","Music Grant (Arts Council)","R1100"
"Wolverhampton City Council","http://opendatacommunities.org/id/metropolitan-district-council/wolverhampton","710928","Yoo Recruit LTD","CWC1010186","1,307.58","Agency Staff","190407293","03/01/2018","Child Protection","CIN/CP Social Work Unit - Area 1","R1100"
"Wolverhampton City Council","http://opendatacommunities.org/id/metropolitan-district-council/wolverhampton","710928","Yoo Recruit LTD","CWC1010183","2,646.00","Agency Staff","190407290","03/01/2018","Human Resources","HR Investigations","R1100"
"Wolverhampton City Council","http://opendatacommunities.org/id/metropolitan-district-council/wolverhampton","710928","Yoo Recruit LTD","CWC101013","427.73","Agency Staff","190407212","03/01/2018","Specialist Support","Upper Pendeford Farm Short Breaks Centre","R1100"
"Wolverhampton City Council","http://opendatacommunities.org/id/metropolitan-district-council/wolverhampton","710928","Yoo Recruit LTD","CWC1010121","951.23","Agency Staff","190407230","03/01/2018","Leisure Services","WV Active Catering","R1100"
"Wolverhampton City Council","http://opendatacommunities.org/id/metropolitan-district-council/wolverhampton","710928","Yoo Recruit LTD","CWC1010110","1,132.57","Agency Staff","190407219","03/01/2018","Adults Assessment & Care Management North","Learning Disabilities Assessment and Care Management","R1100"
"Wolverhampton City Council","http://opendatacommunities.org/id/metropolitan-district-council/wolverhampton","710928","Yoo Recruit LTD","CWC1010125","252.90","Agency Staff","190407234","03/01/2018","Visitor Economy","Northicote Farm","R1100"
"Wolverhampton City Council","http://opendatacommunities.org/id/metropolitan-district-council/wolverhampton","710928","Yoo Recruit LTD","CWC1010112","2,563.55","Agency Staff","190407221","03/01/2018","Learning Disability Provider","Duke Street Bungalows","R1100"
"Wolverhampton City Council","http://opendatacommunities.org/id/metropolitan-district-council/wolverhampton","710928","Yoo Recruit LTD","CWC1010124","3,618.58","Agency Staff","190407233","03/01/2018","Leisure Services","Central Baths","R1100"
"Wolverhampton City Council","http://opendatacommunities.org/id/metropolitan-district-council/wolverhampton","710928","Yoo Recruit LTD","CWC1010129","468.42","Agency Staff","190407238","03/01/2018","Business Continuity & Emergency Planning","Business Continuity & Emergency Planning","R1100"
"Wolverhampton City Council","http://opendatacommunities.org/id/metropolitan-district-council/wolverhampton","710928","Yoo Recruit LTD","CWC1010128","103.95","Agency Staff","190407237","03/01/2018","Safeguarding","Safeguarding Board - Childrens","R1100"
"Wolverhampton City Council","http://opendatacommunities.org/id/metropolitan-district-council/wolverhampton","710928","Yoo Recruit LTD","CWC1011031","101.79","Agency Staff","190406650","03/01/2018","Cleaning","Schools Cleaning","R1100"
"Wolverhampton City Council","http://opendatacommunities.org/id/metropolitan-district-council/wolverhampton","710928","Yoo Recruit LTD","CWC1011020","3,090.93","Agency Staff","190406640","03/01/2018","Leisure Services","Central Baths","R1100"
"Wolverhampton City Council","http://opendatacommunities.org/id/metropolitan-district-council/wolverhampton","710928","Yoo Recruit LTD","CWC1011024","231.86","Agency Staff","190406643","03/01/2018","Catering","Education Catering - General Overheads","R1100"
"Wolverhampton City Council","http://opendatacommunities.org/id/metropolitan-district-council/wolverhampton","710928","Yoo Recruit LTD","CWC1011022","1,746.15","Agency Staff","190406641","03/01/2018","Safeguarding","Safeguarding Board - Childrens","R1100"
"Wolverhampton City Council","http://opendatacommunities.org/id/metropolitan-district-council/wolverhampton","710928","Yoo Recruit LTD","CWC1011082","269.92","Agency Staff","190406699","03/01/2018","Headstart","Headstart Phase 3","R1100"
"Wolverhampton City Council","http://opendatacommunities.org/id/metropolitan-district-council/wolverhampton","710928","Yoo Recruit LTD","CWC1011070","724.46","Agency Staff","190406687","03/01/2018","Safeguarding","Safeguarding & Quality Administration","R1100"
"Wolverhampton City Council","http://opendatacommunities.org/id/metropolitan-district-council/wolverhampton","710928","Yoo Recruit LTD","CWC1011089","11,969.28","Agency Staff","190406706","03/01/2018","Digital Transformation Programme","Digital Transformation Programme (Recharge to Capital)","R1100"
"Wolverhampton City Council","http://opendatacommunities.org/id/metropolitan-district-council/wolverhampton","710928","Yoo Recruit LTD","CWC1011011","8,750.74","Agency Staff","190406631","03/01/2018","Emergency Duty Team","Emergency Duty Team","R1100"
"Wolverhampton City Council","http://opendatacommunities.org/id/metropolitan-district-council/wolverhampton","710928","Yoo Recruit LTD","CWC1011012","17,330.05","Agency Staff","190406632","03/01/2018","Mental Health Assesment & Care Management","Mental Health Assessment & Care Management","R1100"
"Wolverhampton City Council","http://opendatacommunities.org/id/metropolitan-district-council/wolverhampton","710928","Yoo Recruit LTD","CWC1011048","249.06","Agency Staff","190406666","03/01/2018","Visitor Economy","Education And Access","R1100"
"Wolverhampton City Council","http://opendatacommunities.org/id/metropolitan-district-council/wolverhampton","710928","Yoo Recruit LTD","CWC1011068","599.52","Agency Staff","190406685","03/01/2018","Public Protection","Regulatory Services - Works in Default","R1100"
"Wolverhampton City Council","http://opendatacommunities.org/id/metropolitan-district-council/wolverhampton","710928","Yoo Recruit LTD","CWC1011075","929.75","Agency Staff","190406692","03/01/2018","The Hub","Payroll/HR","R1100"
"Wolverhampton City Council","http://opendatacommunities.org/id/metropolitan-district-council/wolverhampton","710928","Yoo Recruit LTD","CWC101108","903.00","Agency Staff","190406628","03/01/2018","Adults Assessment & Care Management North","Learning Disabilities Assessment and Care Management","R1100"
"Wolverhampton City Council","http://opendatacommunities.org/id/metropolitan-district-council/wolverhampton","710928","Yoo Recruit LTD","CWC1011052","1,179.80","Agency Staff","190406670","03/01/2018","Housing","Housing Regeneration - Strategy & Development","R1100"
"Wolverhampton City Council","http://opendatacommunities.org/id/metropolitan-district-council/wolverhampton","710928","Yoo Recruit LTD","CWC1011054","44.14","Agency Staff","190406672","03/01/2018","Adult Education","Admin & Support","R1100"
"Wolverhampton City Council","http://opendatacommunities.org/id/metropolitan-district-council/wolverhampton","710928","Yoo Recruit LTD","CWC100935","4,017.11","Agency Staff","190407354","05/01/2018","Youth Offending","Youth Offending Team","R1100"
"Wolverhampton City Council","http://opendatacommunities.org/id/metropolitan-district-council/wolverhampton","710928","Yoo Recruit LTD","CWC1009386","657.76","Agency Staff","190407432","05/01/2018","Child Protection","MASH","R1100"
"Wolverhampton City Council","http://opendatacommunities.org/id/metropolitan-district-council/wolverhampton","710928","Yoo Recruit LTD","CWC1009381","3,379.96","Agency Staff","190407427","05/01/2018","Leisure Services","WV Active Business Support","R1100"
"Wolverhampton City Council","http://opendatacommunities.org/id/metropolitan-district-council/wolverhampton","710928","Yoo Recruit LTD","CWC1009378","724.46","Agency Staff","190407424","05/01/2018","Safeguarding","Safeguarding & Quality Administration","R1100"
"Wolverhampton City Council","http://opendatacommunities.org/id/metropolitan-district-council/wolverhampton","710928","Yoo Recruit LTD","CWC1009358","3,268.75","Agency Staff","190407405","05/01/2018","Public Protection","EHTS Staffing","R1100"
"Wolverhampton City Council","http://opendatacommunities.org/id/metropolitan-district-council/wolverhampton","710928","Yoo Recruit LTD","CWC1009391","3,062.03","Agency Staff","190407437","05/01/2018","Adults Assessment & Care Management North","Adult Services � North","R1100"
"Wolverhampton City Council","http://opendatacommunities.org/id/metropolitan-district-council/wolverhampton","710928","Yoo Recruit LTD","CWC1009394","5,424.44","Agency Staff","190407440","05/01/2018","Adults Assessment & Care Management SLC","Supporting Life Choices","R1100"
"Wolverhampton City Council","http://opendatacommunities.org/id/metropolitan-district-council/wolverhampton","710928","Yoo Recruit LTD","CWC1009326","3,459.00","Agency Staff","190407374","05/01/2018","Safeguarding","Safeguarding Board - Childrens","R1100"
"Wolverhampton City Council","http://opendatacommunities.org/id/metropolitan-district-council/wolverhampton","710928","Yoo Recruit LTD","CWC10088103","3,341.45","Agency Staff","190407547","05/01/2018","Digital Transformation Programme","Digital Transformation Programme (Recharge to Capital)","R1100"
"Wolverhampton City Council","http://opendatacommunities.org/id/metropolitan-district-council/wolverhampton","710928","Yoo Recruit LTD","CWC1008819","521.10","Agency Staff","190407466","05/01/2018","Strategic Organisation Development","Global Budgets","R1100"
"Wolverhampton City Council","http://opendatacommunities.org/id/metropolitan-district-council/wolverhampton","710928","Yoo Recruit LTD","CWC1008858","4,781.04","Agency Staff","190407503","05/01/2018","Service Director City Economy","Service Director City Economy","R1100"
"Wolverhampton City Council","http://opendatacommunities.org/id/metropolitan-district-council/wolverhampton","710928","Yoo Recruit LTD","CWC1008548","4,890.99","Agency Staff","190407612","05/01/2018","Democratic Services","Electoral Registration","R1100"
"Wolverhampton City Council","http://opendatacommunities.org/id/metropolitan-district-council/wolverhampton","710928","Yoo Recruit LTD","CWC1008553","594.49","Agency Staff","190407617","05/01/2018","Housing","Private Sector Housing","R1100"
"Wolverhampton City Council","http://opendatacommunities.org/id/metropolitan-district-council/wolverhampton","710928","Yoo Recruit LTD","CWC1008572","44.76","Agency Staff","190407636","05/01/2018","Standards and Vulnerable Pupils","SACRE","R1100"
"Wolverhampton City Council","http://opendatacommunities.org/id/metropolitan-district-council/wolverhampton","710928","Yoo Recruit LTD","CWC1008579","3,132.22","Agency Staff","190407643","05/01/2018","Digital Transformation Programme","Digital Transformation Programme","R1100"
"Wolverhampton City Council","http://opendatacommunities.org/id/metropolitan-district-council/wolverhampton","710928","Yoo Recruit LTD","CWC1008518","2,858.76","Agency Staff","190407584","05/01/2018","Leisure Services","Central Baths","R1100"
"Wolverhampton City Council","http://opendatacommunities.org/id/metropolitan-district-council/wolverhampton","710928","Yoo Recruit LTD","CWC1008517","3,896.59","Agency Staff","190407583","05/01/2018","Leisure Services","Bert Williams Leisure Centre","R1100"
"Wolverhampton City Council","http://opendatacommunities.org/id/metropolitan-district-council/wolverhampton","710928","Yoo Recruit LTD","CWC100853","630.00","Agency Staff","190407569","05/01/2018","Looked After Children","LAC Education Team (LACE)","R1100"
"Wolverhampton City Council","http://opendatacommunities.org/id/metropolitan-district-council/wolverhampton","710928","Yoo Recruit LTD","CWC100859","620.15","Agency Staff","190407575","05/01/2018","Learning Disability Provider","Duke Street Bungalows","R1100"
"Wolverhampton City Council","http://opendatacommunities.org/id/metropolitan-district-council/wolverhampton","710928","Yoo Recruit LTD","CWC1008534","203.58","Agency Staff","190407599","05/01/2018","Cleaning","Schools Cleaning","R1100"
"Wolverhampton City Council","http://opendatacommunities.org/id/metropolitan-district-council/wolverhampton","710928","Yoo Recruit LTD","CWC1008433","2,926.70","Agency Staff","190407687","05/01/2018","ICTS","Strategic ICTS","R1100"
"Wolverhampton City Council","http://opendatacommunities.org/id/metropolitan-district-council/wolverhampton","710928","Yoo Recruit LTD","CWC100842","6,037.78","Agency Staff","190407656","05/01/2018","Looked After Children","Head of Service - LAC","R1100"
"Wolverhampton City Council","http://opendatacommunities.org/id/metropolitan-district-council/wolverhampton","710928","Yoo Recruit LTD","CWC1010963","381.23","Agency Staff","190407149","03/01/2018","Adult Education","Caretakers","R1100"
"Wolverhampton City Council","http://opendatacommunities.org/id/metropolitan-district-council/wolverhampton","710928","Yoo Recruit LTD","CWC1010977","226.21","Agency Staff","190407162","03/01/2018","Schools","Westacre Infant School","R1100"
"Wolverhampton City Council","http://opendatacommunities.org/id/metropolitan-district-council/wolverhampton","710928","Yoo Recruit LTD","CWC1010994","126.10","Agency Staff","190407179","03/01/2018","Specialist Support","Vulnerable Young Persons Team","R1100"
"Wolverhampton City Council","http://opendatacommunities.org/id/metropolitan-district-council/wolverhampton","710928","Yoo Recruit LTD","CWC1010984","498.12","Agency Staff","190407169","03/01/2018","Visitor Economy","Curatorial - Cultural Learning","R1100"
"Wolverhampton City Council","http://opendatacommunities.org/id/metropolitan-district-council/wolverhampton","710928","Yoo Recruit LTD","CWC101098","130.50","Agency Staff","190407095","03/01/2018","Childrens Commissioning","Haven Project","R1100"
"Wolverhampton City Council","http://opendatacommunities.org/id/metropolitan-district-council/wolverhampton","710928","Yoo Recruit LTD","CWC1010931","207.65","Agency Staff","190407118","03/01/2018","Catering","Other Catering - General Overheads","R1100"
"Wolverhampton City Council","http://opendatacommunities.org/id/metropolitan-district-council/wolverhampton","710928","Yoo Recruit LTD","CWC1010915","120.47","Agency Staff","190407102","03/01/2018","Mental Health Assesment & Care Management","Mental Health Assessment & Care Management","R1100"
"Wolverhampton City Council","http://opendatacommunities.org/id/metropolitan-district-council/wolverhampton","710928","Yoo Recruit LTD","CWC1010930","853.91","Agency Staff","190407117","03/01/2018","Catering","Primary Schools Catering","R1100"
"Wolverhampton City Council","http://opendatacommunities.org/id/metropolitan-district-council/wolverhampton","710928","Yoo Recruit LTD","CWC1010940","523.32","Agency Staff","190407127","03/01/2018","ICTS","Customer Services","R1100"
"Wolverhampton City Council","http://opendatacommunities.org/id/metropolitan-district-council/wolverhampton","710928","Yoo Recruit LTD","CWC1010174","3,018.27","Agency Staff","190407281","03/01/2018","School Planning & Resources","Special - Transport","R1100"
"Wolverhampton City Council","http://opendatacommunities.org/id/metropolitan-district-council/wolverhampton","710928","Yoo Recruit LTD","CWC1010172","1,063.03","Agency Staff","190407280","03/01/2018","School Planning & Resources","Pupil & Student Support","R1100"
"Wolverhampton City Council","http://opendatacommunities.org/id/metropolitan-district-council/wolverhampton","710928","Yoo Recruit LTD","CWC1010180","4,290.10","Agency Staff","190407287","03/01/2018","Director of Governance","Director of Governance","R1100"
"Wolverhampton City Council","http://opendatacommunities.org/id/metropolitan-district-council/wolverhampton","710928","Yoo Recruit LTD","CWC1010198","7,979.98","Agency Staff","190407305","03/01/2018","Digital Transformation Programme","Digital Transformation Programme (Recharge to Capital)","R1100"
"Wolverhampton City Council","http://opendatacommunities.org/id/metropolitan-district-council/wolverhampton","710928","Yoo Recruit LTD","CWC1010133","200.69","Agency Staff","190407242","03/01/2018","Catering","Meals on Wheels","R1100"
"Wolverhampton City Council","http://opendatacommunities.org/id/metropolitan-district-council/wolverhampton","710928","Yoo Recruit LTD","CWC1011064","2,213.66","Agency Staff","190406681","03/01/2018","School Planning & Resources","Special - Transport","R1100"
"Wolverhampton City Council","http://opendatacommunities.org/id/metropolitan-district-council/wolverhampton","710928","Yoo Recruit LTD","CWC1011085","1,093.26","Agency Staff","190406702","03/01/2018","Strategic Director People","Head of Strategic Commissioning � People","R1100"
"Wolverhampton City Council","http://opendatacommunities.org/id/metropolitan-district-council/wolverhampton","710928","Yoo Recruit LTD","CWC1011083","2,943.24","Agency Staff","190406700","03/01/2018","Adults Assessment & Care Management West","Adult Services � West","R1100"
"Wolverhampton City Council","http://opendatacommunities.org/id/metropolitan-district-council/wolverhampton","710928","Yoo Recruit LTD","CWC1011037","1,039.80","Agency Staff","190406656","03/01/2018","Corporate Business Support","Corporate Programmes","R1100"
"Wolverhampton City Council","http://opendatacommunities.org/id/metropolitan-district-council/wolverhampton","710928","Yoo Recruit LTD","CWC101106","1,972.65","Agency Staff","190406626","03/01/2018","Youth Offending","Youth Offending Team","R1100"
"Wolverhampton City Council","http://opendatacommunities.org/id/metropolitan-district-council/wolverhampton","710928","Yoo Recruit LTD","CWC101105","2,104.78","Agency Staff","190406625","03/01/2018","Looked After Children","LAC Transitions Team","R1100"
"Wolverhampton City Council","http://opendatacommunities.org/id/metropolitan-district-council/wolverhampton","710928","Yoo Recruit LTD","CWC1011079","2,808.50","Agency Staff","190406696","03/01/2018","Child Protection","MASH","R1100"
"Wolverhampton City Council","http://opendatacommunities.org/id/metropolitan-district-council/wolverhampton","710928","Yoo Recruit LTD","CWC1011027","120.41","Agency Staff","190406646","03/01/2018","Catering","Meals on Wheels","R1100"
"Wolverhampton City Council","http://opendatacommunities.org/id/metropolitan-district-council/wolverhampton","710928","Yoo Recruit LTD","CWC1011029","808.85","Agency Staff","190406648","03/01/2018","Cleaning","Cleaning of Buildings - General","R1100"
"Wolverhampton City Council","http://opendatacommunities.org/id/metropolitan-district-council/wolverhampton","710928","Yoo Recruit LTD","CWC1011039","442.52","Agency Staff","190406658","03/01/2018","Environmental Maintenance","Parks - Ranger Service","R1100"
"Wolverhampton City Council","http://opendatacommunities.org/id/metropolitan-district-council/wolverhampton","710928","Yoo Recruit LTD","CWC1008550","1,829.13","Agency Staff","190407614","05/01/2018","Legal Services","Legal Services","R1100"
"Wolverhampton City Council","http://opendatacommunities.org/id/metropolitan-district-council/wolverhampton","710928","Yoo Recruit LTD","CWC1008566","432.38","Agency Staff","190407630","05/01/2018","School Planning & Resources","Technical Support","R1100"
"Wolverhampton City Council","http://opendatacommunities.org/id/metropolitan-district-council/wolverhampton","710928","Yoo Recruit LTD","CWC1008569","1,518.15","Agency Staff","190407633","05/01/2018","Corporate Asset Management","Strategic Asset Management Team","R1100"
"Wolverhampton City Council","http://opendatacommunities.org/id/metropolitan-district-council/wolverhampton","710928","Yoo Recruit LTD","CWC1008581","126.10","Agency Staff","190407645","05/01/2018","Specialist Support","Vulnerable Young Persons Team","R1100"
"Wolverhampton City Council","http://opendatacommunities.org/id/metropolitan-district-council/wolverhampton","710928","Yoo Recruit LTD","CWC1008582","1,079.68","Agency Staff","190407646","05/01/2018","Headstart","Headstart Phase 3","R1100"
"Wolverhampton City Council","http://opendatacommunities.org/id/metropolitan-district-council/wolverhampton","710928","Yoo Recruit LTD","CWC1008540","415.88","Agency Staff","190407604","05/01/2018","Environmental Maintenance","Ground Maintenance Overheads","R1100"
"Wolverhampton City Council","http://opendatacommunities.org/id/metropolitan-district-council/wolverhampton","710928","Yoo Recruit LTD","CWC1008544","948.92","Agency Staff","190407608","05/01/2018","Parking Services","Parking Enforcement","R1100"
"Wolverhampton City Council","http://opendatacommunities.org/id/metropolitan-district-council/wolverhampton","710928","Yoo Recruit LTD","CWC1008520","179.84","Agency Staff","190407585","05/01/2018","Visitor Economy","Northicote Farm","R1100"
"Wolverhampton City Council","http://opendatacommunities.org/id/metropolitan-district-council/wolverhampton","710928","Yoo Recruit LTD","CWC1008521","38.34","Agency Staff","190407586","05/01/2018","Health Protection & NHS Facing","Expenditure","R1100"
"Wolverhampton City Council","http://opendatacommunities.org/id/metropolitan-district-council/wolverhampton","710928","Yoo Recruit LTD","CWC1008526","284.85","Agency Staff","190407591","05/01/2018","Business Continuity & Emergency Planning","Business Continuity & Emergency Planning","R1100"
"Wolverhampton City Council","http://opendatacommunities.org/id/metropolitan-district-council/wolverhampton","710928","Yoo Recruit LTD","CWC100855","6,433.70","Agency Staff","190407571","05/01/2018","Youth Offending","Youth Offending Team","R1100"
"Wolverhampton City Council","http://opendatacommunities.org/id/metropolitan-district-council/wolverhampton","710928","Yoo Recruit LTD","CWC100858","438.50","Agency Staff","190407574","05/01/2018","Independent Living Service","Telecare","R1100"
"Wolverhampton City Council","http://opendatacommunities.org/id/metropolitan-district-council/wolverhampton","710928","Yoo Recruit LTD","CWC1008511","-462.15","Agency Staff","190407577","05/01/2018","Mental Health Assesment & Care Management","46a, Second Avenue, Low Hill","R1100"
"Wolverhampton City Council","http://opendatacommunities.org/id/metropolitan-district-council/wolverhampton","710928","Yoo Recruit LTD","CWC1008512","31,023.62","Agency Staff","190407578","05/01/2018","Mental Health Assesment & Care Management","Mental Health Assessment & Care Management","R1100"
"Wolverhampton City Council","http://opendatacommunities.org/id/metropolitan-district-council/wolverhampton","710928","Yoo Recruit LTD","CWC1008514","856.92","Agency Staff","190407580","05/01/2018","Strategic Organisation Development","Global Budgets","R1100"
"Wolverhampton City Council","http://opendatacommunities.org/id/metropolitan-district-council/wolverhampton","710928","Yoo Recruit LTD","CWC1008528","1,594.71","Agency Staff","190407593","05/01/2018","Catering","Primary Schools Catering","R1100"
"Wolverhampton City Council","http://opendatacommunities.org/id/metropolitan-district-council/wolverhampton","710928","Yoo Recruit LTD","CWC1008529","294.30","Agency Staff","190407594","05/01/2018","Catering","Other Catering - General Overheads","R1100"
"Wolverhampton City Council","http://opendatacommunities.org/id/metropolitan-district-council/wolverhampton","710928","Yoo Recruit LTD","CWC1008532","1,091.79","Agency Staff","190407597","05/01/2018","Cleaning","Cleaning of Buildings - General","R1100"
"Wolverhampton City Council","http://opendatacommunities.org/id/metropolitan-district-council/wolverhampton","710928","Yoo Recruit LTD","CWC1008533","863.73","Agency Staff","190407598","05/01/2018","Cleaning","External Cleaning","R1100"
"Wolverhampton City Council","http://opendatacommunities.org/id/metropolitan-district-council/wolverhampton","710928","Yoo Recruit LTD","CWC1008412","1,722.20","Agency Staff","190407666","05/01/2018","Learning Disability Provider","Ernest Bold Court","R1100"
"Wolverhampton City Council","http://opendatacommunities.org/id/metropolitan-district-council/wolverhampton","710928","Yoo Recruit LTD","CWC100849","419.43","Agency Staff","190407663","05/01/2018","Independent Living Service","Telecare","R1100"
"Wolverhampton City Council","http://opendatacommunities.org/id/metropolitan-district-council/wolverhampton","710928","Yoo Recruit LTD","CWC100846","2,558.68","Agency Staff","190407660","05/01/2018","Youth Offending","Youth Offending Team","R1100"
"Wolverhampton City Council","http://opendatacommunities.org/id/metropolitan-district-council/wolverhampton","710928","Yoo Recruit LTD","CWC100848","13,222.36","Agency Staff","190407662","05/01/2018","Child Protection","Childrens with Disabilities Team","R1100"
"Wolverhampton City Council","http://opendatacommunities.org/id/metropolitan-district-council/wolverhampton","710928","Yoo Recruit LTD","CWC1008431","339.30","Agency Staff","190407685","05/01/2018","Cleaning","Schools Cleaning","R1100"
"Wolverhampton City Council","http://opendatacommunities.org/id/metropolitan-district-council/wolverhampton","710928","Yoo Recruit LTD","CWC1008426","249.12","Agency Staff","190407680","05/01/2018","Catering","Other Catering - General Overheads","R1100"
"Wolverhampton City Council","http://opendatacommunities.org/id/metropolitan-district-council/wolverhampton","710928","Yoo Recruit LTD","CWC1008425","1,458.99","Agency Staff","190407679","05/01/2018","Catering","Primary Schools Catering","R1100"
"Wolverhampton City Council","http://opendatacommunities.org/id/metropolitan-district-council/wolverhampton","710928","Yoo Recruit LTD","CWC1008440","1,257.68","Agency Staff","190407693","05/01/2018","Fleet Services","Passenger Transport - General","R1100"
"Wolverhampton City Council","http://opendatacommunities.org/id/metropolitan-district-council/wolverhampton","710928","Yoo Recruit LTD","CWC1008437","747.46","Agency Staff","190407690","05/01/2018","Environmental Maintenance","Ground Maintenance Overheads","R1100"
"Wolverhampton City Council","http://opendatacommunities.org/id/metropolitan-district-council/wolverhampton","710928","Yoo Recruit LTD","CWC1008466","2,239.10","Agency Staff","190407719","05/01/2018","Public Protection","Regulatory Services - Works in Default","R1100"
"Wolverhampton City Council","http://opendatacommunities.org/id/metropolitan-district-council/wolverhampton","710928","Yoo Recruit LTD","CWC1008451","1,165.92","Agency Staff","190407704","05/01/2018","Housing","Housing Regeneration - Strategy & Development","R1100"
"Wolverhampton City Council","http://opendatacommunities.org/id/metropolitan-district-council/wolverhampton","710928","Yoo Recruit LTD","CWC1008467","1,518.15","Agency Staff","190407720","05/01/2018","Corporate Asset Management","Strategic Asset Management Team","R1100"
"Wolverhampton City Council","http://opendatacommunities.org/id/metropolitan-district-council/wolverhampton","710928","Yoo Recruit LTD","CWC1008473","2,733.08","Agency Staff","190407726","05/01/2018","Leisure Services","WV Active Business Support","R1100"
"Wolverhampton City Council","http://opendatacommunities.org/id/metropolitan-district-council/wolverhampton","710928","Yoo Recruit LTD","CWC1008471","336.17","Agency Staff","190407724","05/01/2018","Visitor Economy","Curatorial - Cultural Learning","R1100"
"Wolverhampton City Council","http://opendatacommunities.org/id/metropolitan-district-council/wolverhampton","710928","Yoo Recruit LTD","CWC1008462","1,310.57","Agency Staff","190407715","05/01/2018","School Planning & Resources","Primary - Transport","R1100"
"Wolverhampton City Council","http://opendatacommunities.org/id/metropolitan-district-council/wolverhampton","710928","Yoo Recruit LTD","CWC1008423","481.08","Agency Staff","190407677","05/01/2018","Business Continuity & Emergency Planning","Business Continuity & Emergency Planning","R1100"
"Wolverhampton City Council","http://opendatacommunities.org/id/metropolitan-district-council/wolverhampton","710928","Yoo Recruit LTD","CWC1008422","1,237.50","Agency Staff","190407676","05/01/2018","Audit Services","Audit Services","R1100"
"Wolverhampton City Council","http://opendatacommunities.org/id/metropolitan-district-council/wolverhampton","710928","Yoo Recruit LTD","CWC100936","888.03","Agency Staff","190407355","05/01/2018","Independent Living Service","Adaptations Team","R1100"
"Wolverhampton City Council","http://opendatacommunities.org/id/metropolitan-district-council/wolverhampton","710928","Yoo Recruit LTD","CWC100938","330.46","Agency Staff","190407357","05/01/2018","Independent Living Service","Telecare","R1100"
"Wolverhampton City Council","http://opendatacommunities.org/id/metropolitan-district-council/wolverhampton","710928","Yoo Recruit LTD","CWC1009339","1,039.80","Agency Staff","190407387","05/01/2018","Corporate Business Support","Corporate Programmes","R1100"
"Wolverhampton City Council","http://opendatacommunities.org/id/metropolitan-district-council/wolverhampton","710928","Yoo Recruit LTD","CWC1009333","1,411.39","Agency Staff","190407381","05/01/2018","Cleaning","Cleaning of Buildings - General","R1100"
"Wolverhampton City Council","http://opendatacommunities.org/id/metropolitan-district-council/wolverhampton","710928","Yoo Recruit LTD","CWC1009388","472.88","Agency Staff","190407434","05/01/2018","Early Intervention","EIP Locality 5 � Whitmore Reans","R1100"
"Wolverhampton City Council","http://opendatacommunities.org/id/metropolitan-district-council/wolverhampton","710928","Yoo Recruit LTD","CWC1009390","404.88","Agency Staff","190407436","05/01/2018","Headstart","Headstart Phase 3","R1100"
"Wolverhampton City Council","http://opendatacommunities.org/id/metropolitan-district-council/wolverhampton","710928","Yoo Recruit LTD","CWC1009346","468.42","Agency Staff","190407393","05/01/2018","Revenues & Benefits","Revenues","R1100"
"Wolverhampton City Council","http://opendatacommunities.org/id/metropolitan-district-council/wolverhampton","710928","Yoo Recruit LTD","CWC1009336","169.65","Agency Staff","190407384","05/01/2018","Cleaning","Other Cleaning","R1100"
"Wolverhampton City Council","http://opendatacommunities.org/id/metropolitan-district-council/wolverhampton","710928","Yoo Recruit LTD","CWC1009347","2,419.35","Agency Staff","190407394","05/01/2018","Strategic Finance","Strategic Finance","R1100"
"Wolverhampton City Council","http://opendatacommunities.org/id/metropolitan-district-council/wolverhampton","710928","Yoo Recruit LTD","CWC1009350","466.00","Agency Staff","190407397","05/01/2018","Democratic Services","Local Government Elections","R1100"
"Wolverhampton City Council","http://opendatacommunities.org/id/metropolitan-district-council/wolverhampton","710928","Yoo Recruit LTD","CWC1009341","15,636.38","Agency Staff","190407388","05/01/2018","Managing Director","Managing Director","R1100"
"Wolverhampton City Council","http://opendatacommunities.org/id/metropolitan-district-council/wolverhampton","710928","Yoo Recruit LTD","CWC1009342","379.35","Agency Staff","190407389","05/01/2018","Environmental Maintenance","Ground Maintenance Overheads","R1100"
"Wolverhampton City Council","http://opendatacommunities.org/id/metropolitan-district-council/wolverhampton","710928","Yoo Recruit LTD","CWC1009357","1,193.68","Agency Staff","190407404","05/01/2018","Housing","Housing Regeneration - Strategy & Development","R1100"
"Wolverhampton City Council","http://opendatacommunities.org/id/metropolitan-district-council/wolverhampton","710928","Yoo Recruit LTD","CWC1009365","775.00","Agency Staff","190407412","05/01/2018","Adult Education","Foundation Studies Delivery Area","R1100"
"Wolverhampton City Council","http://opendatacommunities.org/id/metropolitan-district-council/wolverhampton","710928","Yoo Recruit LTD","CWC1009393","9,004.26","Agency Staff","190407439","05/01/2018","Strategic Director People","Head of Strategic Commissioning � People","R1100"
"Wolverhampton City Council","http://opendatacommunities.org/id/metropolitan-district-council/wolverhampton","710928","Yoo Recruit LTD","CWC1009396","974.29","Agency Staff","190407442","05/01/2018","Leisure Services","WV Active Catering - Central","R1100"
"Wolverhampton City Council","http://opendatacommunities.org/id/metropolitan-district-council/wolverhampton","710928","Yoo Recruit LTD","CWC100932","1,163.03","Agency Staff","190407351","05/01/2018","Specialist Support","Upper Pendeford Farm Short Breaks Centre","R1100"
"Wolverhampton City Council","http://opendatacommunities.org/id/metropolitan-district-council/wolverhampton","710928","Yoo Recruit LTD","CWC1009329","1,498.58","Agency Staff","190407377","05/01/2018","Catering","Primary Schools Catering","R1100"
"Wolverhampton City Council","http://opendatacommunities.org/id/metropolitan-district-council/wolverhampton","710928","Yoo Recruit LTD","CWC1009337","460.27","Agency Staff","190407385","05/01/2018","Democratic Services","Mayoral Expenses","R1100"
"Wolverhampton City Council","http://opendatacommunities.org/id/metropolitan-district-council/wolverhampton","710928","Yoo Recruit LTD","CWC1008811","470.27","Agency Staff","190407458","05/01/2018","Independent Living Service","Telecare","R1100"
"Wolverhampton City Council","http://opendatacommunities.org/id/metropolitan-district-council/wolverhampton","710928","Yoo Recruit LTD","CWC1008868","90.00","Agency Staff","190407513","05/01/2018","Adult Education","Educational Studies Delivery Area","R1100"
"Wolverhampton City Council","http://opendatacommunities.org/id/metropolitan-district-council/wolverhampton","710928","Yoo Recruit LTD","CWC1008879","141.38","Agency Staff","190407523","05/01/2018","Schools","Westacre Infant School","R1100"
"Wolverhampton City Council","http://opendatacommunities.org/id/metropolitan-district-council/wolverhampton","710928","Yoo Recruit LTD","CWC1008874","729.60","Agency Staff","190407519","05/01/2018","Human Resources","Schools HR Consultants","R1100"
"Wolverhampton City Council","http://opendatacommunities.org/id/metropolitan-district-council/wolverhampton","710928","Yoo Recruit LTD","CWC1008869","900.00","Agency Staff","190407514","05/01/2018","Adult Education","Foundation Studies Delivery Area","R1100"
"Wolverhampton City Council","http://opendatacommunities.org/id/metropolitan-district-council/wolverhampton","710928","Yoo Recruit LTD","CWC1008875","1,297.51","Agency Staff","190407520","05/01/2018","School Planning & Resources","Pupil & Student Support","R1100"
"Wolverhampton City Council","http://opendatacommunities.org/id/metropolitan-district-council/wolverhampton","710928","Yoo Recruit LTD","CWC100881","24,641.94","Agency Staff","190407448","05/01/2018","Service Director Children & Young People","Service Director Children & Young People","R1100"
"Wolverhampton City Council","http://opendatacommunities.org/id/metropolitan-district-council/wolverhampton","710928","Yoo Recruit LTD","CWC1008888","2,000.30","Agency Staff","190407532","05/01/2018","The Hub","Payroll/HR","R1100"
"Wolverhampton City Council","http://opendatacommunities.org/id/metropolitan-district-council/wolverhampton","710928","Yoo Recruit LTD","CWC1008840","339.30","Agency Staff","190407486","05/01/2018","Cleaning","Schools Cleaning","R1100"
"Wolverhampton City Council","http://opendatacommunities.org/id/metropolitan-district-council/wolverhampton","710928","Yoo Recruit LTD","CWC1008833","361.92","Agency Staff","190407479","05/01/2018","Catering","Education Catering - General Overheads","R1100"
"Wolverhampton City Council","http://opendatacommunities.org/id/metropolitan-district-council/wolverhampton","710928","Yoo Recruit LTD","CWC100884","11,731.72","Agency Staff","190407451","05/01/2018","Looked After Children","Head of Service - LAC","R1100"
"Wolverhampton City Council","http://opendatacommunities.org/id/metropolitan-district-council/wolverhampton","710928","Yoo Recruit LTD","CWC1008848","226.20","Agency Staff","190407493","05/01/2018","Fleet Services","Fleet Management","R1100"
"Wolverhampton City Council","http://opendatacommunities.org/id/metropolitan-district-council/wolverhampton","710928","Yoo Recruit LTD","CWC1008854","2,125.77","Agency Staff","190407499","05/01/2018","Democratic Services","Electoral Registration","R1100"
"Wolverhampton City Council","http://opendatacommunities.org/id/metropolitan-district-council/wolverhampton","710928","Yoo Recruit LTD","CWC1011955","315.00","Agency Staff","190413302","19/01/2018","Adult Education","Foundation Studies Delivery Area","R1100"
"Wolverhampton City Council","http://opendatacommunities.org/id/metropolitan-district-council/wolverhampton","710928","Yoo Recruit LTD","CWC1011931","361.92","Agency Staff","190413304","19/01/2018","Cleaning","External Cleaning","R1100"
"Wolverhampton City Council","http://opendatacommunities.org/id/metropolitan-district-council/wolverhampton","710928","Yoo Recruit LTD","CWC1011923","378.30","Agency Staff","190413307","19/01/2018","Safeguarding","Safeguarding Children","R1100"
"Wolverhampton City Council","http://opendatacommunities.org/id/metropolitan-district-council/wolverhampton","710928","Yoo Recruit LTD","CWC1011941","837.17","Agency Staff","190413334","19/01/2018","Parking Services","Parking Enforcement","R1100"
"Wolverhampton City Council","http://opendatacommunities.org/id/metropolitan-district-council/wolverhampton","710928","Yoo Recruit LTD","CWC101199","459.15","Agency Staff","190413311","19/01/2018","Adults Assessment & Care Management North","Learning Disabilities Assessment and Care Management","R1100"
"Wolverhampton City Council","http://opendatacommunities.org/id/metropolitan-district-council/wolverhampton","710928","Yoo Recruit LTD","CWC1011958","766.90","Agency Staff","190413328","19/01/2018","Standards and Vulnerable Pupils","Music Support Team","R1100"
"Wolverhampton City Council","http://opendatacommunities.org/id/metropolitan-district-council/wolverhampton","710928","Yoo Recruit LTD","CWC1011910","1,848.60","Agency Staff","190413350","19/01/2018","Learning Disability Provider","Duke Street Bungalows","R1100"
"Wolverhampton City Council","http://opendatacommunities.org/id/metropolitan-district-council/wolverhampton","710928","Yoo Recruit LTD","CWC1011965","910.89","Agency Staff","190413340","19/01/2018","Corporate Asset Management","Strategic Asset Management Team","R1100"
"Wolverhampton City Council","http://opendatacommunities.org/id/metropolitan-district-council/wolverhampton","710928","Yoo Recruit LTD","CWC1011911","876.90","Agency Staff","190413336","19/01/2018","Learning Disability Provider","Ernest Bold Court","R1100"
"Wolverhampton City Council","http://opendatacommunities.org/id/metropolitan-district-council/wolverhampton","710928","Yoo Recruit LTD","CWC1011973","2,108.40","Agency Staff","190413355","19/01/2018","Human Resources","HR Investigations","R1100"
"Wolverhampton City Council","http://opendatacommunities.org/id/metropolitan-district-council/wolverhampton","710928","Yoo Recruit LTD","CWC1011974","1,304.76","Agency Staff","190413345","19/01/2018","The Hub","Payroll/HR","R1100"
"Wolverhampton City Council","http://opendatacommunities.org/id/metropolitan-district-council/wolverhampton","710928","Yoo Recruit LTD","CWC1011914","706.38","Agency Staff","190413323","19/01/2018","Strategic Organisation Development","Global Budgets","R1100"
"Wolverhampton City Council","http://opendatacommunities.org/id/metropolitan-district-council/wolverhampton","710928","Yoo Recruit LTD","CWC1011949","2,766.78","Agency Staff","190413358","19/01/2018","Public Protection","EHTS Staffing","R1100"
"Wolverhampton City Council","http://opendatacommunities.org/id/metropolitan-district-council/wolverhampton","710928","Yoo Recruit LTD","CWC1011977","2,947.42","Agency Staff","190413361","19/01/2018","Child Protection","MASH","R1100"
"Wolverhampton City Council","http://opendatacommunities.org/id/metropolitan-district-council/wolverhampton","710928","Yoo Recruit LTD","CWC1011926","740.81","Agency Staff","190413324","19/01/2018","Catering","Primary Schools Catering","R1100"
"Wolverhampton City Council","http://opendatacommunities.org/id/metropolitan-district-council/wolverhampton","710928","Yoo Recruit LTD","CWC1011956","801.89","Agency Staff","190413332","19/01/2018","Adult Education","Language Studies Delivery Area","R1100"
"Wolverhampton City Council","http://opendatacommunities.org/id/metropolitan-district-council/wolverhampton","710928","Yoo Recruit LTD","CWC1011950","131.34","Agency Staff","190413292","19/01/2018","Licensing","Licensing - Private Hire Vehicles","R1100"
"Wolverhampton City Council","http://opendatacommunities.org/id/metropolitan-district-council/wolverhampton","710928","Yoo Recruit LTD","CWC1011927","181.26","Agency Staff","190413294","19/01/2018","Catering","Other Catering - General Overheads","R1100"
"Wolverhampton City Council","http://opendatacommunities.org/id/metropolitan-district-council/wolverhampton","710928","Yoo Recruit LTD","CWC1011932","101.79","Agency Staff","190413288","19/01/2018","Cleaning","Schools Cleaning","R1100"
"Wolverhampton City Council","http://opendatacommunities.org/id/metropolitan-district-council/wolverhampton","710928","Yoo Recruit LTD","CWC1011936","4,353.38","Agency Staff","190413365","19/01/2018","Commercial Services","Corporate Procurement Unit","R1100"
"Wolverhampton City Council","http://opendatacommunities.org/id/metropolitan-district-council/wolverhampton","710928","Yoo Recruit LTD","CWC1011915","209.70","Agency Staff","190413296","19/01/2018","Strategic Organisation Development","Adult Lending Library","R1100"
"Wolverhampton City Council","http://opendatacommunities.org/id/metropolitan-district-council/wolverhampton","710928","Yoo Recruit LTD","CWC1011985","13,015.61","Agency Staff","190413372","19/01/2018","Digital Transformation Programme","Digital Transformation Programme (Recharge to Capital)","R1100"
"Wolverhampton City Council","http://opendatacommunities.org/id/metropolitan-district-council/wolverhampton","710928","Yoo Recruit LTD","CWC1010946","590.58","Agency Staff","190407133","03/01/2018","Fleet Services","Passenger Transport - General","R1100"
"Wolverhampton City Council","http://opendatacommunities.org/id/metropolitan-district-council/wolverhampton","710928","Yoo Recruit LTD","CWC1010157","92.50","Agency Staff","190407266","03/01/2018","Housing","General Housing Administration","R1100"
"Wolverhampton City Council","http://opendatacommunities.org/id/metropolitan-district-council/wolverhampton","710928","Yoo Recruit LTD","CWC1010161","3,113.41","Agency Staff","190407269","03/01/2018","Public Protection","EHTS Staffing","R1100"
"Wolverhampton City Council","http://opendatacommunities.org/id/metropolitan-district-council/wolverhampton","710928","Yoo Recruit LTD","CWC1010164","403.85","Agency Staff","190407272","03/01/2018","Adult Education","Caretakers","R1100"
"Wolverhampton City Council","http://opendatacommunities.org/id/metropolitan-district-council/wolverhampton","710928","Yoo Recruit LTD","CWC1010165","338.10","Agency Staff","190407273","03/01/2018","Adult Education","Direct Delivery Team ( L.& D.)","R1100"
"Wolverhampton City Council","http://opendatacommunities.org/id/metropolitan-district-council/wolverhampton","710928","Yoo Recruit LTD","CWC1010168","412.88","Agency Staff","190407276","03/01/2018","Adult Education","Learner Services","R1100"
"Wolverhampton City Council","http://opendatacommunities.org/id/metropolitan-district-council/wolverhampton","710928","Yoo Recruit LTD","CWC1010166","940.08","Agency Staff","190407274","03/01/2018","Adult Education","Foundation Studies Delivery Area","R1100"
"Wolverhampton City Council","http://opendatacommunities.org/id/metropolitan-district-council/wolverhampton","710928","Yoo Recruit LTD","CWC1010178","724.46","Agency Staff","190407285","03/01/2018","Safeguarding","Safeguarding & Quality Administration","R1100"
"Wolverhampton City Council","http://opendatacommunities.org/id/metropolitan-district-council/wolverhampton","710928","Yoo Recruit LTD","CWC1010182","3,325.37","Agency Staff","190407289","03/01/2018","Leisure Services","WV Active Business Support","R1100"
"Wolverhampton City Council","http://opendatacommunities.org/id/metropolitan-district-council/wolverhampton","710928","Yoo Recruit LTD","CWC1010191","269.92","Agency Staff","190407298","03/01/2018","Headstart","Headstart Phase 3","R1100"
"Wolverhampton City Council","http://opendatacommunities.org/id/metropolitan-district-council/wolverhampton","710928","Yoo Recruit LTD","CWC1010185","1,758.00","Agency Staff","190407292","03/01/2018","Strategic Director Place","Future Spaces Project Management","R1100"
"Wolverhampton City Council","http://opendatacommunities.org/id/metropolitan-district-council/wolverhampton","710928","Yoo Recruit LTD","CWC1010195","3,253.17","Agency Staff","190407302","03/01/2018","Adults Assessment & Care Management SLC","Supporting Life Choices","R1100"
"Wolverhampton City Council","http://opendatacommunities.org/id/metropolitan-district-council/wolverhampton","710928","Yoo Recruit LTD","CWC101012","1,395.93","Agency Staff","190407211","03/01/2018","Looked After Children","Adoption and Residence Team & Allowances","R1100"
"Wolverhampton City Council","http://opendatacommunities.org/id/metropolitan-district-council/wolverhampton","710928","Yoo Recruit LTD","CWC1010117","660.06","Agency Staff","190407226","03/01/2018","Strategic Organisation Development","Global Budgets","R1100"
"Wolverhampton City Council","http://opendatacommunities.org/id/metropolitan-district-council/wolverhampton","710928","Yoo Recruit LTD","CWC1010120","3,662.42","Agency Staff","190407229","03/01/2018","Adults Assessment & Care Management North","Assessment Team (North)","R1100"
"Wolverhampton City Council","http://opendatacommunities.org/id/metropolitan-district-council/wolverhampton","710928","Yoo Recruit LTD","CWC1010114","1,599.12","Agency Staff","190407223","03/01/2018","Emergency Duty Team","Emergency Duty Team","R1100"
"Wolverhampton City Council","http://opendatacommunities.org/id/metropolitan-district-council/wolverhampton","710928","Yoo Recruit LTD","CWC1010132","451.70","Agency Staff","190407241","03/01/2018","Catering","Other Catering - General Overheads","R1100"
"Wolverhampton City Council","http://opendatacommunities.org/id/metropolitan-district-council/wolverhampton","710928","Yoo Recruit LTD","CWC1010966","90.00","Agency Staff","190407152","03/01/2018","Adult Education","Educational Studies Delivery Area","R1100"
"Wolverhampton City Council","http://opendatacommunities.org/id/metropolitan-district-council/wolverhampton","710928","Yoo Recruit LTD","CWC1010969","314.02","Agency Staff","190407155","03/01/2018","Adult Education","Learner Services","R1100"
"Wolverhampton City Council","http://opendatacommunities.org/id/metropolitan-district-council/wolverhampton","710928","Yoo Recruit LTD","CWC1010965","1,443.21","Agency Staff","190407151","03/01/2018","Adult Education","Creative Studies Delivery Area","R1100"
"Wolverhampton City Council","http://opendatacommunities.org/id/metropolitan-district-council/wolverhampton","710928","Yoo Recruit LTD","CWC1010970","1,933.00","Agency Staff","190407156","03/01/2018","Standards and Vulnerable Pupils","Music Support Team","R1100"
"Wolverhampton City Council","http://opendatacommunities.org/id/metropolitan-district-council/wolverhampton","710928","Yoo Recruit LTD","CWC1010972","899.84","Agency Staff","190407158","03/01/2018","Human Resources","Schools HR Consultants","R1100"
"Wolverhampton City Council","http://opendatacommunities.org/id/metropolitan-district-council/wolverhampton","710928","Yoo Recruit LTD","CWC1010959","2,710.84","Agency Staff","190407145","03/01/2018","City Development","City Development  - Core Team","R1100"
"Wolverhampton City Council","http://opendatacommunities.org/id/metropolitan-district-council/wolverhampton","710928","Yoo Recruit LTD","CWC101095","196.88","Agency Staff","190407092","03/01/2018","Specialist Support","Upper Pendeford Farm Short Breaks Centre","R1100"
"Wolverhampton City Council","http://opendatacommunities.org/id/metropolitan-district-council/wolverhampton","710928","Yoo Recruit LTD","CWC1010913","541.15","Agency Staff","190407100","03/01/2018","Learning Disability Provider","Ernest Bold Court","R1100"
"Wolverhampton City Council","http://opendatacommunities.org/id/metropolitan-district-council/wolverhampton","710928","Yoo Recruit LTD","CWC10109101","16,416.49","Agency Staff","190407186","03/01/2018","Digital Transformation Programme","Digital Transformation Programme (Recharge to Capital)","R1100"
"Wolverhampton City Council","http://opendatacommunities.org/id/metropolitan-district-council/wolverhampton","710928","Yoo Recruit LTD","CWC1010916","227.72","Agency Staff","190407103","03/01/2018","Strategic Organisation Development","Blakenhall Community & Healthy Living Centre","R1100"
"Wolverhampton City Council","http://opendatacommunities.org/id/metropolitan-district-council/wolverhampton","710928","Yoo Recruit LTD","CWC1010925","10,018.63","Agency Staff","190407112","03/01/2018","Safeguarding","MCA General","R1100"
"Wolverhampton City Council","http://opendatacommunities.org/id/metropolitan-district-council/wolverhampton","710928","Yoo Recruit LTD","CWC1010929","251.65","Agency Staff","190407116","03/01/2018","Catering","Education Catering - General Overheads","R1100"
"Wolverhampton City Council","http://opendatacommunities.org/id/metropolitan-district-council/wolverhampton","710928","Yoo Recruit LTD","CWC1010920","1,242.94","Agency Staff","190407107","03/01/2018","Adults Assessment & Care Management North","Assessment Team (North)","R1100"
"Wolverhampton City Council","http://opendatacommunities.org/id/metropolitan-district-council/wolverhampton","710928","Yoo Recruit LTD","CWC1010936","101.79","Agency Staff","190407123","03/01/2018","Cleaning","Schools Cleaning","R1100"
"Wolverhampton City Council","http://opendatacommunities.org/id/metropolitan-district-council/wolverhampton","710928","Yoo Recruit LTD","CWC1010939","1,463.35","Agency Staff","190407126","03/01/2018","ICTS","Strategic ICTS","R1100"
"Wolverhampton City Council","http://opendatacommunities.org/id/metropolitan-district-council/wolverhampton","710928","Yoo Recruit LTD","CWC1010944","247.28","Agency Staff","190407131","03/01/2018","Environmental Maintenance","Ground Maintenance Overheads","R1100"
"Wolverhampton City Council","http://opendatacommunities.org/id/metropolitan-district-council/wolverhampton","710928","Yoo Recruit LTD","CWC1010943","1,369.64","Agency Staff","190407130","03/01/2018","Managing Director","Managing Director","R1100"
"Wolverhampton City Council","http://opendatacommunities.org/id/metropolitan-district-council/wolverhampton","710928","Yoo Recruit LTD","CWC1011045","1,209.84","Agency Staff","190406664","03/01/2018","Strategic Finance","Strategic Finance","R1100"
"Wolverhampton City Council","http://opendatacommunities.org/id/metropolitan-district-council/wolverhampton","710928","Yoo Recruit LTD","CWC1011062","1,267.52","Agency Staff","190406680","03/01/2018","School Planning & Resources","Pupil & Student Support","R1100"
"Wolverhampton City Council","http://opendatacommunities.org/id/metropolitan-district-council/wolverhampton","710928","Yoo Recruit LTD","CWC101103","110.25","Agency Staff","190406623","03/01/2018","Specialist Support","Upper Pendeford Farm Short Breaks Centre","R1100"
"Wolverhampton City Council","http://opendatacommunities.org/id/metropolitan-district-council/wolverhampton","710928","Yoo Recruit LTD","CWC1011019","3,179.84","Agency Staff","190406639","03/01/2018","Leisure Services","Bert Williams Leisure Centre","R1100"
"Wolverhampton City Council","http://opendatacommunities.org/id/metropolitan-district-council/wolverhampton","710928","Yoo Recruit LTD","CWC1011044","468.42","Agency Staff","190406663","03/01/2018","Revenues & Benefits","Revenues","R1100"
"Wolverhampton City Council","http://opendatacommunities.org/id/metropolitan-district-council/wolverhampton","710928","Yoo Recruit LTD","CWC1011080","9,303.25","Agency Staff","190406697","03/01/2018","Digital Transformation Programme","Digital Transformation Programme","R1100"
"Wolverhampton City Council","http://opendatacommunities.org/id/metropolitan-district-council/wolverhampton","710928","Yoo Recruit LTD","CWC1011060","178.82","Agency Staff","190406678","03/01/2018","Standards and Vulnerable Pupils","Music Grant (Arts Council)","R1100"
"Wolverhampton City Council","http://opendatacommunities.org/id/metropolitan-district-council/wolverhampton","710928","Yoo Recruit LTD","CWC1011067","615.81","Agency Staff","190406684","03/01/2018","Corporate Asset Management","Energy Management","R1100"
"Wolverhampton City Council","http://opendatacommunities.org/id/metropolitan-district-council/wolverhampton","710928","Yoo Recruit LTD","CWC1011026","116.06","Agency Staff","190406645","03/01/2018","Catering","Other Catering - General Overheads","R1100"
"Wolverhampton City Council","http://opendatacommunities.org/id/metropolitan-district-council/wolverhampton","710928","Yoo Recruit LTD","CWC1011072","1,131.14","Agency Staff","190406689","03/01/2018","Governance Services","Business Support - Governance","R1100"
"Wolverhampton City Council","http://opendatacommunities.org/id/metropolitan-district-council/wolverhampton","710928","Yoo Recruit LTD","CWC1011035","566.93","Agency Staff","190406654","03/01/2018","ICTS","Customer Services","R1100"
"Wolverhampton City Council","http://opendatacommunities.org/id/metropolitan-district-council/wolverhampton","710928","Yoo Recruit LTD","CWC101109","2,583.30","Agency Staff","190406629","03/01/2018","Learning Disability Provider","Duke Street Bungalows","R1100"
"Wolverhampton City Council","http://opendatacommunities.org/id/metropolitan-district-council/wolverhampton","710928","Yoo Recruit LTD","CWC1008562","644.48","Agency Staff","190407626","05/01/2018","Human Resources","Schools HR Consultants","R1100"
"Wolverhampton City Council","http://opendatacommunities.org/id/metropolitan-district-council/wolverhampton","710928","Yoo Recruit LTD","CWC1008555","3,173.08","Agency Staff","190407619","05/01/2018","Public Protection","EHTS Staffing","R1100"
"Wolverhampton City Council","http://opendatacommunities.org/id/metropolitan-district-council/wolverhampton","710928","Yoo Recruit LTD","CWC1008444","3,807.94","Agency Staff","190407697","05/01/2018","Human Resources","HR Advice","R1100"
"Wolverhampton City Council","http://opendatacommunities.org/id/metropolitan-district-council/wolverhampton","710928","Yoo Recruit LTD","CWC1008445","4,185.37","Agency Staff","190407698","05/01/2018","Democratic Services","Electoral Registration","R1100"
"Wolverhampton City Council","http://opendatacommunities.org/id/metropolitan-district-council/wolverhampton","710928","Yoo Recruit LTD","CWC1008448","3,299.10","Agency Staff","190407701","05/01/2018","Strategic Director Place","Strategic Director Place","R1100"
"Wolverhampton City Council","http://opendatacommunities.org/id/metropolitan-district-council/wolverhampton","710928","Yoo Recruit LTD","CWC1008449","520.26","Agency Staff","190407702","05/01/2018","Visitor Economy","Bantock - Tea Rooms","R1100"
"Wolverhampton City Council","http://opendatacommunities.org/id/metropolitan-district-council/wolverhampton","710928","Yoo Recruit LTD","CWC1008475","7,414.38","Agency Staff","190407728","05/01/2018","Digital Transformation Programme","Digital Transformation Programme","R1100"
"Wolverhampton City Council","http://opendatacommunities.org/id/metropolitan-district-council/wolverhampton","710928","Yoo Recruit LTD","CWC1008479","3,584.72","Agency Staff","190407732","05/01/2018","Headstart","Headstart - Learning Technologies Team","R1100"
"Wolverhampton City Council","http://opendatacommunities.org/id/metropolitan-district-council/wolverhampton","710928","Yoo Recruit LTD","CWC100934","540.25","Agency Staff","190407353","05/01/2018","Looked After Children","LAC Transitions Team","R1100"
"Wolverhampton City Council","http://opendatacommunities.org/id/metropolitan-district-council/wolverhampton","710928","Yoo Recruit LTD","CWC1009312","663.20","Agency Staff","190407361","05/01/2018","Emergency Duty Team","Emergency Duty Team","R1100"
"Wolverhampton City Council","http://opendatacommunities.org/id/metropolitan-district-council/wolverhampton","710928","Yoo Recruit LTD","CWC1009360","4,450.71","Agency Staff","190407407","05/01/2018","Adult Education","Admin & Support","R1100"
"Wolverhampton City Council","http://opendatacommunities.org/id/metropolitan-district-council/wolverhampton","710928","Yoo Recruit LTD","CWC1009395","3,350.91","Agency Staff","190407441","05/01/2018","Headstart","Headstart - Learning Technologies Team","R1100"
"Wolverhampton City Council","http://opendatacommunities.org/id/metropolitan-district-council/wolverhampton","710928","Yoo Recruit LTD","CWC1009328","537.23","Agency Staff","190407376","05/01/2018","Catering","Education Catering - General Overheads","R1100"
"Wolverhampton City Council","http://opendatacommunities.org/id/metropolitan-district-council/wolverhampton","710928","Yoo Recruit LTD","CWC100886","630.00","Agency Staff","190407453","05/01/2018","Looked After Children","LAC Education Team (LACE)","R1100"
"Wolverhampton City Council","http://opendatacommunities.org/id/metropolitan-district-council/wolverhampton","710928","Yoo Recruit LTD","CWC1008842","605.28","Agency Staff","190407488","05/01/2018","Democratic Services","Mayoral Expenses","R1100"
"Wolverhampton City Council","http://opendatacommunities.org/id/metropolitan-district-council/wolverhampton","710928","Yoo Recruit LTD","CWC1008873","617.09","Agency Staff","190407518","05/01/2018","Standards and Vulnerable Pupils","Music Grant (Arts Council)","R1100"
"Wolverhampton City Council","http://opendatacommunities.org/id/metropolitan-district-council/wolverhampton","710928","Yoo Recruit LTD","CWC1008887","3,059.92","Agency Staff","190407531","05/01/2018","Leisure Services","WV Active Business Support","R1100"
"Wolverhampton City Council","http://opendatacommunities.org/id/metropolitan-district-council/wolverhampton","710928","Yoo Recruit LTD","CWC1008899","3,279.78","Agency Staff","190407543","05/01/2018","Strategic Director People","Head of Strategic Commissioning � People","R1100"
"Wolverhampton City Council","http://opendatacommunities.org/id/metropolitan-district-council/wolverhampton","710928","Yoo Recruit LTD","CWC1008825","2,844.38","Agency Staff","190407472","05/01/2018","Leisure Services","Central Baths","R1100"
"Wolverhampton City Council","http://opendatacommunities.org/id/metropolitan-district-council/wolverhampton","710928","Yoo Recruit LTD","CWC1008836","200.69","Agency Staff","190407482","05/01/2018","Catering","Meals on Wheels","R1100"
"Wolverhampton City Council","http://opendatacommunities.org/id/metropolitan-district-council/wolverhampton","710928","Yoo Recruit LTD","CWC100883","4,240.80","Agency Staff","190407450","05/01/2018","Looked After Children","Adoption and Residence Team & Allowances","R1100"
"Wolverhampton City Council","http://opendatacommunities.org/id/metropolitan-district-council/wolverhampton","710928","Yoo Recruit LTD","CWC1008839","721.91","Agency Staff","190407485","05/01/2018","Cleaning","External Cleaning","R1100"
"Wolverhampton City Council","http://opendatacommunities.org/id/metropolitan-district-council/wolverhampton","710928","Yoo Recruit LTD","CWC1008857","5,938.38","Agency Staff","190407502","05/01/2018","Strategic Director Place","Strategic Director Place","R1100"
"Wolverhampton City Council","http://opendatacommunities.org/id/metropolitan-district-council/wolverhampton","710928","Yoo Recruit LTD","CWC101014","126.00","Agency Staff","190407213","03/01/2018","Looked After Children","LAC Education Team (LACE)","R1100"
"Wolverhampton City Council","http://opendatacommunities.org/id/metropolitan-district-council/wolverhampton","710928","Yoo Recruit LTD","CWC101016","4,798.94","Agency Staff","190407215","03/01/2018","Youth Offending","Youth Offending Team","R1100"
"Wolverhampton City Council","http://opendatacommunities.org/id/metropolitan-district-council/wolverhampton","710928","Yoo Recruit LTD","CWC1010119","5,389.90","Agency Staff","190407228","03/01/2018","Independent Living Service","Independent Living Service","R1100"
"Wolverhampton City Council","http://opendatacommunities.org/id/metropolitan-district-council/wolverhampton","710928","Yoo Recruit LTD","CWC1010116","34.59","Agency Staff","190407225","03/01/2018","Strategic Organisation Development","Blakenhall Community & Healthy Living Centre","R1100"
"Wolverhampton City Council","http://opendatacommunities.org/id/metropolitan-district-council/wolverhampton","710928","Yoo Recruit LTD","CWC1011018","1,120.20","Agency Staff","190406638","03/01/2018","Leisure Services","Aldersley Leisure Village","R1100"
"Wolverhampton City Council","http://opendatacommunities.org/id/metropolitan-district-council/wolverhampton","710928","Yoo Recruit LTD","CWC1011051","429.75","Agency Staff","190406669","03/01/2018","Housing","Private Sector Housing","R1100"
"Wolverhampton City Council","http://opendatacommunities.org/id/metropolitan-district-council/wolverhampton","710928","Yoo Recruit LTD","CWC101107","130.50","Agency Staff","190406627","03/01/2018","Childrens Commissioning","Haven Project","R1100"
"Wolverhampton City Council","http://opendatacommunities.org/id/metropolitan-district-council/wolverhampton","710928","Yoo Recruit LTD","CWC1011013","329.16","Agency Staff","190406633","03/01/2018","Strategic Organisation Development","Blakenhall Community & Healthy Living Centre","R1100"
"Wolverhampton City Council","http://opendatacommunities.org/id/metropolitan-district-council/wolverhampton","710928","Yoo Recruit LTD","CWC1011069","4,257.80","Agency Staff","190406686","03/01/2018","Safeguarding","Head of Service Quality and Safeguarding","R1100"
"Wolverhampton City Council","http://opendatacommunities.org/id/metropolitan-district-council/wolverhampton","710928","Yoo Recruit LTD","CWC1011087","2,777.33","Agency Staff","190406704","03/01/2018","Headstart","Headstart - Learning Technologies Team","R1100"
"Wolverhampton City Council","http://opendatacommunities.org/id/metropolitan-district-council/wolverhampton","710928","Yoo Recruit LTD","CWC1010971","514.56","Agency Staff","190407157","03/01/2018","Standards and Vulnerable Pupils","Music Grant (Arts Council)","R1100"
"Wolverhampton City Council","http://opendatacommunities.org/id/metropolitan-district-council/wolverhampton","710928","Yoo Recruit LTD","CWC1010997","2,186.52","Agency Staff","190407182","03/01/2018","Strategic Director People","Head of Strategic Commissioning � People","R1100"
"Wolverhampton City Council","http://opendatacommunities.org/id/metropolitan-district-council/wolverhampton","710928","Yoo Recruit LTD","CWC1010999","2,838.00","Agency Staff","190407184","03/01/2018","Headstart","Headstart - Learning Technologies Team","R1100"
"Wolverhampton City Council","http://opendatacommunities.org/id/metropolitan-district-council/wolverhampton","710928","Yoo Recruit LTD","CWC10109100","374.73","Agency Staff","190407185","03/01/2018","Leisure Services","WV Active Catering - Central","R1100"
"Wolverhampton City Council","http://opendatacommunities.org/id/metropolitan-district-council/wolverhampton","710928","Yoo Recruit LTD","CWC1010935","763.43","Agency Staff","190407122","03/01/2018","Cleaning","External Cleaning","R1100"
"Wolverhampton City Council","http://opendatacommunities.org/id/metropolitan-district-council/wolverhampton","710928","Yoo Recruit LTD","CWC1010934","1,032.76","Agency Staff","190407121","03/01/2018","Cleaning","Cleaning of Buildings - General","R1100"
"Wolverhampton City Council","http://opendatacommunities.org/id/metropolitan-district-council/wolverhampton","710928","Yoo Recruit LTD","CWC1010932","200.69","Agency Staff","190407119","03/01/2018","Catering","Meals on Wheels","R1100"
"Wolverhampton City Council","http://opendatacommunities.org/id/metropolitan-district-council/wolverhampton","710928","Yoo Recruit LTD","CWC1010941","2,980.55","Agency Staff","190407128","03/01/2018","ICTS","Application Management","R1100"
"Wolverhampton City Council","http://opendatacommunities.org/id/metropolitan-district-council/wolverhampton","710928","Yoo Recruit LTD","CWC1010137","135.72","Agency Staff","190407246","03/01/2018","Cleaning","Schools Cleaning","R1100"
"Wolverhampton City Council","http://opendatacommunities.org/id/metropolitan-district-council/wolverhampton","710928","Yoo Recruit LTD","CWC1010136","436.48","Agency Staff","190407245","03/01/2018","Cleaning","External Cleaning","R1100"
"Wolverhampton City Council","http://opendatacommunities.org/id/metropolitan-district-council/wolverhampton","710928","Yoo Recruit LTD","CWC1010141","535.78","Agency Staff","190407250","03/01/2018","ICTS","Customer Services","R1100"
"Wolverhampton City Council","http://opendatacommunities.org/id/metropolitan-district-council/wolverhampton","710928","Yoo Recruit LTD","CWC1010146","1,048.97","Agency Staff","190407255","03/01/2018","Fleet Services","Passenger Transport - General","R1100"
"Wolverhampton City Council","http://opendatacommunities.org/id/metropolitan-district-council/wolverhampton","710928","Yoo Recruit LTD","CWC1010155","2,390.52","Agency Staff","190407264","03/01/2018","Service Director City Economy","Service Director City Economy","R1100"
"Wolverhampton City Council","http://opendatacommunities.org/id/metropolitan-district-council/wolverhampton","710928","Yoo Recruit LTD","CWC1010192","2,092.50","Agency Staff","190407299","03/01/2018","Adults Assessment & Care Management North","Adult Services � North","R1100"
"Wolverhampton City Council","http://opendatacommunities.org/id/metropolitan-district-council/wolverhampton","710928","Yoo Recruit LTD","CWC1011943","398.79","Agency Staff","190413310","19/01/2018","Revenues & Benefits","Revenues","R1100"
"Wolverhampton City Council","http://opendatacommunities.org/id/metropolitan-district-council/wolverhampton","710928","Yoo Recruit LTD","CWC1011959","239.78","Agency Staff","190413299","19/01/2018","Standards and Vulnerable Pupils","Music Grant (Arts Council)","R1100"
"Wolverhampton City Council","http://opendatacommunities.org/id/metropolitan-district-council/wolverhampton","710928","Yoo Recruit LTD","CWC101195","231.00","Agency Staff","190413297","19/01/2018","Specialist Support","Upper Pendeford Farm Short Breaks Centre","R1100"
"Wolverhampton City Council","http://opendatacommunities.org/id/metropolitan-district-council/wolverhampton","710928","Yoo Recruit LTD","CWC1011986","303.23","Agency Staff","190413301","19/01/2018","Youth Offending","YOT � Headstart","R1100"
"Wolverhampton City Council","http://opendatacommunities.org/id/metropolitan-district-council/wolverhampton","710928","Yoo Recruit LTD","CWC1011982","1,670.56","Agency Staff","190413347","19/01/2018","Adults Assessment & Care Management SLC","Supporting Life Choices","R1100"
"Wolverhampton City Council","http://opendatacommunities.org/id/metropolitan-district-council/wolverhampton","710928","Yoo Recruit LTD","CWC101194","2,099.88","Agency Staff","190413354","19/01/2018","Looked After Children","Adoption and Residence Team & Allowances","R1100"
"Wolverhampton City Council","http://opendatacommunities.org/id/metropolitan-district-council/wolverhampton","710928","Yoo Recruit LTD","CWC101192","909.68","Agency Staff","190413339","19/01/2018","Looked After Children","Fostering Team","R1100"
"Wolverhampton City Council","http://opendatacommunities.org/id/metropolitan-district-council/wolverhampton","710928","Yoo Recruit LTD","CWC1011962","869.26","Agency Staff","190413335","19/01/2018","School Planning & Resources","Technical Support","R1100"
"Wolverhampton City Council","http://opendatacommunities.org/id/metropolitan-district-council/wolverhampton","710928","Yoo Recruit LTD","CWC1011972","2,064.55","Agency Staff","190413353","19/01/2018","Leisure Services","WV Active Business Support","R1100"
"Wolverhampton City Council","http://opendatacommunities.org/id/metropolitan-district-council/wolverhampton","710928","Yoo Recruit LTD","CWC1011987","682.60","Agency Staff","190413322","19/01/2018","Visitor Economy","Front of House","R1100"
"Wolverhampton City Council","http://opendatacommunities.org/id/metropolitan-district-council/wolverhampton","710928","Yoo Recruit LTD","CWC1011918","536.16","Agency Staff","190413318","19/01/2018","Leisure Services","WV Active Catering","R1100"
"Wolverhampton City Council","http://opendatacommunities.org/id/metropolitan-district-council/wolverhampton","710928","Yoo Recruit LTD","CWC1011983","2,754.68","Agency Staff","190413357","19/01/2018","Headstart","Headstart - Learning Technologies Team","R1100"
"Wolverhampton City Council","http://opendatacommunities.org/id/metropolitan-district-council/wolverhampton","710928","Yoo Recruit LTD","CWC101197","4,276.69","Agency Staff","190413364","19/01/2018","Youth Offending","Youth Offending Team","R1100"
"Wolverhampton City Council","http://opendatacommunities.org/id/metropolitan-district-council/wolverhampton","710928","Yoo Recruit LTD","CWC1011940","740.81","Agency Staff","190413325","19/01/2018","Fleet Services","Passenger Transport - General","R1100"
"Wolverhampton City Council","http://opendatacommunities.org/id/metropolitan-district-council/wolverhampton","710928","Yoo Recruit LTD","CWC1011953","507.15","Agency Staff","190413316","19/01/2018","Adult Education","Direct Delivery Team ( L.& D.)","R1100"
"Wolverhampton City Council","http://opendatacommunities.org/id/metropolitan-district-council/wolverhampton","710928","Yoo Recruit LTD","CWC1011937","481.95","Agency Staff","190413314","19/01/2018","Corporate Business Support","Corporate Programmes","R1100"
"Wolverhampton City Council","http://opendatacommunities.org/id/metropolitan-district-council/wolverhampton","710928","Yoo Recruit LTD","CWC1011930","797.88","Agency Staff","190413331","19/01/2018","Cleaning","Cleaning of Buildings - General","R1100"
"Wolverhampton City Council","http://opendatacommunities.org/id/metropolitan-district-council/wolverhampton","710928","Yoo Recruit LTD","CWC1011979","126.10","Agency Staff","190413291","19/01/2018","Specialist Support","Vulnerable Young Persons Team","R1100"
"Wolverhampton City Council","http://opendatacommunities.org/id/metropolitan-district-council/wolverhampton","710928","Yoo Recruit LTD","CWC1011957","110.49","Agency Staff","190413289","19/01/2018","Adult Education","Learner Services","R1100"
"Wolverhampton City Council","http://opendatacommunities.org/id/metropolitan-district-council/wolverhampton","710928","Yoo Recruit LTD","CWC1011954","177.93","Agency Staff","190413293","19/01/2018","Adult Education","Creative Studies Delivery Area","R1100"
"Wolverhampton City Council","http://opendatacommunities.org/id/metropolitan-district-council/wolverhampton","710928","Yoo Recruit LTD","CWC1011916","4,589.29","Agency Staff","190413366","19/01/2018","Independent Living Service","Independent Living Service","R1100"
"Wolverhampton City Council","http://opendatacommunities.org/id/metropolitan-district-council/wolverhampton","710928","Yoo Recruit LTD","CWC101193","6,229.01","Agency Staff","190413369","19/01/2018","Looked After Children","Fostering Team & Allowances","R1100"
"Wolverhampton City Council","http://opendatacommunities.org/id/metropolitan-district-council/wolverhampton","710928","Yoo Recruit LTD","CWC1009311","1,070.45","Agency Staff","190407360","05/01/2018","Learning Disability Provider","Ernest Bold Court","R1100"
"Wolverhampton City Council","http://opendatacommunities.org/id/metropolitan-district-council/wolverhampton","710928","Yoo Recruit LTD","CWC1009310","1,457.55","Agency Staff","190407359","05/01/2018","Learning Disability Provider","Duke Street Bungalows","R1100"
"Wolverhampton City Council","http://opendatacommunities.org/id/metropolitan-district-council/wolverhampton","710928","Yoo Recruit LTD","CWC1009384","1,307.58","Agency Staff","190407430","05/01/2018","Child Protection","CIN/CP Social Work Unit - Area 1","R1100"
"Wolverhampton City Council","http://opendatacommunities.org/id/metropolitan-district-council/wolverhampton","710928","Yoo Recruit LTD","CWC1009379","14,977.81","Agency Staff","190407425","05/01/2018","Visitor Economy","Civic Halls Non-Direct Event Management Account","R1100"
"Wolverhampton City Council","http://opendatacommunities.org/id/metropolitan-district-council/wolverhampton","710928","Yoo Recruit LTD","CWC1009383","1,886.04","Agency Staff","190407429","05/01/2018","The Hub","Payroll/HR","R1100"
"Wolverhampton City Council","http://opendatacommunities.org/id/metropolitan-district-council/wolverhampton","710928","Yoo Recruit LTD","CWC1009374","432.38","Agency Staff","190407420","05/01/2018","School Planning & Resources","Technical Support","R1100"
"Wolverhampton City Council","http://opendatacommunities.org/id/metropolitan-district-council/wolverhampton","710928","Yoo Recruit LTD","CWC1009375","141.38","Agency Staff","190407421","05/01/2018","Schools","Westacre Infant School","R1100"
"Wolverhampton City Council","http://opendatacommunities.org/id/metropolitan-district-council/wolverhampton","710928","Yoo Recruit LTD","CWC1009376","1,152.66","Agency Staff","190407422","05/01/2018","Public Protection","Regulatory Services - Works in Default","R1100"
"Wolverhampton City Council","http://opendatacommunities.org/id/metropolitan-district-council/wolverhampton","710928","Yoo Recruit LTD","CWC1009349","2,173.31","Agency Staff","190407396","05/01/2018","Democratic Services","Electoral Registration","R1100"
"Wolverhampton City Council","http://opendatacommunities.org/id/metropolitan-district-council/wolverhampton","710928","Yoo Recruit LTD","CWC1009355","1,136.40","Agency Staff","190407402","05/01/2018","Housing","General Housing Administration","R1100"
"Wolverhampton City Council","http://opendatacommunities.org/id/metropolitan-district-council/wolverhampton","710928","Yoo Recruit LTD","CWC1009364","90.00","Agency Staff","190407411","05/01/2018","Adult Education","Educational Studies Delivery Area","R1100"
"Wolverhampton City Council","http://opendatacommunities.org/id/metropolitan-district-council/wolverhampton","710928","Yoo Recruit LTD","CWC1009369","291.21","Agency Staff","190407416","05/01/2018","Standards and Vulnerable Pupils","Music Grant (Arts Council)","R1100"
"Wolverhampton City Council","http://opendatacommunities.org/id/metropolitan-district-council/wolverhampton","710928","Yoo Recruit LTD","CWC1009373","2,544.12","Agency Staff","190407419","05/01/2018","School Planning & Resources","Special - Transport","R1100"
"Wolverhampton City Council","http://opendatacommunities.org/id/metropolitan-district-council/wolverhampton","710928","Yoo Recruit LTD","CWC1009370","899.84","Agency Staff","190407417","05/01/2018","Human Resources","Schools HR Consultants","R1100"
"Wolverhampton City Council","http://opendatacommunities.org/id/metropolitan-district-council/wolverhampton","710928","Yoo Recruit LTD","CWC1009327","481.08","Agency Staff","190407375","05/01/2018","Business Continuity & Emergency Planning","Business Continuity & Emergency Planning","R1100"
"Wolverhampton City Council","http://opendatacommunities.org/id/metropolitan-district-council/wolverhampton","710928","Yoo Recruit LTD","CWC1009324","1,189.01","Agency Staff","190407372","05/01/2018","Safeguarding","MCA General","R1100"
"Wolverhampton City Council","http://opendatacommunities.org/id/metropolitan-district-council/wolverhampton","710928","Yoo Recruit LTD","CWC100887","29,564.45","Agency Staff","190407454","05/01/2018","Looked After Children","LAC Transitions Team","R1100"
"Wolverhampton City Council","http://opendatacommunities.org/id/metropolitan-district-council/wolverhampton","710928","Yoo Recruit LTD","CWC1008812","12,902.12","Agency Staff","190407459","05/01/2018","Adults Assessment & Care Management North","Learning Disabilities Assessment and Care Management","R1100"
"Wolverhampton City Council","http://opendatacommunities.org/id/metropolitan-district-council/wolverhampton","710928","Yoo Recruit LTD","CWC100889","919.08","Agency Staff","190407456","05/01/2018","Independent Living Service","Adaptations Team","R1100"
"Wolverhampton City Council","http://opendatacommunities.org/id/metropolitan-district-council/wolverhampton","710928","Yoo Recruit LTD","CWC1008813","379.20","Agency Staff","190407460","05/01/2018","Learning Disability Provider","Support Plus","R1100"
"Wolverhampton City Council","http://opendatacommunities.org/id/metropolitan-district-council/wolverhampton","710928","Yoo Recruit LTD","CWC1008846","415.88","Agency Staff","190407491","05/01/2018","Environmental Maintenance","Ground Maintenance Overheads","R1100"
"Wolverhampton City Council","http://opendatacommunities.org/id/metropolitan-district-council/wolverhampton","710928","Yoo Recruit LTD","CWC1008847","328.90","Agency Staff","190407492","05/01/2018","Environmental Maintenance","Parks - Ranger Service","R1100"
"Wolverhampton City Council","http://opendatacommunities.org/id/metropolitan-district-council/wolverhampton","710928","Yoo Recruit LTD","CWC1008865","403.85","Agency Staff","190407510","05/01/2018","Adult Education","Caretakers","R1100"
"Wolverhampton City Council","http://opendatacommunities.org/id/metropolitan-district-council/wolverhampton","710928","Yoo Recruit LTD","CWC1008860","429.75","Agency Staff","190407505","05/01/2018","Housing","Private Sector Housing","R1100"
"Wolverhampton City Council","http://opendatacommunities.org/id/metropolitan-district-council/wolverhampton","710928","Yoo Recruit LTD","CWC1008878","432.38","Agency Staff","190407522","05/01/2018","School Planning & Resources","Technical Support","R1100"
"Wolverhampton City Council","http://opendatacommunities.org/id/metropolitan-district-council/wolverhampton","710928","Yoo Recruit LTD","CWC1008881","1,518.15","Agency Staff","190407525","05/01/2018","Corporate Asset Management","Strategic Asset Management Team","R1100"
"Wolverhampton City Council","http://opendatacommunities.org/id/metropolitan-district-council/wolverhampton","710928","Yoo Recruit LTD","CWC1008883","234.21","Agency Staff","190407527","05/01/2018","Cleaning","Priory Green","R1100"
"Wolverhampton City Council","http://opendatacommunities.org/id/metropolitan-district-council/wolverhampton","710928","Yoo Recruit LTD","CWC10088104","1,235.26","Agency Staff","190407548","05/01/2018","Democratic Services","Councillor Portal","R1100"
"Wolverhampton City Council","http://opendatacommunities.org/id/metropolitan-district-council/wolverhampton","710928","Yoo Recruit LTD","CWC1008898","23,908.33","Agency Staff","190407542","05/01/2018","Adults Assessment & Care Management West","Adult Services � West","R1100"
"Wolverhampton City Council","http://opendatacommunities.org/id/metropolitan-district-council/wolverhampton","710928","Yoo Recruit LTD","CWC1008895","126.10","Agency Staff","190407539","05/01/2018","Specialist Support","Vulnerable Young Persons Team","R1100"
"Wolverhampton City Council","http://opendatacommunities.org/id/metropolitan-district-council/wolverhampton","710928","Yoo Recruit LTD","CWC1008889","2,615.16","Agency Staff","190407533","05/01/2018","Child Protection","CIN/CP Social Work Unit - Area 1","R1100"
"Wolverhampton City Council","http://opendatacommunities.org/id/metropolitan-district-council/wolverhampton","710928","Yoo Recruit LTD","CWC1008832","474.75","Agency Staff","190407478","05/01/2018","Business Continuity & Emergency Planning","Business Continuity & Emergency Planning","R1100"
"Wolverhampton City Council","http://opendatacommunities.org/id/metropolitan-district-council/wolverhampton","710928","Yoo Recruit LTD","CWC1008834","1,812.43","Agency Staff","190407480","05/01/2018","Catering","Primary Schools Catering","R1100"
"Wolverhampton City Council","http://opendatacommunities.org/id/metropolitan-district-council/wolverhampton","710928","Yoo Recruit LTD","CWC1008837","10,201.04","Agency Staff","190407483","05/01/2018","Customer Services","City Direct","R1100"
"Wolverhampton City Council","http://opendatacommunities.org/id/metropolitan-district-council/wolverhampton","710928","Yoo Recruit LTD","CWC1008838","1,292.62","Agency Staff","190407484","05/01/2018","Cleaning","Cleaning of Buildings - General","R1100"
"Wolverhampton City Council","http://opendatacommunities.org/id/metropolitan-district-council/wolverhampton","710928","Yoo Recruit LTD","CWC1008835","359.95","Agency Staff","190407481","05/01/2018","Catering","Other Catering - General Overheads","R1100"
"Wolverhampton City Council","http://opendatacommunities.org/id/metropolitan-district-council/wolverhampton","710928","Yoo Recruit LTD","CWC1008856","1,697.30","Agency Staff","190407501","05/01/2018","Legal Services","Legal Services","R1100"
"Wolverhampton City Council","http://opendatacommunities.org/id/metropolitan-district-council/wolverhampton","710928","Yoo Recruit LTD","CWC1008551","2,390.52","Agency Staff","190407615","05/01/2018","Service Director City Economy","Service Director City Economy","R1100"
"Wolverhampton City Council","http://opendatacommunities.org/id/metropolitan-district-council/wolverhampton","710928","Yoo Recruit LTD","CWC1008563","1,398.06","Agency Staff","190407627","05/01/2018","School Planning & Resources","Pupil & Student Support","R1100"
"Wolverhampton City Council","http://opendatacommunities.org/id/metropolitan-district-council/wolverhampton","710928","Yoo Recruit LTD","CWC1008584","743.25","Agency Staff","190407648","05/01/2018","Adults Assessment & Care Management SLC","Supporting Life Choices","R1100"
"Wolverhampton City Council","http://opendatacommunities.org/id/metropolitan-district-council/wolverhampton","710928","Yoo Recruit LTD","CWC1008587","1,968.17","Agency Staff","190407651","05/01/2018","Housing","General Housing Administration","R1100"
"Wolverhampton City Council","http://opendatacommunities.org/id/metropolitan-district-council/wolverhampton","710928","Yoo Recruit LTD","CWC1008543","1,065.97","Agency Staff","190407607","05/01/2018","Fleet Services","Passenger Transport - General","R1100"
"Wolverhampton City Council","http://opendatacommunities.org/id/metropolitan-district-council/wolverhampton","710928","Yoo Recruit LTD","CWC1008542","248.82","Agency Staff","190407606","05/01/2018","Fleet Services","Fleet Management","R1100"
"Wolverhampton City Council","http://opendatacommunities.org/id/metropolitan-district-council/wolverhampton","710928","Yoo Recruit LTD","CWC1008515","1,112.65","Agency Staff","190407581","05/01/2018","Leisure Services","WV Active Catering","R1100"
"Wolverhampton City Council","http://opendatacommunities.org/id/metropolitan-district-council/wolverhampton","710928","Yoo Recruit LTD","CWC1008522","946.04","Agency Staff","190407587","05/01/2018","Safeguarding","MCA General","R1100"
"Wolverhampton City Council","http://opendatacommunities.org/id/metropolitan-district-council/wolverhampton","710928","Yoo Recruit LTD","CWC1008523","466.57","Agency Staff","190407588","05/01/2018","Safeguarding","Safeguarding Children","R1100"
"Wolverhampton City Council","http://opendatacommunities.org/id/metropolitan-district-council/wolverhampton","710928","Yoo Recruit LTD","CWC100851","6,396.54","Agency Staff","190407567","05/01/2018","Looked After Children","Adoption and Residence Team & Allowances","R1100"
"Wolverhampton City Council","http://opendatacommunities.org/id/metropolitan-district-council/wolverhampton","710928","Yoo Recruit LTD","CWC1008513","184.77","Agency Staff","190407579","05/01/2018","Strategic Organisation Development","Blakenhall Community & Healthy Living Centre","R1100"
"Wolverhampton City Council","http://opendatacommunities.org/id/metropolitan-district-council/wolverhampton","710928","Yoo Recruit LTD","CWC1008537","1,463.35","Agency Staff","190407602","05/01/2018","ICTS","Strategic ICTS","R1100"
